{"text_format":"1","workbook":"xlsx","n_sheets":1,"sheets":["Tabelle 1"],"not_rendered":{"charts":0,"images":1,"macros":1,"external_links":0,"defined_names":0,"comments":0,"pivot_tables":0},"unopened":[],"bounds":{"document_bytes":16777216,"sheet_cells":100000,"rows_first":2000,"rows_last":500,"rows_between":2000,"halvings":0,"cell_chars":16384,"cell_head_chars":4096},"cells_cut":0,"cells_raw":0,"read":"whole","date_system":"1900"}

{"sheet":"Tabelle 1","index":0,"n_rows":5005,"n_cols":6,"rows_kept":5005,"cut":false,"hidden":false,"merged":[]}
[]
[null,null,"Empfohlene Zeichenanzahl: max. 40"]
[]
[]
[null,"1 Zeile","2 Zeile","3 Zeile","Farbe","Textfarbe"]
[1,null,null,null,null,{"$f":"IF(E6=\"\",\"\",IF(OR(E6=\"weiß 9016\",E6=\"zinkgelb 1018\",E6=\"narzissengelb 1007\",E6=\"orange 2010\",E6=\"tomatenrot 3013\",E6=\"gold 1036\",E6=\"silber 9006\"),\"schwarz\",\"weiß\"))","v":""}]
[2,null,null,null,null,{"$f":"IF(E7=\"\",\"\",IF(OR(E7=\"weiß 9016\",E7=\"zinkgelb 1018\",E7=\"narzissengelb 1007\",E7=\"orange 2010\",E7=\"tomatenrot 3013\",E7=\"gold 1036\",E7=\"silber 9006\"),\"schwarz\",\"weiß\"))","v":""}]
[3,null,null,null,null,""]
[4,null,null,null,null,""]
[5,null,null,null,null,""]
[6,null,null,null,null,""]
[7,null,null,null,null,""]
[8,null,null,null,null,""]
[9,null,null,null,null,""]
[10,null,null,null,null,""]
[11,null,null,null,null,""]
[12,null,null,null,null,""]
[13,null,null,null,null,""]
[14,null,null,null,null,""]
[15,null,null,null,null,""]
[16,null,null,null,null,""]
[17,null,null,null,null,""]
[18,null,null,null,null,""]
[19,null,null,null,null,""]
[20,null,null,null,null,""]
[21,null,null,null,null,""]
[22,null,null,null,null,""]
[23,null,null,null,null,""]
[24,null,null,null,null,""]
[25,null,null,null,null,""]
[26,null,null,null,null,""]
[27,null,null,null,null,""]
[28,null,null,null,null,""]
[29,null,null,null,null,""]
[30,null,null,null,null,""]
[31,null,null,null,null,""]
[32,null,null,null,null,""]
[33,null,null,null,null,""]
[34,null,null,null,null,""]
[35,null,null,null,null,""]
[36,null,null,null,null,""]
[37,null,null,null,null,""]
[38,null,null,null,null,""]
[39,null,null,null,null,""]
[40,null,null,null,null,""]
[41,null,null,null,null,""]
[42,null,null,null,null,""]
[43,null,null,null,null,""]
[44,null,null,null,null,""]
[45,null,null,null,null,""]
[46,null,null,null,null,""]
[47,null,null,null,null,""]
[48,null,null,null,null,""]
[49,null,null,null,null,""]
[50,null,null,null,null,""]
[51,null,null,null,null,""]
[52,null,null,null,null,""]
[53,null,null,null,null,""]
[54,null,null,null,null,""]
[55,null,null,null,null,""]
[56,null,null,null,null,""]
[57,null,null,null,null,""]
[58,null,null,null,null,""]
[59,null,null,null,null,""]
[60,null,null,null,null,""]
[61,null,null,null,null,""]
[62,null,null,null,null,""]
[63,null,null,null,null,""]
[64,null,null,null,null,""]
[65,null,null,null,null,""]
[66,null,null,null,null,{"$f":"IF(E71=\"\",\"\",IF(OR(E71=\"weiß 9016\",E71=\"zinkgelb 1018\",E71=\"narzissengelb 1007\",E71=\"orange 2010\",E71=\"tomatenrot 3013\",E71=\"gold 1036\",E71=\"silber 9006\"),\"schwarz\",\"weiß\"))","v":""}]
[67,null,null,null,null,""]
[68,null,null,null,null,""]
[69,null,null,null,null,""]
[70,null,null,null,null,""]
[71,null,null,null,null,""]
[72,null,null,null,null,""]
[73,null,null,null,null,""]
[74,null,null,null,null,""]
[75,null,null,null,null,""]
[76,null,null,null,null,""]
[77,null,null,null,null,""]
[78,null,null,null,null,""]
[79,null,null,null,null,""]
[80,null,null,null,null,""]
[81,null,null,null,null,""]
[82,null,null,null,null,""]
[83,null,null,null,null,""]
[84,null,null,null,null,""]
[85,null,null,null,null,""]
[86,null,null,null,null,""]
[87,null,null,null,null,""]
[88,null,null,null,null,""]
[89,null,null,null,null,""]
[90,null,null,null,null,""]
[91,null,null,null,null,""]
[92,null,null,null,null,""]
[93,null,null,null,null,""]
[94,null,null,null,null,""]
[95,null,null,null,null,""]
[96,null,null,null,null,""]
[97,null,null,null,null,""]
[98,null,null,null,null,""]
[99,null,null,null,null,""]
[100,null,null,null,null,""]
[101,null,null,null,null,""]
[102,null,null,null,null,""]
[103,null,null,null,null,""]
[104,null,null,null,null,""]
[105,null,null,null,null,""]
[106,null,null,null,null,""]
[107,null,null,null,null,""]
[108,null,null,null,null,""]
[109,null,null,null,null,""]
[110,null,null,null,null,""]
[111,null,null,null,null,""]
[112,null,null,null,null,""]
[113,null,null,null,null,""]
[114,null,null,null,null,""]
[115,null,null,null,null,""]
[116,null,null,null,null,""]
[117,null,null,null,null,""]
[118,null,null,null,null,""]
[119,null,null,null,null,""]
[120,null,null,null,null,""]
[121,null,null,null,null,""]
[122,null,null,null,null,""]
[123,null,null,null,null,""]
[124,null,null,null,null,""]
[125,null,null,null,null,""]
[126,null,null,null,null,""]
[127,null,null,null,null,""]
[128,null,null,null,null,""]
[129,null,null,null,null,""]
[130,null,null,null,null,{"$f":"IF(E135=\"\",\"\",IF(OR(E135=\"weiß 9016\",E135=\"zinkgelb 1018\",E135=\"narzissengelb 1007\",E135=\"orange 2010\",E135=\"tomatenrot 3013\",E135=\"gold 1036\",E135=\"silber 9006\"),\"schwarz\",\"weiß\"))","v":""}]
[131,null,null,null,null,""]
[132,null,null,null,null,""]
[133,null,null,null,null,""]
[134,null,null,null,null,""]
[135,null,null,null,null,""]
[136,null,null,null,null,""]
[137,null,null,null,null,""]
[138,null,null,null,null,""]
[139,null,null,null,null,""]
[140,null,null,null,null,""]
[141,null,null,null,null,""]
[142,null,null,null,null,""]
[143,null,null,null,null,""]
[144,null,null,null,null,""]
[145,null,null,null,null,""]
[146,null,null,null,null,""]
[147,null,null,null,null,""]
[148,null,null,null,null,""]
[149,null,null,null,null,""]
[150,null,null,null,null,""]
[151,null,null,null,null,""]
[152,null,null,null,null,""]
[153,null,null,null,null,""]
[154,null,null,null,null,""]
[155,null,null,null,null,""]
[156,null,null,null,null,""]
[157,null,null,null,null,""]
[158,null,null,null,null,""]
[159,null,null,null,null,""]
[160,null,null,null,null,""]
[161,null,null,null,null,""]
[162,null,null,null,null,""]
[163,null,null,null,null,""]
[164,null,null,null,null,""]
[165,null,null,null,null,""]
[166,null,null,null,null,""]
[167,null,null,null,null,""]
[168,null,null,null,null,""]
[169,null,null,null,null,""]
[170,null,null,null,null,""]
[171,null,null,null,null,""]
[172,null,null,null,null,""]
[173,null,null,null,null,""]
[174,null,null,null,null,""]
[175,null,null,null,null,""]
[176,null,null,null,null,""]
[177,null,null,null,null,""]
[178,null,null,null,null,""]
[179,null,null,null,null,""]
[180,null,null,null,null,""]
[181,null,null,null,null,""]
[182,null,null,null,null,""]
[183,null,null,null,null,""]
[184,null,null,null,null,""]
[185,null,null,null,null,""]
[186,null,null,null,null,""]
[187,null,null,null,null,""]
[188,null,null,null,null,""]
[189,null,null,null,null,""]
[190,null,null,null,null,""]
[191,null,null,null,null,""]
[192,null,null,null,null,""]
[193,null,null,null,null,""]
[194,null,null,null,null,{"$f":"IF(E199=\"\",\"\",IF(OR(E199=\"weiß 9016\",E199=\"zinkgelb 1018\",E199=\"narzissengelb 1007\",E199=\"orange 2010\",E199=\"tomatenrot 3013\",E199=\"gold 1036\",E199=\"silber 9006\"),\"schwarz\",\"weiß\"))","v":""}]
[195,null,null,null,null,""]
[196,null,null,null,null,""]
[197,null,null,null,null,""]
[198,null,null,null,null,""]
[199,null,null,null,null,""]
[200,null,null,null,null,""]
[201,null,null,null,null,""]
[202,null,null,null,null,""]
[203,null,null,null,null,""]
[204,null,null,null,null,""]
[205,null,null,null,null,""]
[206,null,null,null,null,""]
[207,null,null,null,null,""]
[208,null,null,null,null,""]
[209,null,null,null,null,""]
[210,null,null,null,null,""]
[211,null,null,null,null,""]
[212,null,null,null,null,""]
[213,null,null,null,null,""]
[214,null,null,null,null,""]
[215,null,null,null,null,""]
[216,null,null,null,null,""]
[217,null,null,null,null,""]
[218,null,null,null,null,""]
[219,null,null,null,null,""]
[220,null,null,null,null,""]
[221,null,null,null,null,""]
[222,null,null,null,null,""]
[223,null,null,null,null,""]
[224,null,null,null,null,""]
[225,null,null,null,null,""]
[226,null,null,null,null,""]
[227,null,null,null,null,""]
[228,null,null,null,null,""]
[229,null,null,null,null,""]
[230,null,null,null,null,""]
[231,null,null,null,null,""]
[232,null,null,null,null,""]
[233,null,null,null,null,""]
[234,null,null,null,null,""]
[235,null,null,null,null,""]
[236,null,null,null,null,""]
[237,null,null,null,null,""]
[238,null,null,null,null,""]
[239,null,null,null,null,""]
[240,null,null,null,null,""]
[241,null,null,null,null,""]
[242,null,null,null,null,""]
[243,null,null,null,null,""]
[244,null,null,null,null,""]
[245,null,null,null,null,""]
[246,null,null,null,null,""]
[247,null,null,null,null,""]
[248,null,null,null,null,""]
[249,null,null,null,null,""]
[250,null,null,null,null,""]
[251,null,null,null,null,""]
[252,null,null,null,null,""]
[253,null,null,null,null,""]
[254,null,null,null,null,""]
[255,null,null,null,null,""]
[256,null,null,null,null,""]
[257,null,null,null,null,""]
[258,null,null,null,null,{"$f":"IF(E263=\"\",\"\",IF(OR(E263=\"weiß 9016\",E263=\"zinkgelb 1018\",E263=\"narzissengelb 1007\",E263=\"orange 2010\",E263=\"tomatenrot 3013\",E263=\"gold 1036\",E263=\"silber 9006\"),\"schwarz\",\"weiß\"))","v":""}]
[259,null,null,null,null,""]
[260,null,null,null,null,""]
[261,null,null,null,null,""]
[262,null,null,null,null,""]
[263,null,null,null,null,""]
[264,null,null,null,null,""]
[265,null,null,null,null,""]
[266,null,null,null,null,""]
[267,null,null,null,null,""]
[268,null,null,null,null,""]
[269,null,null,null,null,""]
[270,null,null,null,null,""]
[271,null,null,null,null,""]
[272,null,null,null,null,""]
[273,null,null,null,null,""]
[274,null,null,null,null,""]
[275,null,null,null,null,""]
[276,null,null,null,null,""]
[277,null,null,null,null,""]
[278,null,null,null,null,""]
[279,null,null,null,null,""]
[280,null,null,null,null,""]
[281,null,null,null,null,""]
[282,null,null,null,null,""]
[283,null,null,null,null,""]
[284,null,null,null,null,""]
[285,null,null,null,null,""]
[286,null,null,null,null,""]
[287,null,null,null,null,""]
[288,null,null,null,null,""]
[289,null,null,null,null,""]
[290,null,null,null,null,""]
[291,null,null,null,null,""]
[292,null,null,null,null,""]
[293,null,null,null,null,""]
[294,null,null,null,null,""]
[295,null,null,null,null,""]
[296,null,null,null,null,""]
[297,null,null,null,null,""]
[298,null,null,null,null,""]
[299,null,null,null,null,""]
[300,null,null,null,null,""]
[301,null,null,null,null,""]
[302,null,null,null,null,""]
[303,null,null,null,null,""]
[304,null,null,null,null,""]
[305,null,null,null,null,""]
[306,null,null,null,null,""]
[307,null,null,null,null,""]
[308,null,null,null,null,""]
[309,null,null,null,null,""]
[310,null,null,null,null,""]
[311,null,null,null,null,""]
[312,null,null,null,null,""]
[313,null,null,null,null,""]
[314,null,null,null,null,""]
[315,null,null,null,null,""]
[316,null,null,null,null,""]
[317,null,null,null,null,""]
[318,null,null,null,null,""]
[319,null,null,null,null,""]
[320,null,null,null,null,""]
[321,null,null,null,null,""]
[322,null,null,null,null,{"$f":"IF(E327=\"\",\"\",IF(OR(E327=\"weiß 9016\",E327=\"zinkgelb 1018\",E327=\"narzissengelb 1007\",E327=\"orange 2010\",E327=\"tomatenrot 3013\",E327=\"gold 1036\",E327=\"silber 9006\"),\"schwarz\",\"weiß\"))","v":""}]
[323,null,null,null,null,""]
[324,null,null,null,null,""]
[325,null,null,null,null,""]
[326,null,null,null,null,""]
[327,null,null,null,null,""]
[328,null,null,null,null,""]
[329,null,null,null,null,""]
[330,null,null,null,null,""]
[331,null,null,null,null,""]
[332,null,null,null,null,""]
[333,null,null,null,null,""]
[334,null,null,null,null,""]
[335,null,null,null,null,""]
[336,null,null,null,null,""]
[337,null,null,null,null,""]
[338,null,null,null,null,""]
[339,null,null,null,null,""]
[340,null,null,null,null,""]
[341,null,null,null,null,""]
[342,null,null,null,null,""]
[343,null,null,null,null,""]
[344,null,null,null,null,""]
[345,null,null,null,null,""]
[346,null,null,null,null,""]
[347,null,null,null,null,""]
[348,null,null,null,null,""]
[349,null,null,null,null,""]
[350,null,null,null,null,""]
[351,null,null,null,null,""]
[352,null,null,null,null,""]
[353,null,null,null,null,""]
[354,null,null,null,null,""]
[355,null,null,null,null,""]
[356,null,null,null,null,""]
[357,null,null,null,null,""]
[358,null,null,null,null,""]
[359,null,null,null,null,""]
[360,null,null,null,null,""]
[361,null,null,null,null,""]
[362,null,null,null,null,""]
[363,null,null,null,null,""]
[364,null,null,null,null,""]
[365,null,null,null,null,""]
[366,null,null,null,null,""]
[367,null,null,null,null,""]
[368,null,null,null,null,""]
[369,null,null,null,null,""]
[370,null,null,null,null,""]
[371,null,null,null,null,""]
[372,null,null,null,null,""]
[373,null,null,null,null,""]
[374,null,null,null,null,""]
[375,null,null,null,null,""]
[376,null,null,null,null,""]
[377,null,null,null,null,""]
[378,null,null,null,null,""]
[379,null,null,null,null,""]
[380,null,null,null,null,""]
[381,null,null,null,null,""]
[382,null,null,null,null,""]
[383,null,null,null,null,""]
[384,null,null,null,null,""]
[385,null,null,null,null,""]
[386,null,null,null,null,{"$f":"IF(E391=\"\",\"\",IF(OR(E391=\"weiß 9016\",E391=\"zinkgelb 1018\",E391=\"narzissengelb 1007\",E391=\"orange 2010\",E391=\"tomatenrot 3013\",E391=\"gold 1036\",E391=\"silber 9006\"),\"schwarz\",\"weiß\"))","v":""}]
[387,null,null,null,null,""]
[388,null,null,null,null,""]
[389,null,null,null,null,""]
[390,null,null,null,null,""]
[391,null,null,null,null,""]
[392,null,null,null,null,""]
[393,null,null,null,null,""]
[394,null,null,null,null,""]
[395,null,null,null,null,""]
[396,null,null,null,null,""]
[397,null,null,null,null,""]
[398,null,null,null,null,""]
[399,null,null,null,null,""]
[400,null,null,null,null,""]
[401,null,null,null,null,""]
[402,null,null,null,null,""]
[403,null,null,null,null,""]
[404,null,null,null,null,""]
[405,null,null,null,null,""]
[406,null,null,null,null,""]
[407,null,null,null,null,""]
[408,null,null,null,null,""]
[409,null,null,null,null,""]
[410,null,null,null,null,""]
[411,null,null,null,null,""]
[412,null,null,null,null,""]
[413,null,null,null,null,""]
[414,null,null,null,null,""]
[415,null,null,null,null,""]
[416,null,null,null,null,""]
[417,null,null,null,null,""]
[418,null,null,null,null,""]
[419,null,null,null,null,""]
[420,null,null,null,null,""]
[421,null,null,null,null,""]
[422,null,null,null,null,""]
[423,null,null,null,null,""]
[424,null,null,null,null,""]
[425,null,null,null,null,""]
[426,null,null,null,null,""]
[427,null,null,null,null,""]
[428,null,null,null,null,""]
[429,null,null,null,null,""]
[430,null,null,null,null,""]
[431,null,null,null,null,""]
[432,null,null,null,null,""]
[433,null,null,null,null,""]
[434,null,null,null,null,""]
[435,null,null,null,null,""]
[436,null,null,null,null,""]
[437,null,null,null,null,""]
[438,null,null,null,null,""]
[439,null,null,null,null,""]
[440,null,null,null,null,""]
[441,null,null,null,null,""]
[442,null,null,null,null,""]
[443,null,null,null,null,""]
[444,null,null,null,null,""]
[445,null,null,null,null,""]
[446,null,null,null,null,""]
[447,null,null,null,null,""]
[448,null,null,null,null,""]
[449,null,null,null,null,""]
[450,null,null,null,null,{"$f":"IF(E455=\"\",\"\",IF(OR(E455=\"weiß 9016\",E455=\"zinkgelb 1018\",E455=\"narzissengelb 1007\",E455=\"orange 2010\",E455=\"tomatenrot 3013\",E455=\"gold 1036\",E455=\"silber 9006\"),\"schwarz\",\"weiß\"))","v":""}]
[451,null,null,null,null,""]
[452,null,null,null,null,""]
[453,null,null,null,null,""]
[454,null,null,null,null,""]
[455,null,null,null,null,""]
[456,null,null,null,null,""]
[457,null,null,null,null,""]
[458,null,null,null,null,""]
[459,null,null,null,null,""]
[460,null,null,null,null,""]
[461,null,null,null,null,""]
[462,null,null,null,null,""]
[463,null,null,null,null,""]
[464,null,null,null,null,""]
[465,null,null,null,null,""]
[466,null,null,null,null,""]
[467,null,null,null,null,""]
[468,null,null,null,null,""]
[469,null,null,null,null,""]
[470,null,null,null,null,""]
[471,null,null,null,null,""]
[472,null,null,null,null,""]
[473,null,null,null,null,""]
[474,null,null,null,null,""]
[475,null,null,null,null,""]
[476,null,null,null,null,""]
[477,null,null,null,null,""]
[478,null,null,null,null,""]
[479,null,null,null,null,""]
[480,null,null,null,null,""]
[481,null,null,null,null,""]
[482,null,null,null,null,""]
[483,null,null,null,null,""]
[484,null,null,null,null,""]
[485,null,null,null,null,""]
[486,null,null,null,null,""]
[487,null,null,null,null,""]
[488,null,null,null,null,""]
[489,null,null,null,null,""]
[490,null,null,null,null,""]
[491,null,null,null,null,""]
[492,null,null,null,null,""]
[493,null,null,null,null,""]
[494,null,null,null,null,""]
[495,null,null,null,null,""]
[496,null,null,null,null,""]
[497,null,null,null,null,""]
[498,null,null,null,null,""]
[499,null,null,null,null,""]
[500,null,null,null,null,""]
[501,null,null,null,null,""]
[502,null,null,null,null,""]
[503,null,null,null,null,""]
[504,null,null,null,null,""]
[505,null,null,null,null,""]
[506,null,null,null,null,""]
[507,null,null,null,null,""]
[508,null,null,null,null,""]
[509,null,null,null,null,""]
[510,null,null,null,null,""]
[511,null,null,null,null,""]
[512,null,null,null,null,""]
[513,null,null,null,null,""]
[514,null,null,null,null,{"$f":"IF(E519=\"\",\"\",IF(OR(E519=\"weiß 9016\",E519=\"zinkgelb 1018\",E519=\"narzissengelb 1007\",E519=\"orange 2010\",E519=\"tomatenrot 3013\",E519=\"gold 1036\",E519=\"silber 9006\"),\"schwarz\",\"weiß\"))","v":""}]
[515,null,null,null,null,""]
[516,null,null,null,null,""]
[517,null,null,null,null,""]
[518,null,null,null,null,""]
[519,null,null,null,null,""]
[520,null,null,null,null,""]
[521,null,null,null,null,""]
[522,null,null,null,null,""]
[523,null,null,null,null,""]
[524,null,null,null,null,""]
[525,null,null,null,null,""]
[526,null,null,null,null,""]
[527,null,null,null,null,""]
[528,null,null,null,null,""]
[529,null,null,null,null,""]
[530,null,null,null,null,""]
[531,null,null,null,null,""]
[532,null,null,null,null,""]
[533,null,null,null,null,""]
[534,null,null,null,null,""]
[535,null,null,null,null,""]
[536,null,null,null,null,""]
[537,null,null,null,null,""]
[538,null,null,null,null,""]
[539,null,null,null,null,""]
[540,null,null,null,null,""]
[541,null,null,null,null,""]
[542,null,null,null,null,""]
[543,null,null,null,null,""]
[544,null,null,null,null,""]
[545,null,null,null,null,""]
[546,null,null,null,null,""]
[547,null,null,null,null,""]
[548,null,null,null,null,""]
[549,null,null,null,null,""]
[550,null,null,null,null,""]
[551,null,null,null,null,""]
[552,null,null,null,null,""]
[553,null,null,null,null,""]
[554,null,null,null,null,""]
[555,null,null,null,null,""]
[556,null,null,null,null,""]
[557,null,null,null,null,""]
[558,null,null,null,null,""]
[559,null,null,null,null,""]
[560,null,null,null,null,""]
[561,null,null,null,null,""]
[562,null,null,null,null,""]
[563,null,null,null,null,""]
[564,null,null,null,null,""]
[565,null,null,null,null,""]
[566,null,null,null,null,""]
[567,null,null,null,null,""]
[568,null,null,null,null,""]
[569,null,null,null,null,""]
[570,null,null,null,null,""]
[571,null,null,null,null,""]
[572,null,null,null,null,""]
[573,null,null,null,null,""]
[574,null,null,null,null,""]
[575,null,null,null,null,""]
[576,null,null,null,null,""]
[577,null,null,null,null,""]
[578,null,null,null,null,{"$f":"IF(E583=\"\",\"\",IF(OR(E583=\"weiß 9016\",E583=\"zinkgelb 1018\",E583=\"narzissengelb 1007\",E583=\"orange 2010\",E583=\"tomatenrot 3013\",E583=\"gold 1036\",E583=\"silber 9006\"),\"schwarz\",\"weiß\"))","v":""}]
[579,null,null,null,null,""]
[580,null,null,null,null,""]
[581,null,null,null,null,""]
[582,null,null,null,null,""]
[583,null,null,null,null,""]
[584,null,null,null,null,""]
[585,null,null,null,null,""]
[586,null,null,null,null,""]
[587,null,null,null,null,""]
[588,null,null,null,null,""]
[589,null,null,null,null,""]
[590,null,null,null,null,""]
[591,null,null,null,null,""]
[592,null,null,null,null,""]
[593,null,null,null,null,""]
[594,null,null,null,null,""]
[595,null,null,null,null,""]
[596,null,null,null,null,""]
[597,null,null,null,null,""]
[598,null,null,null,null,""]
[599,null,null,null,null,""]
[600,null,null,null,null,""]
[601,null,null,null,null,""]
[602,null,null,null,null,""]
[603,null,null,null,null,""]
[604,null,null,null,null,""]
[605,null,null,null,null,""]
[606,null,null,null,null,""]
[607,null,null,null,null,""]
[608,null,null,null,null,""]
[609,null,null,null,null,""]
[610,null,null,null,null,""]
[611,null,null,null,null,""]
[612,null,null,null,null,""]
[613,null,null,null,null,""]
[614,null,null,null,null,""]
[615,null,null,null,null,""]
[616,null,null,null,null,""]
[617,null,null,null,null,""]
[618,null,null,null,null,""]
[619,null,null,null,null,""]
[620,null,null,null,null,""]
[621,null,null,null,null,""]
[622,null,null,null,null,""]
[623,null,null,null,null,""]
[624,null,null,null,null,""]
[625,null,null,null,null,""]
[626,null,null,null,null,""]
[627,null,null,null,null,""]
[628,null,null,null,null,""]
[629,null,null,null,null,""]
[630,null,null,null,null,""]
[631,null,null,null,null,""]
[632,null,null,null,null,""]
[633,null,null,null,null,""]
[634,null,null,null,null,""]
[635,null,null,null,null,""]
[636,null,null,null,null,""]
[637,null,null,null,null,""]
[638,null,null,null,null,""]
[639,null,null,null,null,""]
[640,null,null,null,null,""]
[641,null,null,null,null,""]
[642,null,null,null,null,{"$f":"IF(E647=\"\",\"\",IF(OR(E647=\"weiß 9016\",E647=\"zinkgelb 1018\",E647=\"narzissengelb 1007\",E647=\"orange 2010\",E647=\"tomatenrot 3013\",E647=\"gold 1036\",E647=\"silber 9006\"),\"schwarz\",\"weiß\"))","v":""}]
[643,null,null,null,null,""]
[644,null,null,null,null,""]
[645,null,null,null,null,""]
[646,null,null,null,null,""]
[647,null,null,null,null,""]
[648,null,null,null,null,""]
[649,null,null,null,null,""]
[650,null,null,null,null,""]
[651,null,null,null,null,""]
[652,null,null,null,null,""]
[653,null,null,null,null,""]
[654,null,null,null,null,""]
[655,null,null,null,null,""]
[656,null,null,null,null,""]
[657,null,null,null,null,""]
[658,null,null,null,null,""]
[659,null,null,null,null,""]
[660,null,null,null,null,""]
[661,null,null,null,null,""]
[662,null,null,null,null,""]
[663,null,null,null,null,""]
[664,null,null,null,null,""]
[665,null,null,null,null,""]
[666,null,null,null,null,""]
[667,null,null,null,null,""]
[668,null,null,null,null,""]
[669,null,null,null,null,""]
[670,null,null,null,null,""]
[671,null,null,null,null,""]
[672,null,null,null,null,""]
[673,null,null,null,null,""]
[674,null,null,null,null,""]
[675,null,null,null,null,""]
[676,null,null,null,null,""]
[677,null,null,null,null,""]
[678,null,null,null,null,""]
[679,null,null,null,null,""]
[680,null,null,null,null,""]
[681,null,null,null,null,""]
[682,null,null,null,null,""]
[683,null,null,null,null,""]
[684,null,null,null,null,""]
[685,null,null,null,null,""]
[686,null,null,null,null,""]
[687,null,null,null,null,""]
[688,null,null,null,null,""]
[689,null,null,null,null,""]
[690,null,null,null,null,""]
[691,null,null,null,null,""]
[692,null,null,null,null,""]
[693,null,null,null,null,""]
[694,null,null,null,null,""]
[695,null,null,null,null,""]
[696,null,null,null,null,""]
[697,null,null,null,null,""]
[698,null,null,null,null,""]
[699,null,null,null,null,""]
[700,null,null,null,null,""]
[701,null,null,null,null,""]
[702,null,null,null,null,""]
[703,null,null,null,null,""]
[704,null,null,null,null,""]
[705,null,null,null,null,""]
[706,null,null,null,null,{"$f":"IF(E711=\"\",\"\",IF(OR(E711=\"weiß 9016\",E711=\"zinkgelb 1018\",E711=\"narzissengelb 1007\",E711=\"orange 2010\",E711=\"tomatenrot 3013\",E711=\"gold 1036\",E711=\"silber 9006\"),\"schwarz\",\"weiß\"))","v":""}]
[707,null,null,null,null,""]
[708,null,null,null,null,""]
[709,null,null,null,null,""]
[710,null,null,null,null,""]
[711,null,null,null,null,""]
[712,null,null,null,null,""]
[713,null,null,null,null,""]
[714,null,null,null,null,""]
[715,null,null,null,null,""]
[716,null,null,null,null,""]
[717,null,null,null,null,""]
[718,null,null,null,null,""]
[719,null,null,null,null,""]
[720,null,null,null,null,""]
[721,null,null,null,null,""]
[722,null,null,null,null,""]
[723,null,null,null,null,""]
[724,null,null,null,null,""]
[725,null,null,null,null,""]
[726,null,null,null,null,""]
[727,null,null,null,null,""]
[728,null,null,null,null,""]
[729,null,null,null,null,""]
[730,null,null,null,null,""]
[731,null,null,null,null,""]
[732,null,null,null,null,""]
[733,null,null,null,null,""]
[734,null,null,null,null,""]
[735,null,null,null,null,""]
[736,null,null,null,null,""]
[737,null,null,null,null,""]
[738,null,null,null,null,""]
[739,null,null,null,null,""]
[740,null,null,null,null,""]
[741,null,null,null,null,""]
[742,null,null,null,null,""]
[743,null,null,null,null,""]
[744,null,null,null,null,""]
[745,null,null,null,null,""]
[746,null,null,null,null,""]
[747,null,null,null,null,""]
[748,null,null,null,null,""]
[749,null,null,null,null,""]
[750,null,null,null,null,""]
[751,null,null,null,null,""]
[752,null,null,null,null,""]
[753,null,null,null,null,""]
[754,null,null,null,null,""]
[755,null,null,null,null,""]
[756,null,null,null,null,""]
[757,null,null,null,null,""]
[758,null,null,null,null,""]
[759,null,null,null,null,""]
[760,null,null,null,null,""]
[761,null,null,null,null,""]
[762,null,null,null,null,""]
[763,null,null,null,null,""]
[764,null,null,null,null,""]
[765,null,null,null,null,""]
[766,null,null,null,null,""]
[767,null,null,null,null,""]
[768,null,null,null,null,""]
[769,null,null,null,null,""]
[770,null,null,null,null,{"$f":"IF(E775=\"\",\"\",IF(OR(E775=\"weiß 9016\",E775=\"zinkgelb 1018\",E775=\"narzissengelb 1007\",E775=\"orange 2010\",E775=\"tomatenrot 3013\",E775=\"gold 1036\",E775=\"silber 9006\"),\"schwarz\",\"weiß\"))","v":""}]
[771,null,null,null,null,""]
[772,null,null,null,null,""]
[773,null,null,null,null,""]
[774,null,null,null,null,""]
[775,null,null,null,null,""]
[776,null,null,null,null,""]
[777,null,null,null,null,""]
[778,null,null,null,null,""]
[779,null,null,null,null,""]
[780,null,null,null,null,""]
[781,null,null,null,null,""]
[782,null,null,null,null,""]
[783,null,null,null,null,""]
[784,null,null,null,null,""]
[785,null,null,null,null,""]
[786,null,null,null,null,""]
[787,null,null,null,null,""]
[788,null,null,null,null,""]
[789,null,null,null,null,""]
[790,null,null,null,null,""]
[791,null,null,null,null,""]
[792,null,null,null,null,""]
[793,null,null,null,null,""]
[794,null,null,null,null,""]
[795,null,null,null,null,""]
[796,null,null,null,null,""]
[797,null,null,null,null,""]
[798,null,null,null,null,""]
[799,null,null,null,null,""]
[800,null,null,null,null,""]
[801,null,null,null,null,""]
[802,null,null,null,null,""]
[803,null,null,null,null,""]
[804,null,null,null,null,""]
[805,null,null,null,null,""]
[806,null,null,null,null,""]
[807,null,null,null,null,""]
[808,null,null,null,null,""]
[809,null,null,null,null,""]
[810,null,null,null,null,""]
[811,null,null,null,null,""]
[812,null,null,null,null,""]
[813,null,null,null,null,""]
[814,null,null,null,null,""]
[815,null,null,null,null,""]
[816,null,null,null,null,""]
[817,null,null,null,null,""]
[818,null,null,null,null,""]
[819,null,null,null,null,""]
[820,null,null,null,null,""]
[821,null,null,null,null,""]
[822,null,null,null,null,""]
[823,null,null,null,null,""]
[824,null,null,null,null,""]
[825,null,null,null,null,""]
[826,null,null,null,null,""]
[827,null,null,null,null,""]
[828,null,null,null,null,""]
[829,null,null,null,null,""]
[830,null,null,null,null,""]
[831,null,null,null,null,""]
[832,null,null,null,null,""]
[833,null,null,null,null,""]
[834,null,null,null,null,{"$f":"IF(E839=\"\",\"\",IF(OR(E839=\"weiß 9016\",E839=\"zinkgelb 1018\",E839=\"narzissengelb 1007\",E839=\"orange 2010\",E839=\"tomatenrot 3013\",E839=\"gold 1036\",E839=\"silber 9006\"),\"schwarz\",\"weiß\"))","v":""}]
[835,null,null,null,null,""]
[836,null,null,null,null,""]
[837,null,null,null,null,""]
[838,null,null,null,null,""]
[839,null,null,null,null,""]
[840,null,null,null,null,""]
[841,null,null,null,null,""]
[842,null,null,null,null,""]
[843,null,null,null,null,""]
[844,null,null,null,null,""]
[845,null,null,null,null,""]
[846,null,null,null,null,""]
[847,null,null,null,null,""]
[848,null,null,null,null,""]
[849,null,null,null,null,""]
[850,null,null,null,null,""]
[851,null,null,null,null,""]
[852,null,null,null,null,""]
[853,null,null,null,null,""]
[854,null,null,null,null,""]
[855,null,null,null,null,""]
[856,null,null,null,null,""]
[857,null,null,null,null,""]
[858,null,null,null,null,""]
[859,null,null,null,null,""]
[860,null,null,null,null,""]
[861,null,null,null,null,""]
[862,null,null,null,null,""]
[863,null,null,null,null,""]
[864,null,null,null,null,""]
[865,null,null,null,null,""]
[866,null,null,null,null,""]
[867,null,null,null,null,""]
[868,null,null,null,null,""]
[869,null,null,null,null,""]
[870,null,null,null,null,""]
[871,null,null,null,null,""]
[872,null,null,null,null,""]
[873,null,null,null,null,""]
[874,null,null,null,null,""]
[875,null,null,null,null,""]
[876,null,null,null,null,""]
[877,null,null,null,null,""]
[878,null,null,null,null,""]
[879,null,null,null,null,""]
[880,null,null,null,null,""]
[881,null,null,null,null,""]
[882,null,null,null,null,""]
[883,null,null,null,null,""]
[884,null,null,null,null,""]
[885,null,null,null,null,""]
[886,null,null,null,null,""]
[887,null,null,null,null,""]
[888,null,null,null,null,""]
[889,null,null,null,null,""]
[890,null,null,null,null,""]
[891,null,null,null,null,""]
[892,null,null,null,null,""]
[893,null,null,null,null,""]
[894,null,null,null,null,""]
[895,null,null,null,null,""]
[896,null,null,null,null,""]
[897,null,null,null,null,""]
[898,null,null,null,null,{"$f":"IF(E903=\"\",\"\",IF(OR(E903=\"weiß 9016\",E903=\"zinkgelb 1018\",E903=\"narzissengelb 1007\",E903=\"orange 2010\",E903=\"tomatenrot 3013\",E903=\"gold 1036\",E903=\"silber 9006\"),\"schwarz\",\"weiß\"))","v":""}]
[899,null,null,null,null,""]
[900,null,null,null,null,""]
[901,null,null,null,null,""]
[902,null,null,null,null,""]
[903,null,null,null,null,""]
[904,null,null,null,null,""]
[905,null,null,null,null,""]
[906,null,null,null,null,""]
[907,null,null,null,null,""]
[908,null,null,null,null,""]
[909,null,null,null,null,""]
[910,null,null,null,null,""]
[911,null,null,null,null,""]
[912,null,null,null,null,""]
[913,null,null,null,null,""]
[914,null,null,null,null,""]
[915,null,null,null,null,""]
[916,null,null,null,null,""]
[917,null,null,null,null,""]
[918,null,null,null,null,""]
[919,null,null,null,null,""]
[920,null,null,null,null,""]
[921,null,null,null,null,""]
[922,null,null,null,null,""]
[923,null,null,null,null,""]
[924,null,null,null,null,""]
[925,null,null,null,null,""]
[926,null,null,null,null,""]
[927,null,null,null,null,""]
[928,null,null,null,null,""]
[929,null,null,null,null,""]
[930,null,null,null,null,""]
[931,null,null,null,null,""]
[932,null,null,null,null,""]
[933,null,null,null,null,""]
[934,null,null,null,null,""]
[935,null,null,null,null,""]
[936,null,null,null,null,""]
[937,null,null,null,null,""]
[938,null,null,null,null,""]
[939,null,null,null,null,""]
[940,null,null,null,null,""]
[941,null,null,null,null,""]
[942,null,null,null,null,""]
[943,null,null,null,null,""]
[944,null,null,null,null,""]
[945,null,null,null,null,""]
[946,null,null,null,null,""]
[947,null,null,null,null,""]
[948,null,null,null,null,""]
[949,null,null,null,null,""]
[950,null,null,null,null,""]
[951,null,null,null,null,""]
[952,null,null,null,null,""]
[953,null,null,null,null,""]
[954,null,null,null,null,""]
[955,null,null,null,null,""]
[956,null,null,null,null,""]
[957,null,null,null,null,""]
[958,null,null,null,null,""]
[959,null,null,null,null,""]
[960,null,null,null,null,""]
[961,null,null,null,null,""]
[962,null,null,null,null,{"$f":"IF(E967=\"\",\"\",IF(OR(E967=\"weiß 9016\",E967=\"zinkgelb 1018\",E967=\"narzissengelb 1007\",E967=\"orange 2010\",E967=\"tomatenrot 3013\",E967=\"gold 1036\",E967=\"silber 9006\"),\"schwarz\",\"weiß\"))","v":""}]
[963,null,null,null,null,""]
[964,null,null,null,null,""]
[965,null,null,null,null,""]
[966,null,null,null,null,""]
[967,null,null,null,null,""]
[968,null,null,null,null,""]
[969,null,null,null,null,""]
[970,null,null,null,null,""]
[971,null,null,null,null,""]
[972,null,null,null,null,""]
[973,null,null,null,null,""]
[974,null,null,null,null,""]
[975,null,null,null,null,""]
[976,null,null,null,null,""]
[977,null,null,null,null,""]
[978,null,null,null,null,""]
[979,null,null,null,null,""]
[980,null,null,null,null,""]
[981,null,null,null,null,""]
[982,null,null,null,null,""]
[983,null,null,null,null,""]
[984,null,null,null,null,""]
[985,null,null,null,null,""]
[986,null,null,null,null,""]
[987,null,null,null,null,""]
[988,null,null,null,null,""]
[989,null,null,null,null,""]
[990,null,null,null,null,""]
[991,null,null,null,null,""]
[992,null,null,null,null,""]
[993,null,null,null,null,""]
[994,null,null,null,null,""]
[995,null,null,null,null,""]
[996,null,null,null,null,""]
[997,null,null,null,null,""]
[998,null,null,null,null,""]
[999,null,null,null,null,""]
[1000,null,null,null,null,""]
[1001,null,null,null,null,""]
[1002,null,null,null,null,""]
[1003,null,null,null,null,""]
[1004,null,null,null,null,""]
[1005,null,null,null,null,""]
[1006,null,null,null,null,""]
[1007,null,null,null,null,""]
[1008,null,null,null,null,""]
[1009,null,null,null,null,""]
[1010,null,null,null,null,""]
[1011,null,null,null,null,""]
[1012,null,null,null,null,""]
[1013,null,null,null,null,""]
[1014,null,null,null,null,""]
[1015,null,null,null,null,""]
[1016,null,null,null,null,""]
[1017,null,null,null,null,""]
[1018,null,null,null,null,""]
[1019,null,null,null,null,""]
[1020,null,null,null,null,""]
[1021,null,null,null,null,""]
[1022,null,null,null,null,""]
[1023,null,null,null,null,""]
[1024,null,null,null,null,""]
[1025,null,null,null,null,""]
[1026,null,null,null,null,{"$f":"IF(E1031=\"\",\"\",IF(OR(E1031=\"weiß 9016\",E1031=\"zinkgelb 1018\",E1031=\"narzissengelb 1007\",E1031=\"orange 2010\",E1031=\"tomatenrot 3013\",E1031=\"gold 1036\",E1031=\"silber 9006\"),\"schwarz\",\"weiß\"))","v":""}]
[1027,null,null,null,null,""]
[1028,null,null,null,null,""]
[1029,null,null,null,null,""]
[1030,null,null,null,null,""]
[1031,null,null,null,null,""]
[1032,null,null,null,null,""]
[1033,null,null,null,null,""]
[1034,null,null,null,null,""]
[1035,null,null,null,null,""]
[1036,null,null,null,null,""]
[1037,null,null,null,null,""]
[1038,null,null,null,null,""]
[1039,null,null,null,null,""]
[1040,null,null,null,null,""]
[1041,null,null,null,null,""]
[1042,null,null,null,null,""]
[1043,null,null,null,null,""]
[1044,null,null,null,null,""]
[1045,null,null,null,null,""]
[1046,null,null,null,null,""]
[1047,null,null,null,null,""]
[1048,null,null,null,null,""]
[1049,null,null,null,null,""]
[1050,null,null,null,null,""]
[1051,null,null,null,null,""]
[1052,null,null,null,null,""]
[1053,null,null,null,null,""]
[1054,null,null,null,null,""]
[1055,null,null,null,null,""]
[1056,null,null,null,null,""]
[1057,null,null,null,null,""]
[1058,null,null,null,null,""]
[1059,null,null,null,null,""]
[1060,null,null,null,null,""]
[1061,null,null,null,null,""]
[1062,null,null,null,null,""]
[1063,null,null,null,null,""]
[1064,null,null,null,null,""]
[1065,null,null,null,null,""]
[1066,null,null,null,null,""]
[1067,null,null,null,null,""]
[1068,null,null,null,null,""]
[1069,null,null,null,null,""]
[1070,null,null,null,null,""]
[1071,null,null,null,null,""]
[1072,null,null,null,null,""]
[1073,null,null,null,null,""]
[1074,null,null,null,null,""]
[1075,null,null,null,null,""]
[1076,null,null,null,null,""]
[1077,null,null,null,null,""]
[1078,null,null,null,null,""]
[1079,null,null,null,null,""]
[1080,null,null,null,null,""]
[1081,null,null,null,null,""]
[1082,null,null,null,null,""]
[1083,null,null,null,null,""]
[1084,null,null,null,null,""]
[1085,null,null,null,null,""]
[1086,null,null,null,null,""]
[1087,null,null,null,null,""]
[1088,null,null,null,null,""]
[1089,null,null,null,null,""]
[1090,null,null,null,null,{"$f":"IF(E1095=\"\",\"\",IF(OR(E1095=\"weiß 9016\",E1095=\"zinkgelb 1018\",E1095=\"narzissengelb 1007\",E1095=\"orange 2010\",E1095=\"tomatenrot 3013\",E1095=\"gold 1036\",E1095=\"silber 9006\"),\"schwarz\",\"weiß\"))","v":""}]
[1091,null,null,null,null,""]
[1092,null,null,null,null,""]
[1093,null,null,null,null,""]
[1094,null,null,null,null,""]
[1095,null,null,null,null,""]
[1096,null,null,null,null,""]
[1097,null,null,null,null,""]
[1098,null,null,null,null,""]
[1099,null,null,null,null,""]
[1100,null,null,null,null,""]
[1101,null,null,null,null,""]
[1102,null,null,null,null,""]
[1103,null,null,null,null,""]
[1104,null,null,null,null,""]
[1105,null,null,null,null,""]
[1106,null,null,null,null,""]
[1107,null,null,null,null,""]
[1108,null,null,null,null,""]
[1109,null,null,null,null,""]
[1110,null,null,null,null,""]
[1111,null,null,null,null,""]
[1112,null,null,null,null,""]
[1113,null,null,null,null,""]
[1114,null,null,null,null,""]
[1115,null,null,null,null,""]
[1116,null,null,null,null,""]
[1117,null,null,null,null,""]
[1118,null,null,null,null,""]
[1119,null,null,null,null,""]
[1120,null,null,null,null,""]
[1121,null,null,null,null,""]
[1122,null,null,null,null,""]
[1123,null,null,null,null,""]
[1124,null,null,null,null,""]
[1125,null,null,null,null,""]
[1126,null,null,null,null,""]
[1127,null,null,null,null,""]
[1128,null,null,null,null,""]
[1129,null,null,null,null,""]
[1130,null,null,null,null,""]
[1131,null,null,null,null,""]
[1132,null,null,null,null,""]
[1133,null,null,null,null,""]
[1134,null,null,null,null,""]
[1135,null,null,null,null,""]
[1136,null,null,null,null,""]
[1137,null,null,null,null,""]
[1138,null,null,null,null,""]
[1139,null,null,null,null,""]
[1140,null,null,null,null,""]
[1141,null,null,null,null,""]
[1142,null,null,null,null,""]
[1143,null,null,null,null,""]
[1144,null,null,null,null,""]
[1145,null,null,null,null,""]
[1146,null,null,null,null,""]
[1147,null,null,null,null,""]
[1148,null,null,null,null,""]
[1149,null,null,null,null,""]
[1150,null,null,null,null,""]
[1151,null,null,null,null,""]
[1152,null,null,null,null,""]
[1153,null,null,null,null,""]
[1154,null,null,null,null,{"$f":"IF(E1159=\"\",\"\",IF(OR(E1159=\"weiß 9016\",E1159=\"zinkgelb 1018\",E1159=\"narzissengelb 1007\",E1159=\"orange 2010\",E1159=\"tomatenrot 3013\",E1159=\"gold 1036\",E1159=\"silber 9006\"),\"schwarz\",\"weiß\"))","v":""}]
[1155,null,null,null,null,""]
[1156,null,null,null,null,""]
[1157,null,null,null,null,""]
[1158,null,null,null,null,""]
[1159,null,null,null,null,""]
[1160,null,null,null,null,""]
[1161,null,null,null,null,""]
[1162,null,null,null,null,""]
[1163,null,null,null,null,""]
[1164,null,null,null,null,""]
[1165,null,null,null,null,""]
[1166,null,null,null,null,""]
[1167,null,null,null,null,""]
[1168,null,null,null,null,""]
[1169,null,null,null,null,""]
[1170,null,null,null,null,""]
[1171,null,null,null,null,""]
[1172,null,null,null,null,""]
[1173,null,null,null,null,""]
[1174,null,null,null,null,""]
[1175,null,null,null,null,""]
[1176,null,null,null,null,""]
[1177,null,null,null,null,""]
[1178,null,null,null,null,""]
[1179,null,null,null,null,""]
[1180,null,null,null,null,""]
[1181,null,null,null,null,""]
[1182,null,null,null,null,""]
[1183,null,null,null,null,""]
[1184,null,null,null,null,""]
[1185,null,null,null,null,""]
[1186,null,null,null,null,""]
[1187,null,null,null,null,""]
[1188,null,null,null,null,""]
[1189,null,null,null,null,""]
[1190,null,null,null,null,""]
[1191,null,null,null,null,""]
[1192,null,null,null,null,""]
[1193,null,null,null,null,""]
[1194,null,null,null,null,""]
[1195,null,null,null,null,""]
[1196,null,null,null,null,""]
[1197,null,null,null,null,""]
[1198,null,null,null,null,""]
[1199,null,null,null,null,""]
[1200,null,null,null,null,""]
[1201,null,null,null,null,""]
[1202,null,null,null,null,""]
[1203,null,null,null,null,""]
[1204,null,null,null,null,""]
[1205,null,null,null,null,""]
[1206,null,null,null,null,""]
[1207,null,null,null,null,""]
[1208,null,null,null,null,""]
[1209,null,null,null,null,""]
[1210,null,null,null,null,""]
[1211,null,null,null,null,""]
[1212,null,null,null,null,""]
[1213,null,null,null,null,""]
[1214,null,null,null,null,""]
[1215,null,null,null,null,""]
[1216,null,null,null,null,""]
[1217,null,null,null,null,""]
[1218,null,null,null,null,{"$f":"IF(E1223=\"\",\"\",IF(OR(E1223=\"weiß 9016\",E1223=\"zinkgelb 1018\",E1223=\"narzissengelb 1007\",E1223=\"orange 2010\",E1223=\"tomatenrot 3013\",E1223=\"gold 1036\",E1223=\"silber 9006\"),\"schwarz\",\"weiß\"))","v":""}]
[1219,null,null,null,null,""]
[1220,null,null,null,null,""]
[1221,null,null,null,null,""]
[1222,null,null,null,null,""]
[1223,null,null,null,null,""]
[1224,null,null,null,null,""]
[1225,null,null,null,null,""]
[1226,null,null,null,null,""]
[1227,null,null,null,null,""]
[1228,null,null,null,null,""]
[1229,null,null,null,null,""]
[1230,null,null,null,null,""]
[1231,null,null,null,null,""]
[1232,null,null,null,null,""]
[1233,null,null,null,null,""]
[1234,null,null,null,null,""]
[1235,null,null,null,null,""]
[1236,null,null,null,null,""]
[1237,null,null,null,null,""]
[1238,null,null,null,null,""]
[1239,null,null,null,null,""]
[1240,null,null,null,null,""]
[1241,null,null,null,null,""]
[1242,null,null,null,null,""]
[1243,null,null,null,null,""]
[1244,null,null,null,null,""]
[1245,null,null,null,null,""]
[1246,null,null,null,null,""]
[1247,null,null,null,null,""]
[1248,null,null,null,null,""]
[1249,null,null,null,null,""]
[1250,null,null,null,null,""]
[1251,null,null,null,null,""]
[1252,null,null,null,null,""]
[1253,null,null,null,null,""]
[1254,null,null,null,null,""]
[1255,null,null,null,null,""]
[1256,null,null,null,null,""]
[1257,null,null,null,null,""]
[1258,null,null,null,null,""]
[1259,null,null,null,null,""]
[1260,null,null,null,null,""]
[1261,null,null,null,null,""]
[1262,null,null,null,null,""]
[1263,null,null,null,null,""]
[1264,null,null,null,null,""]
[1265,null,null,null,null,""]
[1266,null,null,null,null,""]
[1267,null,null,null,null,""]
[1268,null,null,null,null,""]
[1269,null,null,null,null,""]
[1270,null,null,null,null,""]
[1271,null,null,null,null,""]
[1272,null,null,null,null,""]
[1273,null,null,null,null,""]
[1274,null,null,null,null,""]
[1275,null,null,null,null,""]
[1276,null,null,null,null,""]
[1277,null,null,null,null,""]
[1278,null,null,null,null,""]
[1279,null,null,null,null,""]
[1280,null,null,null,null,""]
[1281,null,null,null,null,""]
[1282,null,null,null,null,{"$f":"IF(E1287=\"\",\"\",IF(OR(E1287=\"weiß 9016\",E1287=\"zinkgelb 1018\",E1287=\"narzissengelb 1007\",E1287=\"orange 2010\",E1287=\"tomatenrot 3013\",E1287=\"gold 1036\",E1287=\"silber 9006\"),\"schwarz\",\"weiß\"))","v":""}]
[1283,null,null,null,null,""]
[1284,null,null,null,null,""]
[1285,null,null,null,null,""]
[1286,null,null,null,null,""]
[1287,null,null,null,null,""]
[1288,null,null,null,null,""]
[1289,null,null,null,null,""]
[1290,null,null,null,null,""]
[1291,null,null,null,null,""]
[1292,null,null,null,null,""]
[1293,null,null,null,null,""]
[1294,null,null,null,null,""]
[1295,null,null,null,null,""]
[1296,null,null,null,null,""]
[1297,null,null,null,null,""]
[1298,null,null,null,null,""]
[1299,null,null,null,null,""]
[1300,null,null,null,null,""]
[1301,null,null,null,null,""]
[1302,null,null,null,null,""]
[1303,null,null,null,null,""]
[1304,null,null,null,null,""]
[1305,null,null,null,null,""]
[1306,null,null,null,null,""]
[1307,null,null,null,null,""]
[1308,null,null,null,null,""]
[1309,null,null,null,null,""]
[1310,null,null,null,null,""]
[1311,null,null,null,null,""]
[1312,null,null,null,null,""]
[1313,null,null,null,null,""]
[1314,null,null,null,null,""]
[1315,null,null,null,null,""]
[1316,null,null,null,null,""]
[1317,null,null,null,null,""]
[1318,null,null,null,null,""]
[1319,null,null,null,null,""]
[1320,null,null,null,null,""]
[1321,null,null,null,null,""]
[1322,null,null,null,null,""]
[1323,null,null,null,null,""]
[1324,null,null,null,null,""]
[1325,null,null,null,null,""]
[1326,null,null,null,null,""]
[1327,null,null,null,null,""]
[1328,null,null,null,null,""]
[1329,null,null,null,null,""]
[1330,null,null,null,null,""]
[1331,null,null,null,null,""]
[1332,null,null,null,null,""]
[1333,null,null,null,null,""]
[1334,null,null,null,null,""]
[1335,null,null,null,null,""]
[1336,null,null,null,null,""]
[1337,null,null,null,null,""]
[1338,null,null,null,null,""]
[1339,null,null,null,null,""]
[1340,null,null,null,null,""]
[1341,null,null,null,null,""]
[1342,null,null,null,null,""]
[1343,null,null,null,null,""]
[1344,null,null,null,null,""]
[1345,null,null,null,null,""]
[1346,null,null,null,null,{"$f":"IF(E1351=\"\",\"\",IF(OR(E1351=\"weiß 9016\",E1351=\"zinkgelb 1018\",E1351=\"narzissengelb 1007\",E1351=\"orange 2010\",E1351=\"tomatenrot 3013\",E1351=\"gold 1036\",E1351=\"silber 9006\"),\"schwarz\",\"weiß\"))","v":""}]
[1347,null,null,null,null,""]
[1348,null,null,null,null,""]
[1349,null,null,null,null,""]
[1350,null,null,null,null,""]
[1351,null,null,null,null,""]
[1352,null,null,null,null,""]
[1353,null,null,null,null,""]
[1354,null,null,null,null,""]
[1355,null,null,null,null,""]
[1356,null,null,null,null,""]
[1357,null,null,null,null,""]
[1358,null,null,null,null,""]
[1359,null,null,null,null,""]
[1360,null,null,null,null,""]
[1361,null,null,null,null,""]
[1362,null,null,null,null,""]
[1363,null,null,null,null,""]
[1364,null,null,null,null,""]
[1365,null,null,null,null,""]
[1366,null,null,null,null,""]
[1367,null,null,null,null,""]
[1368,null,null,null,null,""]
[1369,null,null,null,null,""]
[1370,null,null,null,null,""]
[1371,null,null,null,null,""]
[1372,null,null,null,null,""]
[1373,null,null,null,null,""]
[1374,null,null,null,null,""]
[1375,null,null,null,null,""]
[1376,null,null,null,null,""]
[1377,null,null,null,null,""]
[1378,null,null,null,null,""]
[1379,null,null,null,null,""]
[1380,null,null,null,null,""]
[1381,null,null,null,null,""]
[1382,null,null,null,null,""]
[1383,null,null,null,null,""]
[1384,null,null,null,null,""]
[1385,null,null,null,null,""]
[1386,null,null,null,null,""]
[1387,null,null,null,null,""]
[1388,null,null,null,null,""]
[1389,null,null,null,null,""]
[1390,null,null,null,null,""]
[1391,null,null,null,null,""]
[1392,null,null,null,null,""]
[1393,null,null,null,null,""]
[1394,null,null,null,null,""]
[1395,null,null,null,null,""]
[1396,null,null,null,null,""]
[1397,null,null,null,null,""]
[1398,null,null,null,null,""]
[1399,null,null,null,null,""]
[1400,null,null,null,null,""]
[1401,null,null,null,null,""]
[1402,null,null,null,null,""]
[1403,null,null,null,null,""]
[1404,null,null,null,null,""]
[1405,null,null,null,null,""]
[1406,null,null,null,null,""]
[1407,null,null,null,null,""]
[1408,null,null,null,null,""]
[1409,null,null,null,null,""]
[1410,null,null,null,null,{"$f":"IF(E1415=\"\",\"\",IF(OR(E1415=\"weiß 9016\",E1415=\"zinkgelb 1018\",E1415=\"narzissengelb 1007\",E1415=\"orange 2010\",E1415=\"tomatenrot 3013\",E1415=\"gold 1036\",E1415=\"silber 9006\"),\"schwarz\",\"weiß\"))","v":""}]
[1411,null,null,null,null,""]
[1412,null,null,null,null,""]
[1413,null,null,null,null,""]
[1414,null,null,null,null,""]
[1415,null,null,null,null,""]
[1416,null,null,null,null,""]
[1417,null,null,null,null,""]
[1418,null,null,null,null,""]
[1419,null,null,null,null,""]
[1420,null,null,null,null,""]
[1421,null,null,null,null,""]
[1422,null,null,null,null,""]
[1423,null,null,null,null,""]
[1424,null,null,null,null,""]
[1425,null,null,null,null,""]
[1426,null,null,null,null,""]
[1427,null,null,null,null,""]
[1428,null,null,null,null,""]
[1429,null,null,null,null,""]
[1430,null,null,null,null,""]
[1431,null,null,null,null,""]
[1432,null,null,null,null,""]
[1433,null,null,null,null,""]
[1434,null,null,null,null,""]
[1435,null,null,null,null,""]
[1436,null,null,null,null,""]
[1437,null,null,null,null,""]
[1438,null,null,null,null,""]
[1439,null,null,null,null,""]
[1440,null,null,null,null,""]
[1441,null,null,null,null,""]
[1442,null,null,null,null,""]
[1443,null,null,null,null,""]
[1444,null,null,null,null,""]
[1445,null,null,null,null,""]
[1446,null,null,null,null,""]
[1447,null,null,null,null,""]
[1448,null,null,null,null,""]
[1449,null,null,null,null,""]
[1450,null,null,null,null,""]
[1451,null,null,null,null,""]
[1452,null,null,null,null,""]
[1453,null,null,null,null,""]
[1454,null,null,null,null,""]
[1455,null,null,null,null,""]
[1456,null,null,null,null,""]
[1457,null,null,null,null,""]
[1458,null,null,null,null,""]
[1459,null,null,null,null,""]
[1460,null,null,null,null,""]
[1461,null,null,null,null,""]
[1462,null,null,null,null,""]
[1463,null,null,null,null,""]
[1464,null,null,null,null,""]
[1465,null,null,null,null,""]
[1466,null,null,null,null,""]
[1467,null,null,null,null,""]
[1468,null,null,null,null,""]
[1469,null,null,null,null,""]
[1470,null,null,null,null,""]
[1471,null,null,null,null,""]
[1472,null,null,null,null,""]
[1473,null,null,null,null,""]
[1474,null,null,null,null,{"$f":"IF(E1479=\"\",\"\",IF(OR(E1479=\"weiß 9016\",E1479=\"zinkgelb 1018\",E1479=\"narzissengelb 1007\",E1479=\"orange 2010\",E1479=\"tomatenrot 3013\",E1479=\"gold 1036\",E1479=\"silber 9006\"),\"schwarz\",\"weiß\"))","v":""}]
[1475,null,null,null,null,""]
[1476,null,null,null,null,""]
[1477,null,null,null,null,""]
[1478,null,null,null,null,""]
[1479,null,null,null,null,""]
[1480,null,null,null,null,""]
[1481,null,null,null,null,""]
[1482,null,null,null,null,""]
[1483,null,null,null,null,""]
[1484,null,null,null,null,""]
[1485,null,null,null,null,""]
[1486,null,null,null,null,""]
[1487,null,null,null,null,""]
[1488,null,null,null,null,""]
[1489,null,null,null,null,""]
[1490,null,null,null,null,""]
[1491,null,null,null,null,""]
[1492,null,null,null,null,""]
[1493,null,null,null,null,""]
[1494,null,null,null,null,""]
[1495,null,null,null,null,""]
[1496,null,null,null,null,""]
[1497,null,null,null,null,""]
[1498,null,null,null,null,""]
[1499,null,null,null,null,""]
[1500,null,null,null,null,""]
[1501,null,null,null,null,""]
[1502,null,null,null,null,""]
[1503,null,null,null,null,""]
[1504,null,null,null,null,""]
[1505,null,null,null,null,""]
[1506,null,null,null,null,""]
[1507,null,null,null,null,""]
[1508,null,null,null,null,""]
[1509,null,null,null,null,""]
[1510,null,null,null,null,""]
[1511,null,null,null,null,""]
[1512,null,null,null,null,""]
[1513,null,null,null,null,""]
[1514,null,null,null,null,""]
[1515,null,null,null,null,""]
[1516,null,null,null,null,""]
[1517,null,null,null,null,""]
[1518,null,null,null,null,""]
[1519,null,null,null,null,""]
[1520,null,null,null,null,""]
[1521,null,null,null,null,""]
[1522,null,null,null,null,""]
[1523,null,null,null,null,""]
[1524,null,null,null,null,""]
[1525,null,null,null,null,""]
[1526,null,null,null,null,""]
[1527,null,null,null,null,""]
[1528,null,null,null,null,""]
[1529,null,null,null,null,""]
[1530,null,null,null,null,""]
[1531,null,null,null,null,""]
[1532,null,null,null,null,""]
[1533,null,null,null,null,""]
[1534,null,null,null,null,""]
[1535,null,null,null,null,""]
[1536,null,null,null,null,""]
[1537,null,null,null,null,""]
[1538,null,null,null,null,{"$f":"IF(E1543=\"\",\"\",IF(OR(E1543=\"weiß 9016\",E1543=\"zinkgelb 1018\",E1543=\"narzissengelb 1007\",E1543=\"orange 2010\",E1543=\"tomatenrot 3013\",E1543=\"gold 1036\",E1543=\"silber 9006\"),\"schwarz\",\"weiß\"))","v":""}]
[1539,null,null,null,null,""]
[1540,null,null,null,null,""]
[1541,null,null,null,null,""]
[1542,null,null,null,null,""]
[1543,null,null,null,null,""]
[1544,null,null,null,null,""]
[1545,null,null,null,null,""]
[1546,null,null,null,null,""]
[1547,null,null,null,null,""]
[1548,null,null,null,null,""]
[1549,null,null,null,null,""]
[1550,null,null,null,null,""]
[1551,null,null,null,null,""]
[1552,null,null,null,null,""]
[1553,null,null,null,null,""]
[1554,null,null,null,null,""]
[1555,null,null,null,null,""]
[1556,null,null,null,null,""]
[1557,null,null,null,null,""]
[1558,null,null,null,null,""]
[1559,null,null,null,null,""]
[1560,null,null,null,null,""]
[1561,null,null,null,null,""]
[1562,null,null,null,null,""]
[1563,null,null,null,null,""]
[1564,null,null,null,null,""]
[1565,null,null,null,null,""]
[1566,null,null,null,null,""]
[1567,null,null,null,null,""]
[1568,null,null,null,null,""]
[1569,null,null,null,null,""]
[1570,null,null,null,null,""]
[1571,null,null,null,null,""]
[1572,null,null,null,null,""]
[1573,null,null,null,null,""]
[1574,null,null,null,null,""]
[1575,null,null,null,null,""]
[1576,null,null,null,null,""]
[1577,null,null,null,null,""]
[1578,null,null,null,null,""]
[1579,null,null,null,null,""]
[1580,null,null,null,null,""]
[1581,null,null,null,null,""]
[1582,null,null,null,null,""]
[1583,null,null,null,null,""]
[1584,null,null,null,null,""]
[1585,null,null,null,null,""]
[1586,null,null,null,null,""]
[1587,null,null,null,null,""]
[1588,null,null,null,null,""]
[1589,null,null,null,null,""]
[1590,null,null,null,null,""]
[1591,null,null,null,null,""]
[1592,null,null,null,null,""]
[1593,null,null,null,null,""]
[1594,null,null,null,null,""]
[1595,null,null,null,null,""]
[1596,null,null,null,null,""]
[1597,null,null,null,null,""]
[1598,null,null,null,null,""]
[1599,null,null,null,null,""]
[1600,null,null,null,null,""]
[1601,null,null,null,null,""]
[1602,null,null,null,null,{"$f":"IF(E1607=\"\",\"\",IF(OR(E1607=\"weiß 9016\",E1607=\"zinkgelb 1018\",E1607=\"narzissengelb 1007\",E1607=\"orange 2010\",E1607=\"tomatenrot 3013\",E1607=\"gold 1036\",E1607=\"silber 9006\"),\"schwarz\",\"weiß\"))","v":""}]
[1603,null,null,null,null,""]
[1604,null,null,null,null,""]
[1605,null,null,null,null,""]
[1606,null,null,null,null,""]
[1607,null,null,null,null,""]
[1608,null,null,null,null,""]
[1609,null,null,null,null,""]
[1610,null,null,null,null,""]
[1611,null,null,null,null,""]
[1612,null,null,null,null,""]
[1613,null,null,null,null,""]
[1614,null,null,null,null,""]
[1615,null,null,null,null,""]
[1616,null,null,null,null,""]
[1617,null,null,null,null,""]
[1618,null,null,null,null,""]
[1619,null,null,null,null,""]
[1620,null,null,null,null,""]
[1621,null,null,null,null,""]
[1622,null,null,null,null,""]
[1623,null,null,null,null,""]
[1624,null,null,null,null,""]
[1625,null,null,null,null,""]
[1626,null,null,null,null,""]
[1627,null,null,null,null,""]
[1628,null,null,null,null,""]
[1629,null,null,null,null,""]
[1630,null,null,null,null,""]
[1631,null,null,null,null,""]
[1632,null,null,null,null,""]
[1633,null,null,null,null,""]
[1634,null,null,null,null,""]
[1635,null,null,null,null,""]
[1636,null,null,null,null,""]
[1637,null,null,null,null,""]
[1638,null,null,null,null,""]
[1639,null,null,null,null,""]
[1640,null,null,null,null,""]
[1641,null,null,null,null,""]
[1642,null,null,null,null,""]
[1643,null,null,null,null,""]
[1644,null,null,null,null,""]
[1645,null,null,null,null,""]
[1646,null,null,null,null,""]
[1647,null,null,null,null,""]
[1648,null,null,null,null,""]
[1649,null,null,null,null,""]
[1650,null,null,null,null,""]
[1651,null,null,null,null,""]
[1652,null,null,null,null,""]
[1653,null,null,null,null,""]
[1654,null,null,null,null,""]
[1655,null,null,null,null,""]
[1656,null,null,null,null,""]
[1657,null,null,null,null,""]
[1658,null,null,null,null,""]
[1659,null,null,null,null,""]
[1660,null,null,null,null,""]
[1661,null,null,null,null,""]
[1662,null,null,null,null,""]
[1663,null,null,null,null,""]
[1664,null,null,null,null,""]
[1665,null,null,null,null,""]
[1666,null,null,null,null,{"$f":"IF(E1671=\"\",\"\",IF(OR(E1671=\"weiß 9016\",E1671=\"zinkgelb 1018\",E1671=\"narzissengelb 1007\",E1671=\"orange 2010\",E1671=\"tomatenrot 3013\",E1671=\"gold 1036\",E1671=\"silber 9006\"),\"schwarz\",\"weiß\"))","v":""}]
[1667,null,null,null,null,""]
[1668,null,null,null,null,""]
[1669,null,null,null,null,""]
[1670,null,null,null,null,""]
[1671,null,null,null,null,""]
[1672,null,null,null,null,""]
[1673,null,null,null,null,""]
[1674,null,null,null,null,""]
[1675,null,null,null,null,""]
[1676,null,null,null,null,""]
[1677,null,null,null,null,""]
[1678,null,null,null,null,""]
[1679,null,null,null,null,""]
[1680,null,null,null,null,""]
[1681,null,null,null,null,""]
[1682,null,null,null,null,""]
[1683,null,null,null,null,""]
[1684,null,null,null,null,""]
[1685,null,null,null,null,""]
[1686,null,null,null,null,""]
[1687,null,null,null,null,""]
[1688,null,null,null,null,""]
[1689,null,null,null,null,""]
[1690,null,null,null,null,""]
[1691,null,null,null,null,""]
[1692,null,null,null,null,""]
[1693,null,null,null,null,""]
[1694,null,null,null,null,""]
[1695,null,null,null,null,""]
[1696,null,null,null,null,""]
[1697,null,null,null,null,""]
[1698,null,null,null,null,""]
[1699,null,null,null,null,""]
[1700,null,null,null,null,""]
[1701,null,null,null,null,""]
[1702,null,null,null,null,""]
[1703,null,null,null,null,""]
[1704,null,null,null,null,""]
[1705,null,null,null,null,""]
[1706,null,null,null,null,""]
[1707,null,null,null,null,""]
[1708,null,null,null,null,""]
[1709,null,null,null,null,""]
[1710,null,null,null,null,""]
[1711,null,null,null,null,""]
[1712,null,null,null,null,""]
[1713,null,null,null,null,""]
[1714,null,null,null,null,""]
[1715,null,null,null,null,""]
[1716,null,null,null,null,""]
[1717,null,null,null,null,""]
[1718,null,null,null,null,""]
[1719,null,null,null,null,""]
[1720,null,null,null,null,""]
[1721,null,null,null,null,""]
[1722,null,null,null,null,""]
[1723,null,null,null,null,""]
[1724,null,null,null,null,""]
[1725,null,null,null,null,""]
[1726,null,null,null,null,""]
[1727,null,null,null,null,""]
[1728,null,null,null,null,""]
[1729,null,null,null,null,""]
[1730,null,null,null,null,{"$f":"IF(E1735=\"\",\"\",IF(OR(E1735=\"weiß 9016\",E1735=\"zinkgelb 1018\",E1735=\"narzissengelb 1007\",E1735=\"orange 2010\",E1735=\"tomatenrot 3013\",E1735=\"gold 1036\",E1735=\"silber 9006\"),\"schwarz\",\"weiß\"))","v":""}]
[1731,null,null,null,null,""]
[1732,null,null,null,null,""]
[1733,null,null,null,null,""]
[1734,null,null,null,null,""]
[1735,null,null,null,null,""]
[1736,null,null,null,null,""]
[1737,null,null,null,null,""]
[1738,null,null,null,null,""]
[1739,null,null,null,null,""]
[1740,null,null,null,null,""]
[1741,null,null,null,null,""]
[1742,null,null,null,null,""]
[1743,null,null,null,null,""]
[1744,null,null,null,null,""]
[1745,null,null,null,null,""]
[1746,null,null,null,null,""]
[1747,null,null,null,null,""]
[1748,null,null,null,null,""]
[1749,null,null,null,null,""]
[1750,null,null,null,null,""]
[1751,null,null,null,null,""]
[1752,null,null,null,null,""]
[1753,null,null,null,null,""]
[1754,null,null,null,null,""]
[1755,null,null,null,null,""]
[1756,null,null,null,null,""]
[1757,null,null,null,null,""]
[1758,null,null,null,null,""]
[1759,null,null,null,null,""]
[1760,null,null,null,null,""]
[1761,null,null,null,null,""]
[1762,null,null,null,null,""]
[1763,null,null,null,null,""]
[1764,null,null,null,null,""]
[1765,null,null,null,null,""]
[1766,null,null,null,null,""]
[1767,null,null,null,null,""]
[1768,null,null,null,null,""]
[1769,null,null,null,null,""]
[1770,null,null,null,null,""]
[1771,null,null,null,null,""]
[1772,null,null,null,null,""]
[1773,null,null,null,null,""]
[1774,null,null,null,null,""]
[1775,null,null,null,null,""]
[1776,null,null,null,null,""]
[1777,null,null,null,null,""]
[1778,null,null,null,null,""]
[1779,null,null,null,null,""]
[1780,null,null,null,null,""]
[1781,null,null,null,null,""]
[1782,null,null,null,null,""]
[1783,null,null,null,null,""]
[1784,null,null,null,null,""]
[1785,null,null,null,null,""]
[1786,null,null,null,null,""]
[1787,null,null,null,null,""]
[1788,null,null,null,null,""]
[1789,null,null,null,null,""]
[1790,null,null,null,null,""]
[1791,null,null,null,null,""]
[1792,null,null,null,null,""]
[1793,null,null,null,null,""]
[1794,null,null,null,null,{"$f":"IF(E1799=\"\",\"\",IF(OR(E1799=\"weiß 9016\",E1799=\"zinkgelb 1018\",E1799=\"narzissengelb 1007\",E1799=\"orange 2010\",E1799=\"tomatenrot 3013\",E1799=\"gold 1036\",E1799=\"silber 9006\"),\"schwarz\",\"weiß\"))","v":""}]
[1795,null,null,null,null,""]
[1796,null,null,null,null,""]
[1797,null,null,null,null,""]
[1798,null,null,null,null,""]
[1799,null,null,null,null,""]
[1800,null,null,null,null,""]
[1801,null,null,null,null,""]
[1802,null,null,null,null,""]
[1803,null,null,null,null,""]
[1804,null,null,null,null,""]
[1805,null,null,null,null,""]
[1806,null,null,null,null,""]
[1807,null,null,null,null,""]
[1808,null,null,null,null,""]
[1809,null,null,null,null,""]
[1810,null,null,null,null,""]
[1811,null,null,null,null,""]
[1812,null,null,null,null,""]
[1813,null,null,null,null,""]
[1814,null,null,null,null,""]
[1815,null,null,null,null,""]
[1816,null,null,null,null,""]
[1817,null,null,null,null,""]
[1818,null,null,null,null,""]
[1819,null,null,null,null,""]
[1820,null,null,null,null,""]
[1821,null,null,null,null,""]
[1822,null,null,null,null,""]
[1823,null,null,null,null,""]
[1824,null,null,null,null,""]
[1825,null,null,null,null,""]
[1826,null,null,null,null,""]
[1827,null,null,null,null,""]
[1828,null,null,null,null,""]
[1829,null,null,null,null,""]
[1830,null,null,null,null,""]
[1831,null,null,null,null,""]
[1832,null,null,null,null,""]
[1833,null,null,null,null,""]
[1834,null,null,null,null,""]
[1835,null,null,null,null,""]
[1836,null,null,null,null,""]
[1837,null,null,null,null,""]
[1838,null,null,null,null,""]
[1839,null,null,null,null,""]
[1840,null,null,null,null,""]
[1841,null,null,null,null,""]
[1842,null,null,null,null,""]
[1843,null,null,null,null,""]
[1844,null,null,null,null,""]
[1845,null,null,null,null,""]
[1846,null,null,null,null,""]
[1847,null,null,null,null,""]
[1848,null,null,null,null,""]
[1849,null,null,null,null,""]
[1850,null,null,null,null,""]
[1851,null,null,null,null,""]
[1852,null,null,null,null,""]
[1853,null,null,null,null,""]
[1854,null,null,null,null,""]
[1855,null,null,null,null,""]
[1856,null,null,null,null,""]
[1857,null,null,null,null,""]
[1858,null,null,null,null,{"$f":"IF(E1863=\"\",\"\",IF(OR(E1863=\"weiß 9016\",E1863=\"zinkgelb 1018\",E1863=\"narzissengelb 1007\",E1863=\"orange 2010\",E1863=\"tomatenrot 3013\",E1863=\"gold 1036\",E1863=\"silber 9006\"),\"schwarz\",\"weiß\"))","v":""}]
[1859,null,null,null,null,""]
[1860,null,null,null,null,""]
[1861,null,null,null,null,""]
[1862,null,null,null,null,""]
[1863,null,null,null,null,""]
[1864,null,null,null,null,""]
[1865,null,null,null,null,""]
[1866,null,null,null,null,""]
[1867,null,null,null,null,""]
[1868,null,null,null,null,""]
[1869,null,null,null,null,""]
[1870,null,null,null,null,""]
[1871,null,null,null,null,""]
[1872,null,null,null,null,""]
[1873,null,null,null,null,""]
[1874,null,null,null,null,""]
[1875,null,null,null,null,""]
[1876,null,null,null,null,""]
[1877,null,null,null,null,""]
[1878,null,null,null,null,""]
[1879,null,null,null,null,""]
[1880,null,null,null,null,""]
[1881,null,null,null,null,""]
[1882,null,null,null,null,""]
[1883,null,null,null,null,""]
[1884,null,null,null,null,""]
[1885,null,null,null,null,""]
[1886,null,null,null,null,""]
[1887,null,null,null,null,""]
[1888,null,null,null,null,""]
[1889,null,null,null,null,""]
[1890,null,null,null,null,""]
[1891,null,null,null,null,""]
[1892,null,null,null,null,""]
[1893,null,null,null,null,""]
[1894,null,null,null,null,""]
[1895,null,null,null,null,""]
[1896,null,null,null,null,""]
[1897,null,null,null,null,""]
[1898,null,null,null,null,""]
[1899,null,null,null,null,""]
[1900,null,null,null,null,""]
[1901,null,null,null,null,""]
[1902,null,null,null,null,""]
[1903,null,null,null,null,""]
[1904,null,null,null,null,""]
[1905,null,null,null,null,""]
[1906,null,null,null,null,""]
[1907,null,null,null,null,""]
[1908,null,null,null,null,""]
[1909,null,null,null,null,""]
[1910,null,null,null,null,""]
[1911,null,null,null,null,""]
[1912,null,null,null,null,""]
[1913,null,null,null,null,""]
[1914,null,null,null,null,""]
[1915,null,null,null,null,""]
[1916,null,null,null,null,""]
[1917,null,null,null,null,""]
[1918,null,null,null,null,""]
[1919,null,null,null,null,""]
[1920,null,null,null,null,""]
[1921,null,null,null,null,""]
[1922,null,null,null,null,{"$f":"IF(E1927=\"\",\"\",IF(OR(E1927=\"weiß 9016\",E1927=\"zinkgelb 1018\",E1927=\"narzissengelb 1007\",E1927=\"orange 2010\",E1927=\"tomatenrot 3013\",E1927=\"gold 1036\",E1927=\"silber 9006\"),\"schwarz\",\"weiß\"))","v":""}]
[1923,null,null,null,null,""]
[1924,null,null,null,null,""]
[1925,null,null,null,null,""]
[1926,null,null,null,null,""]
[1927,null,null,null,null,""]
[1928,null,null,null,null,""]
[1929,null,null,null,null,""]
[1930,null,null,null,null,""]
[1931,null,null,null,null,""]
[1932,null,null,null,null,""]
[1933,null,null,null,null,""]
[1934,null,null,null,null,""]
[1935,null,null,null,null,""]
[1936,null,null,null,null,""]
[1937,null,null,null,null,""]
[1938,null,null,null,null,""]
[1939,null,null,null,null,""]
[1940,null,null,null,null,""]
[1941,null,null,null,null,""]
[1942,null,null,null,null,""]
[1943,null,null,null,null,""]
[1944,null,null,null,null,""]
[1945,null,null,null,null,""]
[1946,null,null,null,null,""]
[1947,null,null,null,null,""]
[1948,null,null,null,null,""]
[1949,null,null,null,null,""]
[1950,null,null,null,null,""]
[1951,null,null,null,null,""]
[1952,null,null,null,null,""]
[1953,null,null,null,null,""]
[1954,null,null,null,null,""]
[1955,null,null,null,null,""]
[1956,null,null,null,null,""]
[1957,null,null,null,null,""]
[1958,null,null,null,null,""]
[1959,null,null,null,null,""]
[1960,null,null,null,null,""]
[1961,null,null,null,null,""]
[1962,null,null,null,null,""]
[1963,null,null,null,null,""]
[1964,null,null,null,null,""]
[1965,null,null,null,null,""]
[1966,null,null,null,null,""]
[1967,null,null,null,null,""]
[1968,null,null,null,null,""]
[1969,null,null,null,null,""]
[1970,null,null,null,null,""]
[1971,null,null,null,null,""]
[1972,null,null,null,null,""]
[1973,null,null,null,null,""]
[1974,null,null,null,null,""]
[1975,null,null,null,null,""]
[1976,null,null,null,null,""]
[1977,null,null,null,null,""]
[1978,null,null,null,null,""]
[1979,null,null,null,null,""]
[1980,null,null,null,null,""]
[1981,null,null,null,null,""]
[1982,null,null,null,null,""]
[1983,null,null,null,null,""]
[1984,null,null,null,null,""]
[1985,null,null,null,null,""]
[1986,null,null,null,null,{"$f":"IF(E1991=\"\",\"\",IF(OR(E1991=\"weiß 9016\",E1991=\"zinkgelb 1018\",E1991=\"narzissengelb 1007\",E1991=\"orange 2010\",E1991=\"tomatenrot 3013\",E1991=\"gold 1036\",E1991=\"silber 9006\"),\"schwarz\",\"weiß\"))","v":""}]
[1987,null,null,null,null,""]
[1988,null,null,null,null,""]
[1989,null,null,null,null,""]
[1990,null,null,null,null,""]
[1991,null,null,null,null,""]
[1992,null,null,null,null,""]
[1993,null,null,null,null,""]
[1994,null,null,null,null,""]
[1995,null,null,null,null,""]
[1996,null,null,null,null,""]
[1997,null,null,null,null,""]
[1998,null,null,null,null,""]
[1999,null,null,null,null,""]
[2000,null,null,null,null,""]
[2001,null,null,null,null,""]
[2002,null,null,null,null,""]
[2003,null,null,null,null,""]
[2004,null,null,null,null,""]
[2005,null,null,null,null,""]
[2006,null,null,null,null,""]
[2007,null,null,null,null,""]
[2008,null,null,null,null,""]
[2009,null,null,null,null,""]
[2010,null,null,null,null,""]
[2011,null,null,null,null,""]
[2012,null,null,null,null,""]
[2013,null,null,null,null,""]
[2014,null,null,null,null,""]
[2015,null,null,null,null,""]
[2016,null,null,null,null,""]
[2017,null,null,null,null,""]
[2018,null,null,null,null,""]
[2019,null,null,null,null,""]
[2020,null,null,null,null,""]
[2021,null,null,null,null,""]
[2022,null,null,null,null,""]
[2023,null,null,null,null,""]
[2024,null,null,null,null,""]
[2025,null,null,null,null,""]
[2026,null,null,null,null,""]
[2027,null,null,null,null,""]
[2028,null,null,null,null,""]
[2029,null,null,null,null,""]
[2030,null,null,null,null,""]
[2031,null,null,null,null,""]
[2032,null,null,null,null,""]
[2033,null,null,null,null,""]
[2034,null,null,null,null,""]
[2035,null,null,null,null,""]
[2036,null,null,null,null,""]
[2037,null,null,null,null,""]
[2038,null,null,null,null,""]
[2039,null,null,null,null,""]
[2040,null,null,null,null,""]
[2041,null,null,null,null,""]
[2042,null,null,null,null,""]
[2043,null,null,null,null,""]
[2044,null,null,null,null,""]
[2045,null,null,null,null,""]
[2046,null,null,null,null,""]
[2047,null,null,null,null,""]
[2048,null,null,null,null,""]
[2049,null,null,null,null,""]
[2050,null,null,null,null,{"$f":"IF(E2055=\"\",\"\",IF(OR(E2055=\"weiß 9016\",E2055=\"zinkgelb 1018\",E2055=\"narzissengelb 1007\",E2055=\"orange 2010\",E2055=\"tomatenrot 3013\",E2055=\"gold 1036\",E2055=\"silber 9006\"),\"schwarz\",\"weiß\"))","v":""}]
[2051,null,null,null,null,""]
[2052,null,null,null,null,""]
[2053,null,null,null,null,""]
[2054,null,null,null,null,""]
[2055,null,null,null,null,""]
[2056,null,null,null,null,""]
[2057,null,null,null,null,""]
[2058,null,null,null,null,""]
[2059,null,null,null,null,""]
[2060,null,null,null,null,""]
[2061,null,null,null,null,""]
[2062,null,null,null,null,""]
[2063,null,null,null,null,""]
[2064,null,null,null,null,""]
[2065,null,null,null,null,""]
[2066,null,null,null,null,""]
[2067,null,null,null,null,""]
[2068,null,null,null,null,""]
[2069,null,null,null,null,""]
[2070,null,null,null,null,""]
[2071,null,null,null,null,""]
[2072,null,null,null,null,""]
[2073,null,null,null,null,""]
[2074,null,null,null,null,""]
[2075,null,null,null,null,""]
[2076,null,null,null,null,""]
[2077,null,null,null,null,""]
[2078,null,null,null,null,""]
[2079,null,null,null,null,""]
[2080,null,null,null,null,""]
[2081,null,null,null,null,""]
[2082,null,null,null,null,""]
[2083,null,null,null,null,""]
[2084,null,null,null,null,""]
[2085,null,null,null,null,""]
[2086,null,null,null,null,""]
[2087,null,null,null,null,""]
[2088,null,null,null,null,""]
[2089,null,null,null,null,""]
[2090,null,null,null,null,""]
[2091,null,null,null,null,""]
[2092,null,null,null,null,""]
[2093,null,null,null,null,""]
[2094,null,null,null,null,""]
[2095,null,null,null,null,""]
[2096,null,null,null,null,""]
[2097,null,null,null,null,""]
[2098,null,null,null,null,""]
[2099,null,null,null,null,""]
[2100,null,null,null,null,""]
[2101,null,null,null,null,""]
[2102,null,null,null,null,""]
[2103,null,null,null,null,""]
[2104,null,null,null,null,""]
[2105,null,null,null,null,""]
[2106,null,null,null,null,""]
[2107,null,null,null,null,""]
[2108,null,null,null,null,""]
[2109,null,null,null,null,""]
[2110,null,null,null,null,""]
[2111,null,null,null,null,""]
[2112,null,null,null,null,""]
[2113,null,null,null,null,""]
[2114,null,null,null,null,{"$f":"IF(E2119=\"\",\"\",IF(OR(E2119=\"weiß 9016\",E2119=\"zinkgelb 1018\",E2119=\"narzissengelb 1007\",E2119=\"orange 2010\",E2119=\"tomatenrot 3013\",E2119=\"gold 1036\",E2119=\"silber 9006\"),\"schwarz\",\"weiß\"))","v":""}]
[2115,null,null,null,null,""]
[2116,null,null,null,null,""]
[2117,null,null,null,null,""]
[2118,null,null,null,null,""]
[2119,null,null,null,null,""]
[2120,null,null,null,null,""]
[2121,null,null,null,null,""]
[2122,null,null,null,null,""]
[2123,null,null,null,null,""]
[2124,null,null,null,null,""]
[2125,null,null,null,null,""]
[2126,null,null,null,null,""]
[2127,null,null,null,null,""]
[2128,null,null,null,null,""]
[2129,null,null,null,null,""]
[2130,null,null,null,null,""]
[2131,null,null,null,null,""]
[2132,null,null,null,null,""]
[2133,null,null,null,null,""]
[2134,null,null,null,null,""]
[2135,null,null,null,null,""]
[2136,null,null,null,null,""]
[2137,null,null,null,null,""]
[2138,null,null,null,null,""]
[2139,null,null,null,null,""]
[2140,null,null,null,null,""]
[2141,null,null,null,null,""]
[2142,null,null,null,null,""]
[2143,null,null,null,null,""]
[2144,null,null,null,null,""]
[2145,null,null,null,null,""]
[2146,null,null,null,null,""]
[2147,null,null,null,null,""]
[2148,null,null,null,null,""]
[2149,null,null,null,null,""]
[2150,null,null,null,null,""]
[2151,null,null,null,null,""]
[2152,null,null,null,null,""]
[2153,null,null,null,null,""]
[2154,null,null,null,null,""]
[2155,null,null,null,null,""]
[2156,null,null,null,null,""]
[2157,null,null,null,null,""]
[2158,null,null,null,null,""]
[2159,null,null,null,null,""]
[2160,null,null,null,null,""]
[2161,null,null,null,null,""]
[2162,null,null,null,null,""]
[2163,null,null,null,null,""]
[2164,null,null,null,null,""]
[2165,null,null,null,null,""]
[2166,null,null,null,null,""]
[2167,null,null,null,null,""]
[2168,null,null,null,null,""]
[2169,null,null,null,null,""]
[2170,null,null,null,null,""]
[2171,null,null,null,null,""]
[2172,null,null,null,null,""]
[2173,null,null,null,null,""]
[2174,null,null,null,null,""]
[2175,null,null,null,null,""]
[2176,null,null,null,null,""]
[2177,null,null,null,null,""]
[2178,null,null,null,null,{"$f":"IF(E2183=\"\",\"\",IF(OR(E2183=\"weiß 9016\",E2183=\"zinkgelb 1018\",E2183=\"narzissengelb 1007\",E2183=\"orange 2010\",E2183=\"tomatenrot 3013\",E2183=\"gold 1036\",E2183=\"silber 9006\"),\"schwarz\",\"weiß\"))","v":""}]
[2179,null,null,null,null,""]
[2180,null,null,null,null,""]
[2181,null,null,null,null,""]
[2182,null,null,null,null,""]
[2183,null,null,null,null,""]
[2184,null,null,null,null,""]
[2185,null,null,null,null,""]
[2186,null,null,null,null,""]
[2187,null,null,null,null,""]
[2188,null,null,null,null,""]
[2189,null,null,null,null,""]
[2190,null,null,null,null,""]
[2191,null,null,null,null,""]
[2192,null,null,null,null,""]
[2193,null,null,null,null,""]
[2194,null,null,null,null,""]
[2195,null,null,null,null,""]
[2196,null,null,null,null,""]
[2197,null,null,null,null,""]
[2198,null,null,null,null,""]
[2199,null,null,null,null,""]
[2200,null,null,null,null,""]
[2201,null,null,null,null,""]
[2202,null,null,null,null,""]
[2203,null,null,null,null,""]
[2204,null,null,null,null,""]
[2205,null,null,null,null,""]
[2206,null,null,null,null,""]
[2207,null,null,null,null,""]
[2208,null,null,null,null,""]
[2209,null,null,null,null,""]
[2210,null,null,null,null,""]
[2211,null,null,null,null,""]
[2212,null,null,null,null,""]
[2213,null,null,null,null,""]
[2214,null,null,null,null,""]
[2215,null,null,null,null,""]
[2216,null,null,null,null,""]
[2217,null,null,null,null,""]
[2218,null,null,null,null,""]
[2219,null,null,null,null,""]
[2220,null,null,null,null,""]
[2221,null,null,null,null,""]
[2222,null,null,null,null,""]
[2223,null,null,null,null,""]
[2224,null,null,null,null,""]
[2225,null,null,null,null,""]
[2226,null,null,null,null,""]
[2227,null,null,null,null,""]
[2228,null,null,null,null,""]
[2229,null,null,null,null,""]
[2230,null,null,null,null,""]
[2231,null,null,null,null,""]
[2232,null,null,null,null,""]
[2233,null,null,null,null,""]
[2234,null,null,null,null,""]
[2235,null,null,null,null,""]
[2236,null,null,null,null,""]
[2237,null,null,null,null,""]
[2238,null,null,null,null,""]
[2239,null,null,null,null,""]
[2240,null,null,null,null,""]
[2241,null,null,null,null,""]
[2242,null,null,null,null,{"$f":"IF(E2247=\"\",\"\",IF(OR(E2247=\"weiß 9016\",E2247=\"zinkgelb 1018\",E2247=\"narzissengelb 1007\",E2247=\"orange 2010\",E2247=\"tomatenrot 3013\",E2247=\"gold 1036\",E2247=\"silber 9006\"),\"schwarz\",\"weiß\"))","v":""}]
[2243,null,null,null,null,""]
[2244,null,null,null,null,""]
[2245,null,null,null,null,""]
[2246,null,null,null,null,""]
[2247,null,null,null,null,""]
[2248,null,null,null,null,""]
[2249,null,null,null,null,""]
[2250,null,null,null,null,""]
[2251,null,null,null,null,""]
[2252,null,null,null,null,""]
[2253,null,null,null,null,""]
[2254,null,null,null,null,""]
[2255,null,null,null,null,""]
[2256,null,null,null,null,""]
[2257,null,null,null,null,""]
[2258,null,null,null,null,""]
[2259,null,null,null,null,""]
[2260,null,null,null,null,""]
[2261,null,null,null,null,""]
[2262,null,null,null,null,""]
[2263,null,null,null,null,""]
[2264,null,null,null,null,""]
[2265,null,null,null,null,""]
[2266,null,null,null,null,""]
[2267,null,null,null,null,""]
[2268,null,null,null,null,""]
[2269,null,null,null,null,""]
[2270,null,null,null,null,""]
[2271,null,null,null,null,""]
[2272,null,null,null,null,""]
[2273,null,null,null,null,""]
[2274,null,null,null,null,""]
[2275,null,null,null,null,""]
[2276,null,null,null,null,""]
[2277,null,null,null,null,""]
[2278,null,null,null,null,""]
[2279,null,null,null,null,""]
[2280,null,null,null,null,""]
[2281,null,null,null,null,""]
[2282,null,null,null,null,""]
[2283,null,null,null,null,""]
[2284,null,null,null,null,""]
[2285,null,null,null,null,""]
[2286,null,null,null,null,""]
[2287,null,null,null,null,""]
[2288,null,null,null,null,""]
[2289,null,null,null,null,""]
[2290,null,null,null,null,""]
[2291,null,null,null,null,""]
[2292,null,null,null,null,""]
[2293,null,null,null,null,""]
[2294,null,null,null,null,""]
[2295,null,null,null,null,""]
[2296,null,null,null,null,""]
[2297,null,null,null,null,""]
[2298,null,null,null,null,""]
[2299,null,null,null,null,""]
[2300,null,null,null,null,""]
[2301,null,null,null,null,""]
[2302,null,null,null,null,""]
[2303,null,null,null,null,""]
[2304,null,null,null,null,""]
[2305,null,null,null,null,""]
[2306,null,null,null,null,{"$f":"IF(E2311=\"\",\"\",IF(OR(E2311=\"weiß 9016\",E2311=\"zinkgelb 1018\",E2311=\"narzissengelb 1007\",E2311=\"orange 2010\",E2311=\"tomatenrot 3013\",E2311=\"gold 1036\",E2311=\"silber 9006\"),\"schwarz\",\"weiß\"))","v":""}]
[2307,null,null,null,null,""]
[2308,null,null,null,null,""]
[2309,null,null,null,null,""]
[2310,null,null,null,null,""]
[2311,null,null,null,null,""]
[2312,null,null,null,null,""]
[2313,null,null,null,null,""]
[2314,null,null,null,null,""]
[2315,null,null,null,null,""]
[2316,null,null,null,null,""]
[2317,null,null,null,null,""]
[2318,null,null,null,null,""]
[2319,null,null,null,null,""]
[2320,null,null,null,null,""]
[2321,null,null,null,null,""]
[2322,null,null,null,null,""]
[2323,null,null,null,null,""]
[2324,null,null,null,null,""]
[2325,null,null,null,null,""]
[2326,null,null,null,null,""]
[2327,null,null,null,null,""]
[2328,null,null,null,null,""]
[2329,null,null,null,null,""]
[2330,null,null,null,null,""]
[2331,null,null,null,null,""]
[2332,null,null,null,null,""]
[2333,null,null,null,null,""]
[2334,null,null,null,null,""]
[2335,null,null,null,null,""]
[2336,null,null,null,null,""]
[2337,null,null,null,null,""]
[2338,null,null,null,null,""]
[2339,null,null,null,null,""]
[2340,null,null,null,null,""]
[2341,null,null,null,null,""]
[2342,null,null,null,null,""]
[2343,null,null,null,null,""]
[2344,null,null,null,null,""]
[2345,null,null,null,null,""]
[2346,null,null,null,null,""]
[2347,null,null,null,null,""]
[2348,null,null,null,null,""]
[2349,null,null,null,null,""]
[2350,null,null,null,null,""]
[2351,null,null,null,null,""]
[2352,null,null,null,null,""]
[2353,null,null,null,null,""]
[2354,null,null,null,null,""]
[2355,null,null,null,null,""]
[2356,null,null,null,null,""]
[2357,null,null,null,null,""]
[2358,null,null,null,null,""]
[2359,null,null,null,null,""]
[2360,null,null,null,null,""]
[2361,null,null,null,null,""]
[2362,null,null,null,null,""]
[2363,null,null,null,null,""]
[2364,null,null,null,null,""]
[2365,null,null,null,null,""]
[2366,null,null,null,null,""]
[2367,null,null,null,null,""]
[2368,null,null,null,null,""]
[2369,null,null,null,null,""]
[2370,null,null,null,null,{"$f":"IF(E2375=\"\",\"\",IF(OR(E2375=\"weiß 9016\",E2375=\"zinkgelb 1018\",E2375=\"narzissengelb 1007\",E2375=\"orange 2010\",E2375=\"tomatenrot 3013\",E2375=\"gold 1036\",E2375=\"silber 9006\"),\"schwarz\",\"weiß\"))","v":""}]
[2371,null,null,null,null,""]
[2372,null,null,null,null,""]
[2373,null,null,null,null,""]
[2374,null,null,null,null,""]
[2375,null,null,null,null,""]
[2376,null,null,null,null,""]
[2377,null,null,null,null,""]
[2378,null,null,null,null,""]
[2379,null,null,null,null,""]
[2380,null,null,null,null,""]
[2381,null,null,null,null,""]
[2382,null,null,null,null,""]
[2383,null,null,null,null,""]
[2384,null,null,null,null,""]
[2385,null,null,null,null,""]
[2386,null,null,null,null,""]
[2387,null,null,null,null,""]
[2388,null,null,null,null,""]
[2389,null,null,null,null,""]
[2390,null,null,null,null,""]
[2391,null,null,null,null,""]
[2392,null,null,null,null,""]
[2393,null,null,null,null,""]
[2394,null,null,null,null,""]
[2395,null,null,null,null,""]
[2396,null,null,null,null,""]
[2397,null,null,null,null,""]
[2398,null,null,null,null,""]
[2399,null,null,null,null,""]
[2400,null,null,null,null,""]
[2401,null,null,null,null,""]
[2402,null,null,null,null,""]
[2403,null,null,null,null,""]
[2404,null,null,null,null,""]
[2405,null,null,null,null,""]
[2406,null,null,null,null,""]
[2407,null,null,null,null,""]
[2408,null,null,null,null,""]
[2409,null,null,null,null,""]
[2410,null,null,null,null,""]
[2411,null,null,null,null,""]
[2412,null,null,null,null,""]
[2413,null,null,null,null,""]
[2414,null,null,null,null,""]
[2415,null,null,null,null,""]
[2416,null,null,null,null,""]
[2417,null,null,null,null,""]
[2418,null,null,null,null,""]
[2419,null,null,null,null,""]
[2420,null,null,null,null,""]
[2421,null,null,null,null,""]
[2422,null,null,null,null,""]
[2423,null,null,null,null,""]
[2424,null,null,null,null,""]
[2425,null,null,null,null,""]
[2426,null,null,null,null,""]
[2427,null,null,null,null,""]
[2428,null,null,null,null,""]
[2429,null,null,null,null,""]
[2430,null,null,null,null,""]
[2431,null,null,null,null,""]
[2432,null,null,null,null,""]
[2433,null,null,null,null,""]
[2434,null,null,null,null,{"$f":"IF(E2439=\"\",\"\",IF(OR(E2439=\"weiß 9016\",E2439=\"zinkgelb 1018\",E2439=\"narzissengelb 1007\",E2439=\"orange 2010\",E2439=\"tomatenrot 3013\",E2439=\"gold 1036\",E2439=\"silber 9006\"),\"schwarz\",\"weiß\"))","v":""}]
[2435,null,null,null,null,""]
[2436,null,null,null,null,""]
[2437,null,null,null,null,""]
[2438,null,null,null,null,""]
[2439,null,null,null,null,""]
[2440,null,null,null,null,""]
[2441,null,null,null,null,""]
[2442,null,null,null,null,""]
[2443,null,null,null,null,""]
[2444,null,null,null,null,""]
[2445,null,null,null,null,""]
[2446,null,null,null,null,""]
[2447,null,null,null,null,""]
[2448,null,null,null,null,""]
[2449,null,null,null,null,""]
[2450,null,null,null,null,""]
[2451,null,null,null,null,""]
[2452,null,null,null,null,""]
[2453,null,null,null,null,""]
[2454,null,null,null,null,""]
[2455,null,null,null,null,""]
[2456,null,null,null,null,""]
[2457,null,null,null,null,""]
[2458,null,null,null,null,""]
[2459,null,null,null,null,""]
[2460,null,null,null,null,""]
[2461,null,null,null,null,""]
[2462,null,null,null,null,""]
[2463,null,null,null,null,""]
[2464,null,null,null,null,""]
[2465,null,null,null,null,""]
[2466,null,null,null,null,""]
[2467,null,null,null,null,""]
[2468,null,null,null,null,""]
[2469,null,null,null,null,""]
[2470,null,null,null,null,""]
[2471,null,null,null,null,""]
[2472,null,null,null,null,""]
[2473,null,null,null,null,""]
[2474,null,null,null,null,""]
[2475,null,null,null,null,""]
[2476,null,null,null,null,""]
[2477,null,null,null,null,""]
[2478,null,null,null,null,""]
[2479,null,null,null,null,""]
[2480,null,null,null,null,""]
[2481,null,null,null,null,""]
[2482,null,null,null,null,""]
[2483,null,null,null,null,""]
[2484,null,null,null,null,""]
[2485,null,null,null,null,""]
[2486,null,null,null,null,""]
[2487,null,null,null,null,""]
[2488,null,null,null,null,""]
[2489,null,null,null,null,""]
[2490,null,null,null,null,""]
[2491,null,null,null,null,""]
[2492,null,null,null,null,""]
[2493,null,null,null,null,""]
[2494,null,null,null,null,""]
[2495,null,null,null,null,""]
[2496,null,null,null,null,""]
[2497,null,null,null,null,""]
[2498,null,null,null,null,{"$f":"IF(E2503=\"\",\"\",IF(OR(E2503=\"weiß 9016\",E2503=\"zinkgelb 1018\",E2503=\"narzissengelb 1007\",E2503=\"orange 2010\",E2503=\"tomatenrot 3013\",E2503=\"gold 1036\",E2503=\"silber 9006\"),\"schwarz\",\"weiß\"))","v":""}]
[2499,null,null,null,null,""]
[2500,null,null,null,null,""]
[2501,null,null,null,null,""]
[2502,null,null,null,null,""]
[2503,null,null,null,null,""]
[2504,null,null,null,null,""]
[2505,null,null,null,null,""]
[2506,null,null,null,null,""]
[2507,null,null,null,null,""]
[2508,null,null,null,null,""]
[2509,null,null,null,null,""]
[2510,null,null,null,null,""]
[2511,null,null,null,null,""]
[2512,null,null,null,null,""]
[2513,null,null,null,null,""]
[2514,null,null,null,null,""]
[2515,null,null,null,null,""]
[2516,null,null,null,null,""]
[2517,null,null,null,null,""]
[2518,null,null,null,null,""]
[2519,null,null,null,null,""]
[2520,null,null,null,null,""]
[2521,null,null,null,null,""]
[2522,null,null,null,null,""]
[2523,null,null,null,null,""]
[2524,null,null,null,null,""]
[2525,null,null,null,null,""]
[2526,null,null,null,null,""]
[2527,null,null,null,null,""]
[2528,null,null,null,null,""]
[2529,null,null,null,null,""]
[2530,null,null,null,null,""]
[2531,null,null,null,null,""]
[2532,null,null,null,null,""]
[2533,null,null,null,null,""]
[2534,null,null,null,null,""]
[2535,null,null,null,null,""]
[2536,null,null,null,null,""]
[2537,null,null,null,null,""]
[2538,null,null,null,null,""]
[2539,null,null,null,null,""]
[2540,null,null,null,null,""]
[2541,null,null,null,null,""]
[2542,null,null,null,null,""]
[2543,null,null,null,null,""]
[2544,null,null,null,null,""]
[2545,null,null,null,null,""]
[2546,null,null,null,null,""]
[2547,null,null,null,null,""]
[2548,null,null,null,null,""]
[2549,null,null,null,null,""]
[2550,null,null,null,null,""]
[2551,null,null,null,null,""]
[2552,null,null,null,null,""]
[2553,null,null,null,null,""]
[2554,null,null,null,null,""]
[2555,null,null,null,null,""]
[2556,null,null,null,null,""]
[2557,null,null,null,null,""]
[2558,null,null,null,null,""]
[2559,null,null,null,null,""]
[2560,null,null,null,null,""]
[2561,null,null,null,null,""]
[2562,null,null,null,null,{"$f":"IF(E2567=\"\",\"\",IF(OR(E2567=\"weiß 9016\",E2567=\"zinkgelb 1018\",E2567=\"narzissengelb 1007\",E2567=\"orange 2010\",E2567=\"tomatenrot 3013\",E2567=\"gold 1036\",E2567=\"silber 9006\"),\"schwarz\",\"weiß\"))","v":""}]
[2563,null,null,null,null,""]
[2564,null,null,null,null,""]
[2565,null,null,null,null,""]
[2566,null,null,null,null,""]
[2567,null,null,null,null,""]
[2568,null,null,null,null,""]
[2569,null,null,null,null,""]
[2570,null,null,null,null,""]
[2571,null,null,null,null,""]
[2572,null,null,null,null,""]
[2573,null,null,null,null,""]
[2574,null,null,null,null,""]
[2575,null,null,null,null,""]
[2576,null,null,null,null,""]
[2577,null,null,null,null,""]
[2578,null,null,null,null,""]
[2579,null,null,null,null,""]
[2580,null,null,null,null,""]
[2581,null,null,null,null,""]
[2582,null,null,null,null,""]
[2583,null,null,null,null,""]
[2584,null,null,null,null,""]
[2585,null,null,null,null,""]
[2586,null,null,null,null,""]
[2587,null,null,null,null,""]
[2588,null,null,null,null,""]
[2589,null,null,null,null,""]
[2590,null,null,null,null,""]
[2591,null,null,null,null,""]
[2592,null,null,null,null,""]
[2593,null,null,null,null,""]
[2594,null,null,null,null,""]
[2595,null,null,null,null,""]
[2596,null,null,null,null,""]
[2597,null,null,null,null,""]
[2598,null,null,null,null,""]
[2599,null,null,null,null,""]
[2600,null,null,null,null,""]
[2601,null,null,null,null,""]
[2602,null,null,null,null,""]
[2603,null,null,null,null,""]
[2604,null,null,null,null,""]
[2605,null,null,null,null,""]
[2606,null,null,null,null,""]
[2607,null,null,null,null,""]
[2608,null,null,null,null,""]
[2609,null,null,null,null,""]
[2610,null,null,null,null,""]
[2611,null,null,null,null,""]
[2612,null,null,null,null,""]
[2613,null,null,null,null,""]
[2614,null,null,null,null,""]
[2615,null,null,null,null,""]
[2616,null,null,null,null,""]
[2617,null,null,null,null,""]
[2618,null,null,null,null,""]
[2619,null,null,null,null,""]
[2620,null,null,null,null,""]
[2621,null,null,null,null,""]
[2622,null,null,null,null,""]
[2623,null,null,null,null,""]
[2624,null,null,null,null,""]
[2625,null,null,null,null,""]
[2626,null,null,null,null,{"$f":"IF(E2631=\"\",\"\",IF(OR(E2631=\"weiß 9016\",E2631=\"zinkgelb 1018\",E2631=\"narzissengelb 1007\",E2631=\"orange 2010\",E2631=\"tomatenrot 3013\",E2631=\"gold 1036\",E2631=\"silber 9006\"),\"schwarz\",\"weiß\"))","v":""}]
[2627,null,null,null,null,""]
[2628,null,null,null,null,""]
[2629,null,null,null,null,""]
[2630,null,null,null,null,""]
[2631,null,null,null,null,""]
[2632,null,null,null,null,""]
[2633,null,null,null,null,""]
[2634,null,null,null,null,""]
[2635,null,null,null,null,""]
[2636,null,null,null,null,""]
[2637,null,null,null,null,""]
[2638,null,null,null,null,""]
[2639,null,null,null,null,""]
[2640,null,null,null,null,""]
[2641,null,null,null,null,""]
[2642,null,null,null,null,""]
[2643,null,null,null,null,""]
[2644,null,null,null,null,""]
[2645,null,null,null,null,""]
[2646,null,null,null,null,""]
[2647,null,null,null,null,""]
[2648,null,null,null,null,""]
[2649,null,null,null,null,""]
[2650,null,null,null,null,""]
[2651,null,null,null,null,""]
[2652,null,null,null,null,""]
[2653,null,null,null,null,""]
[2654,null,null,null,null,""]
[2655,null,null,null,null,""]
[2656,null,null,null,null,""]
[2657,null,null,null,null,""]
[2658,null,null,null,null,""]
[2659,null,null,null,null,""]
[2660,null,null,null,null,""]
[2661,null,null,null,null,""]
[2662,null,null,null,null,""]
[2663,null,null,null,null,""]
[2664,null,null,null,null,""]
[2665,null,null,null,null,""]
[2666,null,null,null,null,""]
[2667,null,null,null,null,""]
[2668,null,null,null,null,""]
[2669,null,null,null,null,""]
[2670,null,null,null,null,""]
[2671,null,null,null,null,""]
[2672,null,null,null,null,""]
[2673,null,null,null,null,""]
[2674,null,null,null,null,""]
[2675,null,null,null,null,""]
[2676,null,null,null,null,""]
[2677,null,null,null,null,""]
[2678,null,null,null,null,""]
[2679,null,null,null,null,""]
[2680,null,null,null,null,""]
[2681,null,null,null,null,""]
[2682,null,null,null,null,""]
[2683,null,null,null,null,""]
[2684,null,null,null,null,""]
[2685,null,null,null,null,""]
[2686,null,null,null,null,""]
[2687,null,null,null,null,""]
[2688,null,null,null,null,""]
[2689,null,null,null,null,""]
[2690,null,null,null,null,{"$f":"IF(E2695=\"\",\"\",IF(OR(E2695=\"weiß 9016\",E2695=\"zinkgelb 1018\",E2695=\"narzissengelb 1007\",E2695=\"orange 2010\",E2695=\"tomatenrot 3013\",E2695=\"gold 1036\",E2695=\"silber 9006\"),\"schwarz\",\"weiß\"))","v":""}]
[2691,null,null,null,null,""]
[2692,null,null,null,null,""]
[2693,null,null,null,null,""]
[2694,null,null,null,null,""]
[2695,null,null,null,null,""]
[2696,null,null,null,null,""]
[2697,null,null,null,null,""]
[2698,null,null,null,null,""]
[2699,null,null,null,null,""]
[2700,null,null,null,null,""]
[2701,null,null,null,null,""]
[2702,null,null,null,null,""]
[2703,null,null,null,null,""]
[2704,null,null,null,null,""]
[2705,null,null,null,null,""]
[2706,null,null,null,null,""]
[2707,null,null,null,null,""]
[2708,null,null,null,null,""]
[2709,null,null,null,null,""]
[2710,null,null,null,null,""]
[2711,null,null,null,null,""]
[2712,null,null,null,null,""]
[2713,null,null,null,null,""]
[2714,null,null,null,null,""]
[2715,null,null,null,null,""]
[2716,null,null,null,null,""]
[2717,null,null,null,null,""]
[2718,null,null,null,null,""]
[2719,null,null,null,null,""]
[2720,null,null,null,null,""]
[2721,null,null,null,null,""]
[2722,null,null,null,null,""]
[2723,null,null,null,null,""]
[2724,null,null,null,null,""]
[2725,null,null,null,null,""]
[2726,null,null,null,null,""]
[2727,null,null,null,null,""]
[2728,null,null,null,null,""]
[2729,null,null,null,null,""]
[2730,null,null,null,null,""]
[2731,null,null,null,null,""]
[2732,null,null,null,null,""]
[2733,null,null,null,null,""]
[2734,null,null,null,null,""]
[2735,null,null,null,null,""]
[2736,null,null,null,null,""]
[2737,null,null,null,null,""]
[2738,null,null,null,null,""]
[2739,null,null,null,null,""]
[2740,null,null,null,null,""]
[2741,null,null,null,null,""]
[2742,null,null,null,null,""]
[2743,null,null,null,null,""]
[2744,null,null,null,null,""]
[2745,null,null,null,null,""]
[2746,null,null,null,null,""]
[2747,null,null,null,null,""]
[2748,null,null,null,null,""]
[2749,null,null,null,null,""]
[2750,null,null,null,null,""]
[2751,null,null,null,null,""]
[2752,null,null,null,null,""]
[2753,null,null,null,null,""]
[2754,null,null,null,null,{"$f":"IF(E2759=\"\",\"\",IF(OR(E2759=\"weiß 9016\",E2759=\"zinkgelb 1018\",E2759=\"narzissengelb 1007\",E2759=\"orange 2010\",E2759=\"tomatenrot 3013\",E2759=\"gold 1036\",E2759=\"silber 9006\"),\"schwarz\",\"weiß\"))","v":""}]
[2755,null,null,null,null,""]
[2756,null,null,null,null,""]
[2757,null,null,null,null,""]
[2758,null,null,null,null,""]
[2759,null,null,null,null,""]
[2760,null,null,null,null,""]
[2761,null,null,null,null,""]
[2762,null,null,null,null,""]
[2763,null,null,null,null,""]
[2764,null,null,null,null,""]
[2765,null,null,null,null,""]
[2766,null,null,null,null,""]
[2767,null,null,null,null,""]
[2768,null,null,null,null,""]
[2769,null,null,null,null,""]
[2770,null,null,null,null,""]
[2771,null,null,null,null,""]
[2772,null,null,null,null,""]
[2773,null,null,null,null,""]
[2774,null,null,null,null,""]
[2775,null,null,null,null,""]
[2776,null,null,null,null,""]
[2777,null,null,null,null,""]
[2778,null,null,null,null,""]
[2779,null,null,null,null,""]
[2780,null,null,null,null,""]
[2781,null,null,null,null,""]
[2782,null,null,null,null,""]
[2783,null,null,null,null,""]
[2784,null,null,null,null,""]
[2785,null,null,null,null,""]
[2786,null,null,null,null,""]
[2787,null,null,null,null,""]
[2788,null,null,null,null,""]
[2789,null,null,null,null,""]
[2790,null,null,null,null,""]
[2791,null,null,null,null,""]
[2792,null,null,null,null,""]
[2793,null,null,null,null,""]
[2794,null,null,null,null,""]
[2795,null,null,null,null,""]
[2796,null,null,null,null,""]
[2797,null,null,null,null,""]
[2798,null,null,null,null,""]
[2799,null,null,null,null,""]
[2800,null,null,null,null,""]
[2801,null,null,null,null,""]
[2802,null,null,null,null,""]
[2803,null,null,null,null,""]
[2804,null,null,null,null,""]
[2805,null,null,null,null,""]
[2806,null,null,null,null,""]
[2807,null,null,null,null,""]
[2808,null,null,null,null,""]
[2809,null,null,null,null,""]
[2810,null,null,null,null,""]
[2811,null,null,null,null,""]
[2812,null,null,null,null,""]
[2813,null,null,null,null,""]
[2814,null,null,null,null,""]
[2815,null,null,null,null,""]
[2816,null,null,null,null,""]
[2817,null,null,null,null,""]
[2818,null,null,null,null,{"$f":"IF(E2823=\"\",\"\",IF(OR(E2823=\"weiß 9016\",E2823=\"zinkgelb 1018\",E2823=\"narzissengelb 1007\",E2823=\"orange 2010\",E2823=\"tomatenrot 3013\",E2823=\"gold 1036\",E2823=\"silber 9006\"),\"schwarz\",\"weiß\"))","v":""}]
[2819,null,null,null,null,""]
[2820,null,null,null,null,""]
[2821,null,null,null,null,""]
[2822,null,null,null,null,""]
[2823,null,null,null,null,""]
[2824,null,null,null,null,""]
[2825,null,null,null,null,""]
[2826,null,null,null,null,""]
[2827,null,null,null,null,""]
[2828,null,null,null,null,""]
[2829,null,null,null,null,""]
[2830,null,null,null,null,""]
[2831,null,null,null,null,""]
[2832,null,null,null,null,""]
[2833,null,null,null,null,""]
[2834,null,null,null,null,""]
[2835,null,null,null,null,""]
[2836,null,null,null,null,""]
[2837,null,null,null,null,""]
[2838,null,null,null,null,""]
[2839,null,null,null,null,""]
[2840,null,null,null,null,""]
[2841,null,null,null,null,""]
[2842,null,null,null,null,""]
[2843,null,null,null,null,""]
[2844,null,null,null,null,""]
[2845,null,null,null,null,""]
[2846,null,null,null,null,""]
[2847,null,null,null,null,""]
[2848,null,null,null,null,""]
[2849,null,null,null,null,""]
[2850,null,null,null,null,""]
[2851,null,null,null,null,""]
[2852,null,null,null,null,""]
[2853,null,null,null,null,""]
[2854,null,null,null,null,""]
[2855,null,null,null,null,""]
[2856,null,null,null,null,""]
[2857,null,null,null,null,""]
[2858,null,null,null,null,""]
[2859,null,null,null,null,""]
[2860,null,null,null,null,""]
[2861,null,null,null,null,""]
[2862,null,null,null,null,""]
[2863,null,null,null,null,""]
[2864,null,null,null,null,""]
[2865,null,null,null,null,""]
[2866,null,null,null,null,""]
[2867,null,null,null,null,""]
[2868,null,null,null,null,""]
[2869,null,null,null,null,""]
[2870,null,null,null,null,""]
[2871,null,null,null,null,""]
[2872,null,null,null,null,""]
[2873,null,null,null,null,""]
[2874,null,null,null,null,""]
[2875,null,null,null,null,""]
[2876,null,null,null,null,""]
[2877,null,null,null,null,""]
[2878,null,null,null,null,""]
[2879,null,null,null,null,""]
[2880,null,null,null,null,""]
[2881,null,null,null,null,""]
[2882,null,null,null,null,{"$f":"IF(E2887=\"\",\"\",IF(OR(E2887=\"weiß 9016\",E2887=\"zinkgelb 1018\",E2887=\"narzissengelb 1007\",E2887=\"orange 2010\",E2887=\"tomatenrot 3013\",E2887=\"gold 1036\",E2887=\"silber 9006\"),\"schwarz\",\"weiß\"))","v":""}]
[2883,null,null,null,null,""]
[2884,null,null,null,null,""]
[2885,null,null,null,null,""]
[2886,null,null,null,null,""]
[2887,null,null,null,null,""]
[2888,null,null,null,null,""]
[2889,null,null,null,null,""]
[2890,null,null,null,null,""]
[2891,null,null,null,null,""]
[2892,null,null,null,null,""]
[2893,null,null,null,null,""]
[2894,null,null,null,null,""]
[2895,null,null,null,null,""]
[2896,null,null,null,null,""]
[2897,null,null,null,null,""]
[2898,null,null,null,null,""]
[2899,null,null,null,null,""]
[2900,null,null,null,null,""]
[2901,null,null,null,null,""]
[2902,null,null,null,null,""]
[2903,null,null,null,null,""]
[2904,null,null,null,null,""]
[2905,null,null,null,null,""]
[2906,null,null,null,null,""]
[2907,null,null,null,null,""]
[2908,null,null,null,null,""]
[2909,null,null,null,null,""]
[2910,null,null,null,null,""]
[2911,null,null,null,null,""]
[2912,null,null,null,null,""]
[2913,null,null,null,null,""]
[2914,null,null,null,null,""]
[2915,null,null,null,null,""]
[2916,null,null,null,null,""]
[2917,null,null,null,null,""]
[2918,null,null,null,null,""]
[2919,null,null,null,null,""]
[2920,null,null,null,null,""]
[2921,null,null,null,null,""]
[2922,null,null,null,null,""]
[2923,null,null,null,null,""]
[2924,null,null,null,null,""]
[2925,null,null,null,null,""]
[2926,null,null,null,null,""]
[2927,null,null,null,null,""]
[2928,null,null,null,null,""]
[2929,null,null,null,null,""]
[2930,null,null,null,null,""]
[2931,null,null,null,null,""]
[2932,null,null,null,null,""]
[2933,null,null,null,null,""]
[2934,null,null,null,null,""]
[2935,null,null,null,null,""]
[2936,null,null,null,null,""]
[2937,null,null,null,null,""]
[2938,null,null,null,null,""]
[2939,null,null,null,null,""]
[2940,null,null,null,null,""]
[2941,null,null,null,null,""]
[2942,null,null,null,null,""]
[2943,null,null,null,null,""]
[2944,null,null,null,null,""]
[2945,null,null,null,null,""]
[2946,null,null,null,null,{"$f":"IF(E2951=\"\",\"\",IF(OR(E2951=\"weiß 9016\",E2951=\"zinkgelb 1018\",E2951=\"narzissengelb 1007\",E2951=\"orange 2010\",E2951=\"tomatenrot 3013\",E2951=\"gold 1036\",E2951=\"silber 9006\"),\"schwarz\",\"weiß\"))","v":""}]
[2947,null,null,null,null,""]
[2948,null,null,null,null,""]
[2949,null,null,null,null,""]
[2950,null,null,null,null,""]
[2951,null,null,null,null,""]
[2952,null,null,null,null,""]
[2953,null,null,null,null,""]
[2954,null,null,null,null,""]
[2955,null,null,null,null,""]
[2956,null,null,null,null,""]
[2957,null,null,null,null,""]
[2958,null,null,null,null,""]
[2959,null,null,null,null,""]
[2960,null,null,null,null,""]
[2961,null,null,null,null,""]
[2962,null,null,null,null,""]
[2963,null,null,null,null,""]
[2964,null,null,null,null,""]
[2965,null,null,null,null,""]
[2966,null,null,null,null,""]
[2967,null,null,null,null,""]
[2968,null,null,null,null,""]
[2969,null,null,null,null,""]
[2970,null,null,null,null,""]
[2971,null,null,null,null,""]
[2972,null,null,null,null,""]
[2973,null,null,null,null,""]
[2974,null,null,null,null,""]
[2975,null,null,null,null,""]
[2976,null,null,null,null,""]
[2977,null,null,null,null,""]
[2978,null,null,null,null,""]
[2979,null,null,null,null,""]
[2980,null,null,null,null,""]
[2981,null,null,null,null,""]
[2982,null,null,null,null,""]
[2983,null,null,null,null,""]
[2984,null,null,null,null,""]
[2985,null,null,null,null,""]
[2986,null,null,null,null,""]
[2987,null,null,null,null,""]
[2988,null,null,null,null,""]
[2989,null,null,null,null,""]
[2990,null,null,null,null,""]
[2991,null,null,null,null,""]
[2992,null,null,null,null,""]
[2993,null,null,null,null,""]
[2994,null,null,null,null,""]
[2995,null,null,null,null,""]
[2996,null,null,null,null,""]
[2997,null,null,null,null,""]
[2998,null,null,null,null,""]
[2999,null,null,null,null,""]
[3000,null,null,null,null,""]
[3001,null,null,null,null,""]
[3002,null,null,null,null,""]
[3003,null,null,null,null,""]
[3004,null,null,null,null,""]
[3005,null,null,null,null,""]
[3006,null,null,null,null,""]
[3007,null,null,null,null,""]
[3008,null,null,null,null,""]
[3009,null,null,null,null,""]
[3010,null,null,null,null,{"$f":"IF(E3015=\"\",\"\",IF(OR(E3015=\"weiß 9016\",E3015=\"zinkgelb 1018\",E3015=\"narzissengelb 1007\",E3015=\"orange 2010\",E3015=\"tomatenrot 3013\",E3015=\"gold 1036\",E3015=\"silber 9006\"),\"schwarz\",\"weiß\"))","v":""}]
[3011,null,null,null,null,""]
[3012,null,null,null,null,""]
[3013,null,null,null,null,""]
[3014,null,null,null,null,""]
[3015,null,null,null,null,""]
[3016,null,null,null,null,""]
[3017,null,null,null,null,""]
[3018,null,null,null,null,""]
[3019,null,null,null,null,""]
[3020,null,null,null,null,""]
[3021,null,null,null,null,""]
[3022,null,null,null,null,""]
[3023,null,null,null,null,""]
[3024,null,null,null,null,""]
[3025,null,null,null,null,""]
[3026,null,null,null,null,""]
[3027,null,null,null,null,""]
[3028,null,null,null,null,""]
[3029,null,null,null,null,""]
[3030,null,null,null,null,""]
[3031,null,null,null,null,""]
[3032,null,null,null,null,""]
[3033,null,null,null,null,""]
[3034,null,null,null,null,""]
[3035,null,null,null,null,""]
[3036,null,null,null,null,""]
[3037,null,null,null,null,""]
[3038,null,null,null,null,""]
[3039,null,null,null,null,""]
[3040,null,null,null,null,""]
[3041,null,null,null,null,""]
[3042,null,null,null,null,""]
[3043,null,null,null,null,""]
[3044,null,null,null,null,""]
[3045,null,null,null,null,""]
[3046,null,null,null,null,""]
[3047,null,null,null,null,""]
[3048,null,null,null,null,""]
[3049,null,null,null,null,""]
[3050,null,null,null,null,""]
[3051,null,null,null,null,""]
[3052,null,null,null,null,""]
[3053,null,null,null,null,""]
[3054,null,null,null,null,""]
[3055,null,null,null,null,""]
[3056,null,null,null,null,""]
[3057,null,null,null,null,""]
[3058,null,null,null,null,""]
[3059,null,null,null,null,""]
[3060,null,null,null,null,""]
[3061,null,null,null,null,""]
[3062,null,null,null,null,""]
[3063,null,null,null,null,""]
[3064,null,null,null,null,""]
[3065,null,null,null,null,""]
[3066,null,null,null,null,""]
[3067,null,null,null,null,""]
[3068,null,null,null,null,""]
[3069,null,null,null,null,""]
[3070,null,null,null,null,""]
[3071,null,null,null,null,""]
[3072,null,null,null,null,""]
[3073,null,null,null,null,""]
[3074,null,null,null,null,{"$f":"IF(E3079=\"\",\"\",IF(OR(E3079=\"weiß 9016\",E3079=\"zinkgelb 1018\",E3079=\"narzissengelb 1007\",E3079=\"orange 2010\",E3079=\"tomatenrot 3013\",E3079=\"gold 1036\",E3079=\"silber 9006\"),\"schwarz\",\"weiß\"))","v":""}]
[3075,null,null,null,null,""]
[3076,null,null,null,null,""]
[3077,null,null,null,null,""]
[3078,null,null,null,null,""]
[3079,null,null,null,null,""]
[3080,null,null,null,null,""]
[3081,null,null,null,null,""]
[3082,null,null,null,null,""]
[3083,null,null,null,null,""]
[3084,null,null,null,null,""]
[3085,null,null,null,null,""]
[3086,null,null,null,null,""]
[3087,null,null,null,null,""]
[3088,null,null,null,null,""]
[3089,null,null,null,null,""]
[3090,null,null,null,null,""]
[3091,null,null,null,null,""]
[3092,null,null,null,null,""]
[3093,null,null,null,null,""]
[3094,null,null,null,null,""]
[3095,null,null,null,null,""]
[3096,null,null,null,null,""]
[3097,null,null,null,null,""]
[3098,null,null,null,null,""]
[3099,null,null,null,null,""]
[3100,null,null,null,null,""]
[3101,null,null,null,null,""]
[3102,null,null,null,null,""]
[3103,null,null,null,null,""]
[3104,null,null,null,null,""]
[3105,null,null,null,null,""]
[3106,null,null,null,null,""]
[3107,null,null,null,null,""]
[3108,null,null,null,null,""]
[3109,null,null,null,null,""]
[3110,null,null,null,null,""]
[3111,null,null,null,null,""]
[3112,null,null,null,null,""]
[3113,null,null,null,null,""]
[3114,null,null,null,null,""]
[3115,null,null,null,null,""]
[3116,null,null,null,null,""]
[3117,null,null,null,null,""]
[3118,null,null,null,null,""]
[3119,null,null,null,null,""]
[3120,null,null,null,null,""]
[3121,null,null,null,null,""]
[3122,null,null,null,null,""]
[3123,null,null,null,null,""]
[3124,null,null,null,null,""]
[3125,null,null,null,null,""]
[3126,null,null,null,null,""]
[3127,null,null,null,null,""]
[3128,null,null,null,null,""]
[3129,null,null,null,null,""]
[3130,null,null,null,null,""]
[3131,null,null,null,null,""]
[3132,null,null,null,null,""]
[3133,null,null,null,null,""]
[3134,null,null,null,null,""]
[3135,null,null,null,null,""]
[3136,null,null,null,null,""]
[3137,null,null,null,null,""]
[3138,null,null,null,null,{"$f":"IF(E3143=\"\",\"\",IF(OR(E3143=\"weiß 9016\",E3143=\"zinkgelb 1018\",E3143=\"narzissengelb 1007\",E3143=\"orange 2010\",E3143=\"tomatenrot 3013\",E3143=\"gold 1036\",E3143=\"silber 9006\"),\"schwarz\",\"weiß\"))","v":""}]
[3139,null,null,null,null,""]
[3140,null,null,null,null,""]
[3141,null,null,null,null,""]
[3142,null,null,null,null,""]
[3143,null,null,null,null,""]
[3144,null,null,null,null,""]
[3145,null,null,null,null,""]
[3146,null,null,null,null,""]
[3147,null,null,null,null,""]
[3148,null,null,null,null,""]
[3149,null,null,null,null,""]
[3150,null,null,null,null,""]
[3151,null,null,null,null,""]
[3152,null,null,null,null,""]
[3153,null,null,null,null,""]
[3154,null,null,null,null,""]
[3155,null,null,null,null,""]
[3156,null,null,null,null,""]
[3157,null,null,null,null,""]
[3158,null,null,null,null,""]
[3159,null,null,null,null,""]
[3160,null,null,null,null,""]
[3161,null,null,null,null,""]
[3162,null,null,null,null,""]
[3163,null,null,null,null,""]
[3164,null,null,null,null,""]
[3165,null,null,null,null,""]
[3166,null,null,null,null,""]
[3167,null,null,null,null,""]
[3168,null,null,null,null,""]
[3169,null,null,null,null,""]
[3170,null,null,null,null,""]
[3171,null,null,null,null,""]
[3172,null,null,null,null,""]
[3173,null,null,null,null,""]
[3174,null,null,null,null,""]
[3175,null,null,null,null,""]
[3176,null,null,null,null,""]
[3177,null,null,null,null,""]
[3178,null,null,null,null,""]
[3179,null,null,null,null,""]
[3180,null,null,null,null,""]
[3181,null,null,null,null,""]
[3182,null,null,null,null,""]
[3183,null,null,null,null,""]
[3184,null,null,null,null,""]
[3185,null,null,null,null,""]
[3186,null,null,null,null,""]
[3187,null,null,null,null,""]
[3188,null,null,null,null,""]
[3189,null,null,null,null,""]
[3190,null,null,null,null,""]
[3191,null,null,null,null,""]
[3192,null,null,null,null,""]
[3193,null,null,null,null,""]
[3194,null,null,null,null,""]
[3195,null,null,null,null,""]
[3196,null,null,null,null,""]
[3197,null,null,null,null,""]
[3198,null,null,null,null,""]
[3199,null,null,null,null,""]
[3200,null,null,null,null,""]
[3201,null,null,null,null,""]
[3202,null,null,null,null,{"$f":"IF(E3207=\"\",\"\",IF(OR(E3207=\"weiß 9016\",E3207=\"zinkgelb 1018\",E3207=\"narzissengelb 1007\",E3207=\"orange 2010\",E3207=\"tomatenrot 3013\",E3207=\"gold 1036\",E3207=\"silber 9006\"),\"schwarz\",\"weiß\"))","v":""}]
[3203,null,null,null,null,""]
[3204,null,null,null,null,""]
[3205,null,null,null,null,""]
[3206,null,null,null,null,""]
[3207,null,null,null,null,""]
[3208,null,null,null,null,""]
[3209,null,null,null,null,""]
[3210,null,null,null,null,""]
[3211,null,null,null,null,""]
[3212,null,null,null,null,""]
[3213,null,null,null,null,""]
[3214,null,null,null,null,""]
[3215,null,null,null,null,""]
[3216,null,null,null,null,""]
[3217,null,null,null,null,""]
[3218,null,null,null,null,""]
[3219,null,null,null,null,""]
[3220,null,null,null,null,""]
[3221,null,null,null,null,""]
[3222,null,null,null,null,""]
[3223,null,null,null,null,""]
[3224,null,null,null,null,""]
[3225,null,null,null,null,""]
[3226,null,null,null,null,""]
[3227,null,null,null,null,""]
[3228,null,null,null,null,""]
[3229,null,null,null,null,""]
[3230,null,null,null,null,""]
[3231,null,null,null,null,""]
[3232,null,null,null,null,""]
[3233,null,null,null,null,""]
[3234,null,null,null,null,""]
[3235,null,null,null,null,""]
[3236,null,null,null,null,""]
[3237,null,null,null,null,""]
[3238,null,null,null,null,""]
[3239,null,null,null,null,""]
[3240,null,null,null,null,""]
[3241,null,null,null,null,""]
[3242,null,null,null,null,""]
[3243,null,null,null,null,""]
[3244,null,null,null,null,""]
[3245,null,null,null,null,""]
[3246,null,null,null,null,""]
[3247,null,null,null,null,""]
[3248,null,null,null,null,""]
[3249,null,null,null,null,""]
[3250,null,null,null,null,""]
[3251,null,null,null,null,""]
[3252,null,null,null,null,""]
[3253,null,null,null,null,""]
[3254,null,null,null,null,""]
[3255,null,null,null,null,""]
[3256,null,null,null,null,""]
[3257,null,null,null,null,""]
[3258,null,null,null,null,""]
[3259,null,null,null,null,""]
[3260,null,null,null,null,""]
[3261,null,null,null,null,""]
[3262,null,null,null,null,""]
[3263,null,null,null,null,""]
[3264,null,null,null,null,""]
[3265,null,null,null,null,""]
[3266,null,null,null,null,{"$f":"IF(E3271=\"\",\"\",IF(OR(E3271=\"weiß 9016\",E3271=\"zinkgelb 1018\",E3271=\"narzissengelb 1007\",E3271=\"orange 2010\",E3271=\"tomatenrot 3013\",E3271=\"gold 1036\",E3271=\"silber 9006\"),\"schwarz\",\"weiß\"))","v":""}]
[3267,null,null,null,null,""]
[3268,null,null,null,null,""]
[3269,null,null,null,null,""]
[3270,null,null,null,null,""]
[3271,null,null,null,null,""]
[3272,null,null,null,null,""]
[3273,null,null,null,null,""]
[3274,null,null,null,null,""]
[3275,null,null,null,null,""]
[3276,null,null,null,null,""]
[3277,null,null,null,null,""]
[3278,null,null,null,null,""]
[3279,null,null,null,null,""]
[3280,null,null,null,null,""]
[3281,null,null,null,null,""]
[3282,null,null,null,null,""]
[3283,null,null,null,null,""]
[3284,null,null,null,null,""]
[3285,null,null,null,null,""]
[3286,null,null,null,null,""]
[3287,null,null,null,null,""]
[3288,null,null,null,null,""]
[3289,null,null,null,null,""]
[3290,null,null,null,null,""]
[3291,null,null,null,null,""]
[3292,null,null,null,null,""]
[3293,null,null,null,null,""]
[3294,null,null,null,null,""]
[3295,null,null,null,null,""]
[3296,null,null,null,null,""]
[3297,null,null,null,null,""]
[3298,null,null,null,null,""]
[3299,null,null,null,null,""]
[3300,null,null,null,null,""]
[3301,null,null,null,null,""]
[3302,null,null,null,null,""]
[3303,null,null,null,null,""]
[3304,null,null,null,null,""]
[3305,null,null,null,null,""]
[3306,null,null,null,null,""]
[3307,null,null,null,null,""]
[3308,null,null,null,null,""]
[3309,null,null,null,null,""]
[3310,null,null,null,null,""]
[3311,null,null,null,null,""]
[3312,null,null,null,null,""]
[3313,null,null,null,null,""]
[3314,null,null,null,null,""]
[3315,null,null,null,null,""]
[3316,null,null,null,null,""]
[3317,null,null,null,null,""]
[3318,null,null,null,null,""]
[3319,null,null,null,null,""]
[3320,null,null,null,null,""]
[3321,null,null,null,null,""]
[3322,null,null,null,null,""]
[3323,null,null,null,null,""]
[3324,null,null,null,null,""]
[3325,null,null,null,null,""]
[3326,null,null,null,null,""]
[3327,null,null,null,null,""]
[3328,null,null,null,null,""]
[3329,null,null,null,null,""]
[3330,null,null,null,null,{"$f":"IF(E3335=\"\",\"\",IF(OR(E3335=\"weiß 9016\",E3335=\"zinkgelb 1018\",E3335=\"narzissengelb 1007\",E3335=\"orange 2010\",E3335=\"tomatenrot 3013\",E3335=\"gold 1036\",E3335=\"silber 9006\"),\"schwarz\",\"weiß\"))","v":""}]
[3331,null,null,null,null,""]
[3332,null,null,null,null,""]
[3333,null,null,null,null,""]
[3334,null,null,null,null,""]
[3335,null,null,null,null,""]
[3336,null,null,null,null,""]
[3337,null,null,null,null,""]
[3338,null,null,null,null,""]
[3339,null,null,null,null,""]
[3340,null,null,null,null,""]
[3341,null,null,null,null,""]
[3342,null,null,null,null,""]
[3343,null,null,null,null,""]
[3344,null,null,null,null,""]
[3345,null,null,null,null,""]
[3346,null,null,null,null,""]
[3347,null,null,null,null,""]
[3348,null,null,null,null,""]
[3349,null,null,null,null,""]
[3350,null,null,null,null,""]
[3351,null,null,null,null,""]
[3352,null,null,null,null,""]
[3353,null,null,null,null,""]
[3354,null,null,null,null,""]
[3355,null,null,null,null,""]
[3356,null,null,null,null,""]
[3357,null,null,null,null,""]
[3358,null,null,null,null,""]
[3359,null,null,null,null,""]
[3360,null,null,null,null,""]
[3361,null,null,null,null,""]
[3362,null,null,null,null,""]
[3363,null,null,null,null,""]
[3364,null,null,null,null,""]
[3365,null,null,null,null,""]
[3366,null,null,null,null,""]
[3367,null,null,null,null,""]
[3368,null,null,null,null,""]
[3369,null,null,null,null,""]
[3370,null,null,null,null,""]
[3371,null,null,null,null,""]
[3372,null,null,null,null,""]
[3373,null,null,null,null,""]
[3374,null,null,null,null,""]
[3375,null,null,null,null,""]
[3376,null,null,null,null,""]
[3377,null,null,null,null,""]
[3378,null,null,null,null,""]
[3379,null,null,null,null,""]
[3380,null,null,null,null,""]
[3381,null,null,null,null,""]
[3382,null,null,null,null,""]
[3383,null,null,null,null,""]
[3384,null,null,null,null,""]
[3385,null,null,null,null,""]
[3386,null,null,null,null,""]
[3387,null,null,null,null,""]
[3388,null,null,null,null,""]
[3389,null,null,null,null,""]
[3390,null,null,null,null,""]
[3391,null,null,null,null,""]
[3392,null,null,null,null,""]
[3393,null,null,null,null,""]
[3394,null,null,null,null,{"$f":"IF(E3399=\"\",\"\",IF(OR(E3399=\"weiß 9016\",E3399=\"zinkgelb 1018\",E3399=\"narzissengelb 1007\",E3399=\"orange 2010\",E3399=\"tomatenrot 3013\",E3399=\"gold 1036\",E3399=\"silber 9006\"),\"schwarz\",\"weiß\"))","v":""}]
[3395,null,null,null,null,""]
[3396,null,null,null,null,""]
[3397,null,null,null,null,""]
[3398,null,null,null,null,""]
[3399,null,null,null,null,""]
[3400,null,null,null,null,""]
[3401,null,null,null,null,""]
[3402,null,null,null,null,""]
[3403,null,null,null,null,""]
[3404,null,null,null,null,""]
[3405,null,null,null,null,""]
[3406,null,null,null,null,""]
[3407,null,null,null,null,""]
[3408,null,null,null,null,""]
[3409,null,null,null,null,""]
[3410,null,null,null,null,""]
[3411,null,null,null,null,""]
[3412,null,null,null,null,""]
[3413,null,null,null,null,""]
[3414,null,null,null,null,""]
[3415,null,null,null,null,""]
[3416,null,null,null,null,""]
[3417,null,null,null,null,""]
[3418,null,null,null,null,""]
[3419,null,null,null,null,""]
[3420,null,null,null,null,""]
[3421,null,null,null,null,""]
[3422,null,null,null,null,""]
[3423,null,null,null,null,""]
[3424,null,null,null,null,""]
[3425,null,null,null,null,""]
[3426,null,null,null,null,""]
[3427,null,null,null,null,""]
[3428,null,null,null,null,""]
[3429,null,null,null,null,""]
[3430,null,null,null,null,""]
[3431,null,null,null,null,""]
[3432,null,null,null,null,""]
[3433,null,null,null,null,""]
[3434,null,null,null,null,""]
[3435,null,null,null,null,""]
[3436,null,null,null,null,""]
[3437,null,null,null,null,""]
[3438,null,null,null,null,""]
[3439,null,null,null,null,""]
[3440,null,null,null,null,""]
[3441,null,null,null,null,""]
[3442,null,null,null,null,""]
[3443,null,null,null,null,""]
[3444,null,null,null,null,""]
[3445,null,null,null,null,""]
[3446,null,null,null,null,""]
[3447,null,null,null,null,""]
[3448,null,null,null,null,""]
[3449,null,null,null,null,""]
[3450,null,null,null,null,""]
[3451,null,null,null,null,""]
[3452,null,null,null,null,""]
[3453,null,null,null,null,""]
[3454,null,null,null,null,""]
[3455,null,null,null,null,""]
[3456,null,null,null,null,""]
[3457,null,null,null,null,""]
[3458,null,null,null,null,{"$f":"IF(E3463=\"\",\"\",IF(OR(E3463=\"weiß 9016\",E3463=\"zinkgelb 1018\",E3463=\"narzissengelb 1007\",E3463=\"orange 2010\",E3463=\"tomatenrot 3013\",E3463=\"gold 1036\",E3463=\"silber 9006\"),\"schwarz\",\"weiß\"))","v":""}]
[3459,null,null,null,null,""]
[3460,null,null,null,null,""]
[3461,null,null,null,null,""]
[3462,null,null,null,null,""]
[3463,null,null,null,null,""]
[3464,null,null,null,null,""]
[3465,null,null,null,null,""]
[3466,null,null,null,null,""]
[3467,null,null,null,null,""]
[3468,null,null,null,null,""]
[3469,null,null,null,null,""]
[3470,null,null,null,null,""]
[3471,null,null,null,null,""]
[3472,null,null,null,null,""]
[3473,null,null,null,null,""]
[3474,null,null,null,null,""]
[3475,null,null,null,null,""]
[3476,null,null,null,null,""]
[3477,null,null,null,null,""]
[3478,null,null,null,null,""]
[3479,null,null,null,null,""]
[3480,null,null,null,null,""]
[3481,null,null,null,null,""]
[3482,null,null,null,null,""]
[3483,null,null,null,null,""]
[3484,null,null,null,null,""]
[3485,null,null,null,null,""]
[3486,null,null,null,null,""]
[3487,null,null,null,null,""]
[3488,null,null,null,null,""]
[3489,null,null,null,null,""]
[3490,null,null,null,null,""]
[3491,null,null,null,null,""]
[3492,null,null,null,null,""]
[3493,null,null,null,null,""]
[3494,null,null,null,null,""]
[3495,null,null,null,null,""]
[3496,null,null,null,null,""]
[3497,null,null,null,null,""]
[3498,null,null,null,null,""]
[3499,null,null,null,null,""]
[3500,null,null,null,null,""]
[3501,null,null,null,null,""]
[3502,null,null,null,null,""]
[3503,null,null,null,null,""]
[3504,null,null,null,null,""]
[3505,null,null,null,null,""]
[3506,null,null,null,null,""]
[3507,null,null,null,null,""]
[3508,null,null,null,null,""]
[3509,null,null,null,null,""]
[3510,null,null,null,null,""]
[3511,null,null,null,null,""]
[3512,null,null,null,null,""]
[3513,null,null,null,null,""]
[3514,null,null,null,null,""]
[3515,null,null,null,null,""]
[3516,null,null,null,null,""]
[3517,null,null,null,null,""]
[3518,null,null,null,null,""]
[3519,null,null,null,null,""]
[3520,null,null,null,null,""]
[3521,null,null,null,null,""]
[3522,null,null,null,null,{"$f":"IF(E3527=\"\",\"\",IF(OR(E3527=\"weiß 9016\",E3527=\"zinkgelb 1018\",E3527=\"narzissengelb 1007\",E3527=\"orange 2010\",E3527=\"tomatenrot 3013\",E3527=\"gold 1036\",E3527=\"silber 9006\"),\"schwarz\",\"weiß\"))","v":""}]
[3523,null,null,null,null,""]
[3524,null,null,null,null,""]
[3525,null,null,null,null,""]
[3526,null,null,null,null,""]
[3527,null,null,null,null,""]
[3528,null,null,null,null,""]
[3529,null,null,null,null,""]
[3530,null,null,null,null,""]
[3531,null,null,null,null,""]
[3532,null,null,null,null,""]
[3533,null,null,null,null,""]
[3534,null,null,null,null,""]
[3535,null,null,null,null,""]
[3536,null,null,null,null,""]
[3537,null,null,null,null,""]
[3538,null,null,null,null,""]
[3539,null,null,null,null,""]
[3540,null,null,null,null,""]
[3541,null,null,null,null,""]
[3542,null,null,null,null,""]
[3543,null,null,null,null,""]
[3544,null,null,null,null,""]
[3545,null,null,null,null,""]
[3546,null,null,null,null,""]
[3547,null,null,null,null,""]
[3548,null,null,null,null,""]
[3549,null,null,null,null,""]
[3550,null,null,null,null,""]
[3551,null,null,null,null,""]
[3552,null,null,null,null,""]
[3553,null,null,null,null,""]
[3554,null,null,null,null,""]
[3555,null,null,null,null,""]
[3556,null,null,null,null,""]
[3557,null,null,null,null,""]
[3558,null,null,null,null,""]
[3559,null,null,null,null,""]
[3560,null,null,null,null,""]
[3561,null,null,null,null,""]
[3562,null,null,null,null,""]
[3563,null,null,null,null,""]
[3564,null,null,null,null,""]
[3565,null,null,null,null,""]
[3566,null,null,null,null,""]
[3567,null,null,null,null,""]
[3568,null,null,null,null,""]
[3569,null,null,null,null,""]
[3570,null,null,null,null,""]
[3571,null,null,null,null,""]
[3572,null,null,null,null,""]
[3573,null,null,null,null,""]
[3574,null,null,null,null,""]
[3575,null,null,null,null,""]
[3576,null,null,null,null,""]
[3577,null,null,null,null,""]
[3578,null,null,null,null,""]
[3579,null,null,null,null,""]
[3580,null,null,null,null,""]
[3581,null,null,null,null,""]
[3582,null,null,null,null,""]
[3583,null,null,null,null,""]
[3584,null,null,null,null,""]
[3585,null,null,null,null,""]
[3586,null,null,null,null,{"$f":"IF(E3591=\"\",\"\",IF(OR(E3591=\"weiß 9016\",E3591=\"zinkgelb 1018\",E3591=\"narzissengelb 1007\",E3591=\"orange 2010\",E3591=\"tomatenrot 3013\",E3591=\"gold 1036\",E3591=\"silber 9006\"),\"schwarz\",\"weiß\"))","v":""}]
[3587,null,null,null,null,""]
[3588,null,null,null,null,""]
[3589,null,null,null,null,""]
[3590,null,null,null,null,""]
[3591,null,null,null,null,""]
[3592,null,null,null,null,""]
[3593,null,null,null,null,""]
[3594,null,null,null,null,""]
[3595,null,null,null,null,""]
[3596,null,null,null,null,""]
[3597,null,null,null,null,""]
[3598,null,null,null,null,""]
[3599,null,null,null,null,""]
[3600,null,null,null,null,""]
[3601,null,null,null,null,""]
[3602,null,null,null,null,""]
[3603,null,null,null,null,""]
[3604,null,null,null,null,""]
[3605,null,null,null,null,""]
[3606,null,null,null,null,""]
[3607,null,null,null,null,""]
[3608,null,null,null,null,""]
[3609,null,null,null,null,""]
[3610,null,null,null,null,""]
[3611,null,null,null,null,""]
[3612,null,null,null,null,""]
[3613,null,null,null,null,""]
[3614,null,null,null,null,""]
[3615,null,null,null,null,""]
[3616,null,null,null,null,""]
[3617,null,null,null,null,""]
[3618,null,null,null,null,""]
[3619,null,null,null,null,""]
[3620,null,null,null,null,""]
[3621,null,null,null,null,""]
[3622,null,null,null,null,""]
[3623,null,null,null,null,""]
[3624,null,null,null,null,""]
[3625,null,null,null,null,""]
[3626,null,null,null,null,""]
[3627,null,null,null,null,""]
[3628,null,null,null,null,""]
[3629,null,null,null,null,""]
[3630,null,null,null,null,""]
[3631,null,null,null,null,""]
[3632,null,null,null,null,""]
[3633,null,null,null,null,""]
[3634,null,null,null,null,""]
[3635,null,null,null,null,""]
[3636,null,null,null,null,""]
[3637,null,null,null,null,""]
[3638,null,null,null,null,""]
[3639,null,null,null,null,""]
[3640,null,null,null,null,""]
[3641,null,null,null,null,""]
[3642,null,null,null,null,""]
[3643,null,null,null,null,""]
[3644,null,null,null,null,""]
[3645,null,null,null,null,""]
[3646,null,null,null,null,""]
[3647,null,null,null,null,""]
[3648,null,null,null,null,""]
[3649,null,null,null,null,""]
[3650,null,null,null,null,{"$f":"IF(E3655=\"\",\"\",IF(OR(E3655=\"weiß 9016\",E3655=\"zinkgelb 1018\",E3655=\"narzissengelb 1007\",E3655=\"orange 2010\",E3655=\"tomatenrot 3013\",E3655=\"gold 1036\",E3655=\"silber 9006\"),\"schwarz\",\"weiß\"))","v":""}]
[3651,null,null,null,null,""]
[3652,null,null,null,null,""]
[3653,null,null,null,null,""]
[3654,null,null,null,null,""]
[3655,null,null,null,null,""]
[3656,null,null,null,null,""]
[3657,null,null,null,null,""]
[3658,null,null,null,null,""]
[3659,null,null,null,null,""]
[3660,null,null,null,null,""]
[3661,null,null,null,null,""]
[3662,null,null,null,null,""]
[3663,null,null,null,null,""]
[3664,null,null,null,null,""]
[3665,null,null,null,null,""]
[3666,null,null,null,null,""]
[3667,null,null,null,null,""]
[3668,null,null,null,null,""]
[3669,null,null,null,null,""]
[3670,null,null,null,null,""]
[3671,null,null,null,null,""]
[3672,null,null,null,null,""]
[3673,null,null,null,null,""]
[3674,null,null,null,null,""]
[3675,null,null,null,null,""]
[3676,null,null,null,null,""]
[3677,null,null,null,null,""]
[3678,null,null,null,null,""]
[3679,null,null,null,null,""]
[3680,null,null,null,null,""]
[3681,null,null,null,null,""]
[3682,null,null,null,null,""]
[3683,null,null,null,null,""]
[3684,null,null,null,null,""]
[3685,null,null,null,null,""]
[3686,null,null,null,null,""]
[3687,null,null,null,null,""]
[3688,null,null,null,null,""]
[3689,null,null,null,null,""]
[3690,null,null,null,null,""]
[3691,null,null,null,null,""]
[3692,null,null,null,null,""]
[3693,null,null,null,null,""]
[3694,null,null,null,null,""]
[3695,null,null,null,null,""]
[3696,null,null,null,null,""]
[3697,null,null,null,null,""]
[3698,null,null,null,null,""]
[3699,null,null,null,null,""]
[3700,null,null,null,null,""]
[3701,null,null,null,null,""]
[3702,null,null,null,null,""]
[3703,null,null,null,null,""]
[3704,null,null,null,null,""]
[3705,null,null,null,null,""]
[3706,null,null,null,null,""]
[3707,null,null,null,null,""]
[3708,null,null,null,null,""]
[3709,null,null,null,null,""]
[3710,null,null,null,null,""]
[3711,null,null,null,null,""]
[3712,null,null,null,null,""]
[3713,null,null,null,null,""]
[3714,null,null,null,null,{"$f":"IF(E3719=\"\",\"\",IF(OR(E3719=\"weiß 9016\",E3719=\"zinkgelb 1018\",E3719=\"narzissengelb 1007\",E3719=\"orange 2010\",E3719=\"tomatenrot 3013\",E3719=\"gold 1036\",E3719=\"silber 9006\"),\"schwarz\",\"weiß\"))","v":""}]
[3715,null,null,null,null,""]
[3716,null,null,null,null,""]
[3717,null,null,null,null,""]
[3718,null,null,null,null,""]
[3719,null,null,null,null,""]
[3720,null,null,null,null,""]
[3721,null,null,null,null,""]
[3722,null,null,null,null,""]
[3723,null,null,null,null,""]
[3724,null,null,null,null,""]
[3725,null,null,null,null,""]
[3726,null,null,null,null,""]
[3727,null,null,null,null,""]
[3728,null,null,null,null,""]
[3729,null,null,null,null,""]
[3730,null,null,null,null,""]
[3731,null,null,null,null,""]
[3732,null,null,null,null,""]
[3733,null,null,null,null,""]
[3734,null,null,null,null,""]
[3735,null,null,null,null,""]
[3736,null,null,null,null,""]
[3737,null,null,null,null,""]
[3738,null,null,null,null,""]
[3739,null,null,null,null,""]
[3740,null,null,null,null,""]
[3741,null,null,null,null,""]
[3742,null,null,null,null,""]
[3743,null,null,null,null,""]
[3744,null,null,null,null,""]
[3745,null,null,null,null,""]
[3746,null,null,null,null,""]
[3747,null,null,null,null,""]
[3748,null,null,null,null,""]
[3749,null,null,null,null,""]
[3750,null,null,null,null,""]
[3751,null,null,null,null,""]
[3752,null,null,null,null,""]
[3753,null,null,null,null,""]
[3754,null,null,null,null,""]
[3755,null,null,null,null,""]
[3756,null,null,null,null,""]
[3757,null,null,null,null,""]
[3758,null,null,null,null,""]
[3759,null,null,null,null,""]
[3760,null,null,null,null,""]
[3761,null,null,null,null,""]
[3762,null,null,null,null,""]
[3763,null,null,null,null,""]
[3764,null,null,null,null,""]
[3765,null,null,null,null,""]
[3766,null,null,null,null,""]
[3767,null,null,null,null,""]
[3768,null,null,null,null,""]
[3769,null,null,null,null,""]
[3770,null,null,null,null,""]
[3771,null,null,null,null,""]
[3772,null,null,null,null,""]
[3773,null,null,null,null,""]
[3774,null,null,null,null,""]
[3775,null,null,null,null,""]
[3776,null,null,null,null,""]
[3777,null,null,null,null,""]
[3778,null,null,null,null,{"$f":"IF(E3783=\"\",\"\",IF(OR(E3783=\"weiß 9016\",E3783=\"zinkgelb 1018\",E3783=\"narzissengelb 1007\",E3783=\"orange 2010\",E3783=\"tomatenrot 3013\",E3783=\"gold 1036\",E3783=\"silber 9006\"),\"schwarz\",\"weiß\"))","v":""}]
[3779,null,null,null,null,""]
[3780,null,null,null,null,""]
[3781,null,null,null,null,""]
[3782,null,null,null,null,""]
[3783,null,null,null,null,""]
[3784,null,null,null,null,""]
[3785,null,null,null,null,""]
[3786,null,null,null,null,""]
[3787,null,null,null,null,""]
[3788,null,null,null,null,""]
[3789,null,null,null,null,""]
[3790,null,null,null,null,""]
[3791,null,null,null,null,""]
[3792,null,null,null,null,""]
[3793,null,null,null,null,""]
[3794,null,null,null,null,""]
[3795,null,null,null,null,""]
[3796,null,null,null,null,""]
[3797,null,null,null,null,""]
[3798,null,null,null,null,""]
[3799,null,null,null,null,""]
[3800,null,null,null,null,""]
[3801,null,null,null,null,""]
[3802,null,null,null,null,""]
[3803,null,null,null,null,""]
[3804,null,null,null,null,""]
[3805,null,null,null,null,""]
[3806,null,null,null,null,""]
[3807,null,null,null,null,""]
[3808,null,null,null,null,""]
[3809,null,null,null,null,""]
[3810,null,null,null,null,""]
[3811,null,null,null,null,""]
[3812,null,null,null,null,""]
[3813,null,null,null,null,""]
[3814,null,null,null,null,""]
[3815,null,null,null,null,""]
[3816,null,null,null,null,""]
[3817,null,null,null,null,""]
[3818,null,null,null,null,""]
[3819,null,null,null,null,""]
[3820,null,null,null,null,""]
[3821,null,null,null,null,""]
[3822,null,null,null,null,""]
[3823,null,null,null,null,""]
[3824,null,null,null,null,""]
[3825,null,null,null,null,""]
[3826,null,null,null,null,""]
[3827,null,null,null,null,""]
[3828,null,null,null,null,""]
[3829,null,null,null,null,""]
[3830,null,null,null,null,""]
[3831,null,null,null,null,""]
[3832,null,null,null,null,""]
[3833,null,null,null,null,""]
[3834,null,null,null,null,""]
[3835,null,null,null,null,""]
[3836,null,null,null,null,""]
[3837,null,null,null,null,""]
[3838,null,null,null,null,""]
[3839,null,null,null,null,""]
[3840,null,null,null,null,""]
[3841,null,null,null,null,""]
[3842,null,null,null,null,{"$f":"IF(E3847=\"\",\"\",IF(OR(E3847=\"weiß 9016\",E3847=\"zinkgelb 1018\",E3847=\"narzissengelb 1007\",E3847=\"orange 2010\",E3847=\"tomatenrot 3013\",E3847=\"gold 1036\",E3847=\"silber 9006\"),\"schwarz\",\"weiß\"))","v":""}]
[3843,null,null,null,null,""]
[3844,null,null,null,null,""]
[3845,null,null,null,null,""]
[3846,null,null,null,null,""]
[3847,null,null,null,null,""]
[3848,null,null,null,null,""]
[3849,null,null,null,null,""]
[3850,null,null,null,null,""]
[3851,null,null,null,null,""]
[3852,null,null,null,null,""]
[3853,null,null,null,null,""]
[3854,null,null,null,null,""]
[3855,null,null,null,null,""]
[3856,null,null,null,null,""]
[3857,null,null,null,null,""]
[3858,null,null,null,null,""]
[3859,null,null,null,null,""]
[3860,null,null,null,null,""]
[3861,null,null,null,null,""]
[3862,null,null,null,null,""]
[3863,null,null,null,null,""]
[3864,null,null,null,null,""]
[3865,null,null,null,null,""]
[3866,null,null,null,null,""]
[3867,null,null,null,null,""]
[3868,null,null,null,null,""]
[3869,null,null,null,null,""]
[3870,null,null,null,null,""]
[3871,null,null,null,null,""]
[3872,null,null,null,null,""]
[3873,null,null,null,null,""]
[3874,null,null,null,null,""]
[3875,null,null,null,null,""]
[3876,null,null,null,null,""]
[3877,null,null,null,null,""]
[3878,null,null,null,null,""]
[3879,null,null,null,null,""]
[3880,null,null,null,null,""]
[3881,null,null,null,null,""]
[3882,null,null,null,null,""]
[3883,null,null,null,null,""]
[3884,null,null,null,null,""]
[3885,null,null,null,null,""]
[3886,null,null,null,null,""]
[3887,null,null,null,null,""]
[3888,null,null,null,null,""]
[3889,null,null,null,null,""]
[3890,null,null,null,null,""]
[3891,null,null,null,null,""]
[3892,null,null,null,null,""]
[3893,null,null,null,null,""]
[3894,null,null,null,null,""]
[3895,null,null,null,null,""]
[3896,null,null,null,null,""]
[3897,null,null,null,null,""]
[3898,null,null,null,null,""]
[3899,null,null,null,null,""]
[3900,null,null,null,null,""]
[3901,null,null,null,null,""]
[3902,null,null,null,null,""]
[3903,null,null,null,null,""]
[3904,null,null,null,null,""]
[3905,null,null,null,null,""]
[3906,null,null,null,null,{"$f":"IF(E3911=\"\",\"\",IF(OR(E3911=\"weiß 9016\",E3911=\"zinkgelb 1018\",E3911=\"narzissengelb 1007\",E3911=\"orange 2010\",E3911=\"tomatenrot 3013\",E3911=\"gold 1036\",E3911=\"silber 9006\"),\"schwarz\",\"weiß\"))","v":""}]
[3907,null,null,null,null,""]
[3908,null,null,null,null,""]
[3909,null,null,null,null,""]
[3910,null,null,null,null,""]
[3911,null,null,null,null,""]
[3912,null,null,null,null,""]
[3913,null,null,null,null,""]
[3914,null,null,null,null,""]
[3915,null,null,null,null,""]
[3916,null,null,null,null,""]
[3917,null,null,null,null,""]
[3918,null,null,null,null,""]
[3919,null,null,null,null,""]
[3920,null,null,null,null,""]
[3921,null,null,null,null,""]
[3922,null,null,null,null,""]
[3923,null,null,null,null,""]
[3924,null,null,null,null,""]
[3925,null,null,null,null,""]
[3926,null,null,null,null,""]
[3927,null,null,null,null,""]
[3928,null,null,null,null,""]
[3929,null,null,null,null,""]
[3930,null,null,null,null,""]
[3931,null,null,null,null,""]
[3932,null,null,null,null,""]
[3933,null,null,null,null,""]
[3934,null,null,null,null,""]
[3935,null,null,null,null,""]
[3936,null,null,null,null,""]
[3937,null,null,null,null,""]
[3938,null,null,null,null,""]
[3939,null,null,null,null,""]
[3940,null,null,null,null,""]
[3941,null,null,null,null,""]
[3942,null,null,null,null,""]
[3943,null,null,null,null,""]
[3944,null,null,null,null,""]
[3945,null,null,null,null,""]
[3946,null,null,null,null,""]
[3947,null,null,null,null,""]
[3948,null,null,null,null,""]
[3949,null,null,null,null,""]
[3950,null,null,null,null,""]
[3951,null,null,null,null,""]
[3952,null,null,null,null,""]
[3953,null,null,null,null,""]
[3954,null,null,null,null,""]
[3955,null,null,null,null,""]
[3956,null,null,null,null,""]
[3957,null,null,null,null,""]
[3958,null,null,null,null,""]
[3959,null,null,null,null,""]
[3960,null,null,null,null,""]
[3961,null,null,null,null,""]
[3962,null,null,null,null,""]
[3963,null,null,null,null,""]
[3964,null,null,null,null,""]
[3965,null,null,null,null,""]
[3966,null,null,null,null,""]
[3967,null,null,null,null,""]
[3968,null,null,null,null,""]
[3969,null,null,null,null,""]
[3970,null,null,null,null,{"$f":"IF(E3975=\"\",\"\",IF(OR(E3975=\"weiß 9016\",E3975=\"zinkgelb 1018\",E3975=\"narzissengelb 1007\",E3975=\"orange 2010\",E3975=\"tomatenrot 3013\",E3975=\"gold 1036\",E3975=\"silber 9006\"),\"schwarz\",\"weiß\"))","v":""}]
[3971,null,null,null,null,""]
[3972,null,null,null,null,""]
[3973,null,null,null,null,""]
[3974,null,null,null,null,""]
[3975,null,null,null,null,""]
[3976,null,null,null,null,""]
[3977,null,null,null,null,""]
[3978,null,null,null,null,""]
[3979,null,null,null,null,""]
[3980,null,null,null,null,""]
[3981,null,null,null,null,""]
[3982,null,null,null,null,""]
[3983,null,null,null,null,""]
[3984,null,null,null,null,""]
[3985,null,null,null,null,""]
[3986,null,null,null,null,""]
[3987,null,null,null,null,""]
[3988,null,null,null,null,""]
[3989,null,null,null,null,""]
[3990,null,null,null,null,""]
[3991,null,null,null,null,""]
[3992,null,null,null,null,""]
[3993,null,null,null,null,""]
[3994,null,null,null,null,""]
[3995,null,null,null,null,""]
[3996,null,null,null,null,""]
[3997,null,null,null,null,""]
[3998,null,null,null,null,""]
[3999,null,null,null,null,""]
[4000,null,null,null,null,""]
[4001,null,null,null,null,""]
[4002,null,null,null,null,""]
[4003,null,null,null,null,""]
[4004,null,null,null,null,""]
[4005,null,null,null,null,""]
[4006,null,null,null,null,""]
[4007,null,null,null,null,""]
[4008,null,null,null,null,""]
[4009,null,null,null,null,""]
[4010,null,null,null,null,""]
[4011,null,null,null,null,""]
[4012,null,null,null,null,""]
[4013,null,null,null,null,""]
[4014,null,null,null,null,""]
[4015,null,null,null,null,""]
[4016,null,null,null,null,""]
[4017,null,null,null,null,""]
[4018,null,null,null,null,""]
[4019,null,null,null,null,""]
[4020,null,null,null,null,""]
[4021,null,null,null,null,""]
[4022,null,null,null,null,""]
[4023,null,null,null,null,""]
[4024,null,null,null,null,""]
[4025,null,null,null,null,""]
[4026,null,null,null,null,""]
[4027,null,null,null,null,""]
[4028,null,null,null,null,""]
[4029,null,null,null,null,""]
[4030,null,null,null,null,""]
[4031,null,null,null,null,""]
[4032,null,null,null,null,""]
[4033,null,null,null,null,""]
[4034,null,null,null,null,{"$f":"IF(E4039=\"\",\"\",IF(OR(E4039=\"weiß 9016\",E4039=\"zinkgelb 1018\",E4039=\"narzissengelb 1007\",E4039=\"orange 2010\",E4039=\"tomatenrot 3013\",E4039=\"gold 1036\",E4039=\"silber 9006\"),\"schwarz\",\"weiß\"))","v":""}]
[4035,null,null,null,null,""]
[4036,null,null,null,null,""]
[4037,null,null,null,null,""]
[4038,null,null,null,null,""]
[4039,null,null,null,null,""]
[4040,null,null,null,null,""]
[4041,null,null,null,null,""]
[4042,null,null,null,null,""]
[4043,null,null,null,null,""]
[4044,null,null,null,null,""]
[4045,null,null,null,null,""]
[4046,null,null,null,null,""]
[4047,null,null,null,null,""]
[4048,null,null,null,null,""]
[4049,null,null,null,null,""]
[4050,null,null,null,null,""]
[4051,null,null,null,null,""]
[4052,null,null,null,null,""]
[4053,null,null,null,null,""]
[4054,null,null,null,null,""]
[4055,null,null,null,null,""]
[4056,null,null,null,null,""]
[4057,null,null,null,null,""]
[4058,null,null,null,null,""]
[4059,null,null,null,null,""]
[4060,null,null,null,null,""]
[4061,null,null,null,null,""]
[4062,null,null,null,null,""]
[4063,null,null,null,null,""]
[4064,null,null,null,null,""]
[4065,null,null,null,null,""]
[4066,null,null,null,null,""]
[4067,null,null,null,null,""]
[4068,null,null,null,null,""]
[4069,null,null,null,null,""]
[4070,null,null,null,null,""]
[4071,null,null,null,null,""]
[4072,null,null,null,null,""]
[4073,null,null,null,null,""]
[4074,null,null,null,null,""]
[4075,null,null,null,null,""]
[4076,null,null,null,null,""]
[4077,null,null,null,null,""]
[4078,null,null,null,null,""]
[4079,null,null,null,null,""]
[4080,null,null,null,null,""]
[4081,null,null,null,null,""]
[4082,null,null,null,null,""]
[4083,null,null,null,null,""]
[4084,null,null,null,null,""]
[4085,null,null,null,null,""]
[4086,null,null,null,null,""]
[4087,null,null,null,null,""]
[4088,null,null,null,null,""]
[4089,null,null,null,null,""]
[4090,null,null,null,null,""]
[4091,null,null,null,null,""]
[4092,null,null,null,null,""]
[4093,null,null,null,null,""]
[4094,null,null,null,null,""]
[4095,null,null,null,null,""]
[4096,null,null,null,null,""]
[4097,null,null,null,null,""]
[4098,null,null,null,null,{"$f":"IF(E4103=\"\",\"\",IF(OR(E4103=\"weiß 9016\",E4103=\"zinkgelb 1018\",E4103=\"narzissengelb 1007\",E4103=\"orange 2010\",E4103=\"tomatenrot 3013\",E4103=\"gold 1036\",E4103=\"silber 9006\"),\"schwarz\",\"weiß\"))","v":""}]
[4099,null,null,null,null,""]
[4100,null,null,null,null,""]
[4101,null,null,null,null,""]
[4102,null,null,null,null,""]
[4103,null,null,null,null,""]
[4104,null,null,null,null,""]
[4105,null,null,null,null,""]
[4106,null,null,null,null,""]
[4107,null,null,null,null,""]
[4108,null,null,null,null,""]
[4109,null,null,null,null,""]
[4110,null,null,null,null,""]
[4111,null,null,null,null,""]
[4112,null,null,null,null,""]
[4113,null,null,null,null,""]
[4114,null,null,null,null,""]
[4115,null,null,null,null,""]
[4116,null,null,null,null,""]
[4117,null,null,null,null,""]
[4118,null,null,null,null,""]
[4119,null,null,null,null,""]
[4120,null,null,null,null,""]
[4121,null,null,null,null,""]
[4122,null,null,null,null,""]
[4123,null,null,null,null,""]
[4124,null,null,null,null,""]
[4125,null,null,null,null,""]
[4126,null,null,null,null,""]
[4127,null,null,null,null,""]
[4128,null,null,null,null,""]
[4129,null,null,null,null,""]
[4130,null,null,null,null,""]
[4131,null,null,null,null,""]
[4132,null,null,null,null,""]
[4133,null,null,null,null,""]
[4134,null,null,null,null,""]
[4135,null,null,null,null,""]
[4136,null,null,null,null,""]
[4137,null,null,null,null,""]
[4138,null,null,null,null,""]
[4139,null,null,null,null,""]
[4140,null,null,null,null,""]
[4141,null,null,null,null,""]
[4142,null,null,null,null,""]
[4143,null,null,null,null,""]
[4144,null,null,null,null,""]
[4145,null,null,null,null,""]
[4146,null,null,null,null,""]
[4147,null,null,null,null,""]
[4148,null,null,null,null,""]
[4149,null,null,null,null,""]
[4150,null,null,null,null,""]
[4151,null,null,null,null,""]
[4152,null,null,null,null,""]
[4153,null,null,null,null,""]
[4154,null,null,null,null,""]
[4155,null,null,null,null,""]
[4156,null,null,null,null,""]
[4157,null,null,null,null,""]
[4158,null,null,null,null,""]
[4159,null,null,null,null,""]
[4160,null,null,null,null,""]
[4161,null,null,null,null,""]
[4162,null,null,null,null,{"$f":"IF(E4167=\"\",\"\",IF(OR(E4167=\"weiß 9016\",E4167=\"zinkgelb 1018\",E4167=\"narzissengelb 1007\",E4167=\"orange 2010\",E4167=\"tomatenrot 3013\",E4167=\"gold 1036\",E4167=\"silber 9006\"),\"schwarz\",\"weiß\"))","v":""}]
[4163,null,null,null,null,""]
[4164,null,null,null,null,""]
[4165,null,null,null,null,""]
[4166,null,null,null,null,""]
[4167,null,null,null,null,""]
[4168,null,null,null,null,""]
[4169,null,null,null,null,""]
[4170,null,null,null,null,""]
[4171,null,null,null,null,""]
[4172,null,null,null,null,""]
[4173,null,null,null,null,""]
[4174,null,null,null,null,""]
[4175,null,null,null,null,""]
[4176,null,null,null,null,""]
[4177,null,null,null,null,""]
[4178,null,null,null,null,""]
[4179,null,null,null,null,""]
[4180,null,null,null,null,""]
[4181,null,null,null,null,""]
[4182,null,null,null,null,""]
[4183,null,null,null,null,""]
[4184,null,null,null,null,""]
[4185,null,null,null,null,""]
[4186,null,null,null,null,""]
[4187,null,null,null,null,""]
[4188,null,null,null,null,""]
[4189,null,null,null,null,""]
[4190,null,null,null,null,""]
[4191,null,null,null,null,""]
[4192,null,null,null,null,""]
[4193,null,null,null,null,""]
[4194,null,null,null,null,""]
[4195,null,null,null,null,""]
[4196,null,null,null,null,""]
[4197,null,null,null,null,""]
[4198,null,null,null,null,""]
[4199,null,null,null,null,""]
[4200,null,null,null,null,""]
[4201,null,null,null,null,""]
[4202,null,null,null,null,""]
[4203,null,null,null,null,""]
[4204,null,null,null,null,""]
[4205,null,null,null,null,""]
[4206,null,null,null,null,""]
[4207,null,null,null,null,""]
[4208,null,null,null,null,""]
[4209,null,null,null,null,""]
[4210,null,null,null,null,""]
[4211,null,null,null,null,""]
[4212,null,null,null,null,""]
[4213,null,null,null,null,""]
[4214,null,null,null,null,""]
[4215,null,null,null,null,""]
[4216,null,null,null,null,""]
[4217,null,null,null,null,""]
[4218,null,null,null,null,""]
[4219,null,null,null,null,""]
[4220,null,null,null,null,""]
[4221,null,null,null,null,""]
[4222,null,null,null,null,""]
[4223,null,null,null,null,""]
[4224,null,null,null,null,""]
[4225,null,null,null,null,""]
[4226,null,null,null,null,{"$f":"IF(E4231=\"\",\"\",IF(OR(E4231=\"weiß 9016\",E4231=\"zinkgelb 1018\",E4231=\"narzissengelb 1007\",E4231=\"orange 2010\",E4231=\"tomatenrot 3013\",E4231=\"gold 1036\",E4231=\"silber 9006\"),\"schwarz\",\"weiß\"))","v":""}]
[4227,null,null,null,null,""]
[4228,null,null,null,null,""]
[4229,null,null,null,null,""]
[4230,null,null,null,null,""]
[4231,null,null,null,null,""]
[4232,null,null,null,null,""]
[4233,null,null,null,null,""]
[4234,null,null,null,null,""]
[4235,null,null,null,null,""]
[4236,null,null,null,null,""]
[4237,null,null,null,null,""]
[4238,null,null,null,null,""]
[4239,null,null,null,null,""]
[4240,null,null,null,null,""]
[4241,null,null,null,null,""]
[4242,null,null,null,null,""]
[4243,null,null,null,null,""]
[4244,null,null,null,null,""]
[4245,null,null,null,null,""]
[4246,null,null,null,null,""]
[4247,null,null,null,null,""]
[4248,null,null,null,null,""]
[4249,null,null,null,null,""]
[4250,null,null,null,null,""]
[4251,null,null,null,null,""]
[4252,null,null,null,null,""]
[4253,null,null,null,null,""]
[4254,null,null,null,null,""]
[4255,null,null,null,null,""]
[4256,null,null,null,null,""]
[4257,null,null,null,null,""]
[4258,null,null,null,null,""]
[4259,null,null,null,null,""]
[4260,null,null,null,null,""]
[4261,null,null,null,null,""]
[4262,null,null,null,null,""]
[4263,null,null,null,null,""]
[4264,null,null,null,null,""]
[4265,null,null,null,null,""]
[4266,null,null,null,null,""]
[4267,null,null,null,null,""]
[4268,null,null,null,null,""]
[4269,null,null,null,null,""]
[4270,null,null,null,null,""]
[4271,null,null,null,null,""]
[4272,null,null,null,null,""]
[4273,null,null,null,null,""]
[4274,null,null,null,null,""]
[4275,null,null,null,null,""]
[4276,null,null,null,null,""]
[4277,null,null,null,null,""]
[4278,null,null,null,null,""]
[4279,null,null,null,null,""]
[4280,null,null,null,null,""]
[4281,null,null,null,null,""]
[4282,null,null,null,null,""]
[4283,null,null,null,null,""]
[4284,null,null,null,null,""]
[4285,null,null,null,null,""]
[4286,null,null,null,null,""]
[4287,null,null,null,null,""]
[4288,null,null,null,null,""]
[4289,null,null,null,null,""]
[4290,null,null,null,null,{"$f":"IF(E4295=\"\",\"\",IF(OR(E4295=\"weiß 9016\",E4295=\"zinkgelb 1018\",E4295=\"narzissengelb 1007\",E4295=\"orange 2010\",E4295=\"tomatenrot 3013\",E4295=\"gold 1036\",E4295=\"silber 9006\"),\"schwarz\",\"weiß\"))","v":""}]
[4291,null,null,null,null,""]
[4292,null,null,null,null,""]
[4293,null,null,null,null,""]
[4294,null,null,null,null,""]
[4295,null,null,null,null,""]
[4296,null,null,null,null,""]
[4297,null,null,null,null,""]
[4298,null,null,null,null,""]
[4299,null,null,null,null,""]
[4300,null,null,null,null,""]
[4301,null,null,null,null,""]
[4302,null,null,null,null,""]
[4303,null,null,null,null,""]
[4304,null,null,null,null,""]
[4305,null,null,null,null,""]
[4306,null,null,null,null,""]
[4307,null,null,null,null,""]
[4308,null,null,null,null,""]
[4309,null,null,null,null,""]
[4310,null,null,null,null,""]
[4311,null,null,null,null,""]
[4312,null,null,null,null,""]
[4313,null,null,null,null,""]
[4314,null,null,null,null,""]
[4315,null,null,null,null,""]
[4316,null,null,null,null,""]
[4317,null,null,null,null,""]
[4318,null,null,null,null,""]
[4319,null,null,null,null,""]
[4320,null,null,null,null,""]
[4321,null,null,null,null,""]
[4322,null,null,null,null,""]
[4323,null,null,null,null,""]
[4324,null,null,null,null,""]
[4325,null,null,null,null,""]
[4326,null,null,null,null,""]
[4327,null,null,null,null,""]
[4328,null,null,null,null,""]
[4329,null,null,null,null,""]
[4330,null,null,null,null,""]
[4331,null,null,null,null,""]
[4332,null,null,null,null,""]
[4333,null,null,null,null,""]
[4334,null,null,null,null,""]
[4335,null,null,null,null,""]
[4336,null,null,null,null,""]
[4337,null,null,null,null,""]
[4338,null,null,null,null,""]
[4339,null,null,null,null,""]
[4340,null,null,null,null,""]
[4341,null,null,null,null,""]
[4342,null,null,null,null,""]
[4343,null,null,null,null,""]
[4344,null,null,null,null,""]
[4345,null,null,null,null,""]
[4346,null,null,null,null,""]
[4347,null,null,null,null,""]
[4348,null,null,null,null,""]
[4349,null,null,null,null,""]
[4350,null,null,null,null,""]
[4351,null,null,null,null,""]
[4352,null,null,null,null,""]
[4353,null,null,null,null,""]
[4354,null,null,null,null,{"$f":"IF(E4359=\"\",\"\",IF(OR(E4359=\"weiß 9016\",E4359=\"zinkgelb 1018\",E4359=\"narzissengelb 1007\",E4359=\"orange 2010\",E4359=\"tomatenrot 3013\",E4359=\"gold 1036\",E4359=\"silber 9006\"),\"schwarz\",\"weiß\"))","v":""}]
[4355,null,null,null,null,""]
[4356,null,null,null,null,""]
[4357,null,null,null,null,""]
[4358,null,null,null,null,""]
[4359,null,null,null,null,""]
[4360,null,null,null,null,""]
[4361,null,null,null,null,""]
[4362,null,null,null,null,""]
[4363,null,null,null,null,""]
[4364,null,null,null,null,""]
[4365,null,null,null,null,""]
[4366,null,null,null,null,""]
[4367,null,null,null,null,""]
[4368,null,null,null,null,""]
[4369,null,null,null,null,""]
[4370,null,null,null,null,""]
[4371,null,null,null,null,""]
[4372,null,null,null,null,""]
[4373,null,null,null,null,""]
[4374,null,null,null,null,""]
[4375,null,null,null,null,""]
[4376,null,null,null,null,""]
[4377,null,null,null,null,""]
[4378,null,null,null,null,""]
[4379,null,null,null,null,""]
[4380,null,null,null,null,""]
[4381,null,null,null,null,""]
[4382,null,null,null,null,""]
[4383,null,null,null,null,""]
[4384,null,null,null,null,""]
[4385,null,null,null,null,""]
[4386,null,null,null,null,""]
[4387,null,null,null,null,""]
[4388,null,null,null,null,""]
[4389,null,null,null,null,""]
[4390,null,null,null,null,""]
[4391,null,null,null,null,""]
[4392,null,null,null,null,""]
[4393,null,null,null,null,""]
[4394,null,null,null,null,""]
[4395,null,null,null,null,""]
[4396,null,null,null,null,""]
[4397,null,null,null,null,""]
[4398,null,null,null,null,""]
[4399,null,null,null,null,""]
[4400,null,null,null,null,""]
[4401,null,null,null,null,""]
[4402,null,null,null,null,""]
[4403,null,null,null,null,""]
[4404,null,null,null,null,""]
[4405,null,null,null,null,""]
[4406,null,null,null,null,""]
[4407,null,null,null,null,""]
[4408,null,null,null,null,""]
[4409,null,null,null,null,""]
[4410,null,null,null,null,""]
[4411,null,null,null,null,""]
[4412,null,null,null,null,""]
[4413,null,null,null,null,""]
[4414,null,null,null,null,""]
[4415,null,null,null,null,""]
[4416,null,null,null,null,""]
[4417,null,null,null,null,""]
[4418,null,null,null,null,{"$f":"IF(E4423=\"\",\"\",IF(OR(E4423=\"weiß 9016\",E4423=\"zinkgelb 1018\",E4423=\"narzissengelb 1007\",E4423=\"orange 2010\",E4423=\"tomatenrot 3013\",E4423=\"gold 1036\",E4423=\"silber 9006\"),\"schwarz\",\"weiß\"))","v":""}]
[4419,null,null,null,null,""]
[4420,null,null,null,null,""]
[4421,null,null,null,null,""]
[4422,null,null,null,null,""]
[4423,null,null,null,null,""]
[4424,null,null,null,null,""]
[4425,null,null,null,null,""]
[4426,null,null,null,null,""]
[4427,null,null,null,null,""]
[4428,null,null,null,null,""]
[4429,null,null,null,null,""]
[4430,null,null,null,null,""]
[4431,null,null,null,null,""]
[4432,null,null,null,null,""]
[4433,null,null,null,null,""]
[4434,null,null,null,null,""]
[4435,null,null,null,null,""]
[4436,null,null,null,null,""]
[4437,null,null,null,null,""]
[4438,null,null,null,null,""]
[4439,null,null,null,null,""]
[4440,null,null,null,null,""]
[4441,null,null,null,null,""]
[4442,null,null,null,null,""]
[4443,null,null,null,null,""]
[4444,null,null,null,null,""]
[4445,null,null,null,null,""]
[4446,null,null,null,null,""]
[4447,null,null,null,null,""]
[4448,null,null,null,null,""]
[4449,null,null,null,null,""]
[4450,null,null,null,null,""]
[4451,null,null,null,null,""]
[4452,null,null,null,null,""]
[4453,null,null,null,null,""]
[4454,null,null,null,null,""]
[4455,null,null,null,null,""]
[4456,null,null,null,null,""]
[4457,null,null,null,null,""]
[4458,null,null,null,null,""]
[4459,null,null,null,null,""]
[4460,null,null,null,null,""]
[4461,null,null,null,null,""]
[4462,null,null,null,null,""]
[4463,null,null,null,null,""]
[4464,null,null,null,null,""]
[4465,null,null,null,null,""]
[4466,null,null,null,null,""]
[4467,null,null,null,null,""]
[4468,null,null,null,null,""]
[4469,null,null,null,null,""]
[4470,null,null,null,null,""]
[4471,null,null,null,null,""]
[4472,null,null,null,null,""]
[4473,null,null,null,null,""]
[4474,null,null,null,null,""]
[4475,null,null,null,null,""]
[4476,null,null,null,null,""]
[4477,null,null,null,null,""]
[4478,null,null,null,null,""]
[4479,null,null,null,null,""]
[4480,null,null,null,null,""]
[4481,null,null,null,null,""]
[4482,null,null,null,null,{"$f":"IF(E4487=\"\",\"\",IF(OR(E4487=\"weiß 9016\",E4487=\"zinkgelb 1018\",E4487=\"narzissengelb 1007\",E4487=\"orange 2010\",E4487=\"tomatenrot 3013\",E4487=\"gold 1036\",E4487=\"silber 9006\"),\"schwarz\",\"weiß\"))","v":""}]
[4483,null,null,null,null,""]
[4484,null,null,null,null,""]
[4485,null,null,null,null,""]
[4486,null,null,null,null,""]
[4487,null,null,null,null,""]
[4488,null,null,null,null,""]
[4489,null,null,null,null,""]
[4490,null,null,null,null,""]
[4491,null,null,null,null,""]
[4492,null,null,null,null,""]
[4493,null,null,null,null,""]
[4494,null,null,null,null,""]
[4495,null,null,null,null,""]
[4496,null,null,null,null,""]
[4497,null,null,null,null,""]
[4498,null,null,null,null,""]
[4499,null,null,null,null,""]
[4500,null,null,null,null,""]
[4501,null,null,null,null,""]
[4502,null,null,null,null,""]
[4503,null,null,null,null,""]
[4504,null,null,null,null,""]
[4505,null,null,null,null,""]
[4506,null,null,null,null,""]
[4507,null,null,null,null,""]
[4508,null,null,null,null,""]
[4509,null,null,null,null,""]
[4510,null,null,null,null,""]
[4511,null,null,null,null,""]
[4512,null,null,null,null,""]
[4513,null,null,null,null,""]
[4514,null,null,null,null,""]
[4515,null,null,null,null,""]
[4516,null,null,null,null,""]
[4517,null,null,null,null,""]
[4518,null,null,null,null,""]
[4519,null,null,null,null,""]
[4520,null,null,null,null,""]
[4521,null,null,null,null,""]
[4522,null,null,null,null,""]
[4523,null,null,null,null,""]
[4524,null,null,null,null,""]
[4525,null,null,null,null,""]
[4526,null,null,null,null,""]
[4527,null,null,null,null,""]
[4528,null,null,null,null,""]
[4529,null,null,null,null,""]
[4530,null,null,null,null,""]
[4531,null,null,null,null,""]
[4532,null,null,null,null,""]
[4533,null,null,null,null,""]
[4534,null,null,null,null,""]
[4535,null,null,null,null,""]
[4536,null,null,null,null,""]
[4537,null,null,null,null,""]
[4538,null,null,null,null,""]
[4539,null,null,null,null,""]
[4540,null,null,null,null,""]
[4541,null,null,null,null,""]
[4542,null,null,null,null,""]
[4543,null,null,null,null,""]
[4544,null,null,null,null,""]
[4545,null,null,null,null,""]
[4546,null,null,null,null,{"$f":"IF(E4551=\"\",\"\",IF(OR(E4551=\"weiß 9016\",E4551=\"zinkgelb 1018\",E4551=\"narzissengelb 1007\",E4551=\"orange 2010\",E4551=\"tomatenrot 3013\",E4551=\"gold 1036\",E4551=\"silber 9006\"),\"schwarz\",\"weiß\"))","v":""}]
[4547,null,null,null,null,""]
[4548,null,null,null,null,""]
[4549,null,null,null,null,""]
[4550,null,null,null,null,""]
[4551,null,null,null,null,""]
[4552,null,null,null,null,""]
[4553,null,null,null,null,""]
[4554,null,null,null,null,""]
[4555,null,null,null,null,""]
[4556,null,null,null,null,""]
[4557,null,null,null,null,""]
[4558,null,null,null,null,""]
[4559,null,null,null,null,""]
[4560,null,null,null,null,""]
[4561,null,null,null,null,""]
[4562,null,null,null,null,""]
[4563,null,null,null,null,""]
[4564,null,null,null,null,""]
[4565,null,null,null,null,""]
[4566,null,null,null,null,""]
[4567,null,null,null,null,""]
[4568,null,null,null,null,""]
[4569,null,null,null,null,""]
[4570,null,null,null,null,""]
[4571,null,null,null,null,""]
[4572,null,null,null,null,""]
[4573,null,null,null,null,""]
[4574,null,null,null,null,""]
[4575,null,null,null,null,""]
[4576,null,null,null,null,""]
[4577,null,null,null,null,""]
[4578,null,null,null,null,""]
[4579,null,null,null,null,""]
[4580,null,null,null,null,""]
[4581,null,null,null,null,""]
[4582,null,null,null,null,""]
[4583,null,null,null,null,""]
[4584,null,null,null,null,""]
[4585,null,null,null,null,""]
[4586,null,null,null,null,""]
[4587,null,null,null,null,""]
[4588,null,null,null,null,""]
[4589,null,null,null,null,""]
[4590,null,null,null,null,""]
[4591,null,null,null,null,""]
[4592,null,null,null,null,""]
[4593,null,null,null,null,""]
[4594,null,null,null,null,""]
[4595,null,null,null,null,""]
[4596,null,null,null,null,""]
[4597,null,null,null,null,""]
[4598,null,null,null,null,""]
[4599,null,null,null,null,""]
[4600,null,null,null,null,""]
[4601,null,null,null,null,""]
[4602,null,null,null,null,""]
[4603,null,null,null,null,""]
[4604,null,null,null,null,""]
[4605,null,null,null,null,""]
[4606,null,null,null,null,""]
[4607,null,null,null,null,""]
[4608,null,null,null,null,""]
[4609,null,null,null,null,""]
[4610,null,null,null,null,{"$f":"IF(E4615=\"\",\"\",IF(OR(E4615=\"weiß 9016\",E4615=\"zinkgelb 1018\",E4615=\"narzissengelb 1007\",E4615=\"orange 2010\",E4615=\"tomatenrot 3013\",E4615=\"gold 1036\",E4615=\"silber 9006\"),\"schwarz\",\"weiß\"))","v":""}]
[4611,null,null,null,null,""]
[4612,null,null,null,null,""]
[4613,null,null,null,null,""]
[4614,null,null,null,null,""]
[4615,null,null,null,null,""]
[4616,null,null,null,null,""]
[4617,null,null,null,null,""]
[4618,null,null,null,null,""]
[4619,null,null,null,null,""]
[4620,null,null,null,null,""]
[4621,null,null,null,null,""]
[4622,null,null,null,null,""]
[4623,null,null,null,null,""]
[4624,null,null,null,null,""]
[4625,null,null,null,null,""]
[4626,null,null,null,null,""]
[4627,null,null,null,null,""]
[4628,null,null,null,null,""]
[4629,null,null,null,null,""]
[4630,null,null,null,null,""]
[4631,null,null,null,null,""]
[4632,null,null,null,null,""]
[4633,null,null,null,null,""]
[4634,null,null,null,null,""]
[4635,null,null,null,null,""]
[4636,null,null,null,null,""]
[4637,null,null,null,null,""]
[4638,null,null,null,null,""]
[4639,null,null,null,null,""]
[4640,null,null,null,null,""]
[4641,null,null,null,null,""]
[4642,null,null,null,null,""]
[4643,null,null,null,null,""]
[4644,null,null,null,null,""]
[4645,null,null,null,null,""]
[4646,null,null,null,null,""]
[4647,null,null,null,null,""]
[4648,null,null,null,null,""]
[4649,null,null,null,null,""]
[4650,null,null,null,null,""]
[4651,null,null,null,null,""]
[4652,null,null,null,null,""]
[4653,null,null,null,null,""]
[4654,null,null,null,null,""]
[4655,null,null,null,null,""]
[4656,null,null,null,null,""]
[4657,null,null,null,null,""]
[4658,null,null,null,null,""]
[4659,null,null,null,null,""]
[4660,null,null,null,null,""]
[4661,null,null,null,null,""]
[4662,null,null,null,null,""]
[4663,null,null,null,null,""]
[4664,null,null,null,null,""]
[4665,null,null,null,null,""]
[4666,null,null,null,null,""]
[4667,null,null,null,null,""]
[4668,null,null,null,null,""]
[4669,null,null,null,null,""]
[4670,null,null,null,null,""]
[4671,null,null,null,null,""]
[4672,null,null,null,null,""]
[4673,null,null,null,null,""]
[4674,null,null,null,null,{"$f":"IF(E4679=\"\",\"\",IF(OR(E4679=\"weiß 9016\",E4679=\"zinkgelb 1018\",E4679=\"narzissengelb 1007\",E4679=\"orange 2010\",E4679=\"tomatenrot 3013\",E4679=\"gold 1036\",E4679=\"silber 9006\"),\"schwarz\",\"weiß\"))","v":""}]
[4675,null,null,null,null,""]
[4676,null,null,null,null,""]
[4677,null,null,null,null,""]
[4678,null,null,null,null,""]
[4679,null,null,null,null,""]
[4680,null,null,null,null,""]
[4681,null,null,null,null,""]
[4682,null,null,null,null,""]
[4683,null,null,null,null,""]
[4684,null,null,null,null,""]
[4685,null,null,null,null,""]
[4686,null,null,null,null,""]
[4687,null,null,null,null,""]
[4688,null,null,null,null,""]
[4689,null,null,null,null,""]
[4690,null,null,null,null,""]
[4691,null,null,null,null,""]
[4692,null,null,null,null,""]
[4693,null,null,null,null,""]
[4694,null,null,null,null,""]
[4695,null,null,null,null,""]
[4696,null,null,null,null,""]
[4697,null,null,null,null,""]
[4698,null,null,null,null,""]
[4699,null,null,null,null,""]
[4700,null,null,null,null,""]
[4701,null,null,null,null,""]
[4702,null,null,null,null,""]
[4703,null,null,null,null,""]
[4704,null,null,null,null,""]
[4705,null,null,null,null,""]
[4706,null,null,null,null,""]
[4707,null,null,null,null,""]
[4708,null,null,null,null,""]
[4709,null,null,null,null,""]
[4710,null,null,null,null,""]
[4711,null,null,null,null,""]
[4712,null,null,null,null,""]
[4713,null,null,null,null,""]
[4714,null,null,null,null,""]
[4715,null,null,null,null,""]
[4716,null,null,null,null,""]
[4717,null,null,null,null,""]
[4718,null,null,null,null,""]
[4719,null,null,null,null,""]
[4720,null,null,null,null,""]
[4721,null,null,null,null,""]
[4722,null,null,null,null,""]
[4723,null,null,null,null,""]
[4724,null,null,null,null,""]
[4725,null,null,null,null,""]
[4726,null,null,null,null,""]
[4727,null,null,null,null,""]
[4728,null,null,null,null,""]
[4729,null,null,null,null,""]
[4730,null,null,null,null,""]
[4731,null,null,null,null,""]
[4732,null,null,null,null,""]
[4733,null,null,null,null,""]
[4734,null,null,null,null,""]
[4735,null,null,null,null,""]
[4736,null,null,null,null,""]
[4737,null,null,null,null,""]
[4738,null,null,null,null,{"$f":"IF(E4743=\"\",\"\",IF(OR(E4743=\"weiß 9016\",E4743=\"zinkgelb 1018\",E4743=\"narzissengelb 1007\",E4743=\"orange 2010\",E4743=\"tomatenrot 3013\",E4743=\"gold 1036\",E4743=\"silber 9006\"),\"schwarz\",\"weiß\"))","v":""}]
[4739,null,null,null,null,""]
[4740,null,null,null,null,""]
[4741,null,null,null,null,""]
[4742,null,null,null,null,""]
[4743,null,null,null,null,""]
[4744,null,null,null,null,""]
[4745,null,null,null,null,""]
[4746,null,null,null,null,""]
[4747,null,null,null,null,""]
[4748,null,null,null,null,""]
[4749,null,null,null,null,""]
[4750,null,null,null,null,""]
[4751,null,null,null,null,""]
[4752,null,null,null,null,""]
[4753,null,null,null,null,""]
[4754,null,null,null,null,""]
[4755,null,null,null,null,""]
[4756,null,null,null,null,""]
[4757,null,null,null,null,""]
[4758,null,null,null,null,""]
[4759,null,null,null,null,""]
[4760,null,null,null,null,""]
[4761,null,null,null,null,""]
[4762,null,null,null,null,""]
[4763,null,null,null,null,""]
[4764,null,null,null,null,""]
[4765,null,null,null,null,""]
[4766,null,null,null,null,""]
[4767,null,null,null,null,""]
[4768,null,null,null,null,""]
[4769,null,null,null,null,""]
[4770,null,null,null,null,""]
[4771,null,null,null,null,""]
[4772,null,null,null,null,""]
[4773,null,null,null,null,""]
[4774,null,null,null,null,""]
[4775,null,null,null,null,""]
[4776,null,null,null,null,""]
[4777,null,null,null,null,""]
[4778,null,null,null,null,""]
[4779,null,null,null,null,""]
[4780,null,null,null,null,""]
[4781,null,null,null,null,""]
[4782,null,null,null,null,""]
[4783,null,null,null,null,""]
[4784,null,null,null,null,""]
[4785,null,null,null,null,""]
[4786,null,null,null,null,""]
[4787,null,null,null,null,""]
[4788,null,null,null,null,""]
[4789,null,null,null,null,""]
[4790,null,null,null,null,""]
[4791,null,null,null,null,""]
[4792,null,null,null,null,""]
[4793,null,null,null,null,""]
[4794,null,null,null,null,""]
[4795,null,null,null,null,""]
[4796,null,null,null,null,""]
[4797,null,null,null,null,""]
[4798,null,null,null,null,""]
[4799,null,null,null,null,""]
[4800,null,null,null,null,""]
[4801,null,null,null,null,""]
[4802,null,null,null,null,{"$f":"IF(E4807=\"\",\"\",IF(OR(E4807=\"weiß 9016\",E4807=\"zinkgelb 1018\",E4807=\"narzissengelb 1007\",E4807=\"orange 2010\",E4807=\"tomatenrot 3013\",E4807=\"gold 1036\",E4807=\"silber 9006\"),\"schwarz\",\"weiß\"))","v":""}]
[4803,null,null,null,null,""]
[4804,null,null,null,null,""]
[4805,null,null,null,null,""]
[4806,null,null,null,null,""]
[4807,null,null,null,null,""]
[4808,null,null,null,null,""]
[4809,null,null,null,null,""]
[4810,null,null,null,null,""]
[4811,null,null,null,null,""]
[4812,null,null,null,null,""]
[4813,null,null,null,null,""]
[4814,null,null,null,null,""]
[4815,null,null,null,null,""]
[4816,null,null,null,null,""]
[4817,null,null,null,null,""]
[4818,null,null,null,null,""]
[4819,null,null,null,null,""]
[4820,null,null,null,null,""]
[4821,null,null,null,null,""]
[4822,null,null,null,null,""]
[4823,null,null,null,null,""]
[4824,null,null,null,null,""]
[4825,null,null,null,null,""]
[4826,null,null,null,null,""]
[4827,null,null,null,null,""]
[4828,null,null,null,null,""]
[4829,null,null,null,null,""]
[4830,null,null,null,null,""]
[4831,null,null,null,null,""]
[4832,null,null,null,null,""]
[4833,null,null,null,null,""]
[4834,null,null,null,null,""]
[4835,null,null,null,null,""]
[4836,null,null,null,null,""]
[4837,null,null,null,null,""]
[4838,null,null,null,null,""]
[4839,null,null,null,null,""]
[4840,null,null,null,null,""]
[4841,null,null,null,null,""]
[4842,null,null,null,null,""]
[4843,null,null,null,null,""]
[4844,null,null,null,null,""]
[4845,null,null,null,null,""]
[4846,null,null,null,null,""]
[4847,null,null,null,null,""]
[4848,null,null,null,null,""]
[4849,null,null,null,null,""]
[4850,null,null,null,null,""]
[4851,null,null,null,null,""]
[4852,null,null,null,null,""]
[4853,null,null,null,null,""]
[4854,null,null,null,null,""]
[4855,null,null,null,null,""]
[4856,null,null,null,null,""]
[4857,null,null,null,null,""]
[4858,null,null,null,null,""]
[4859,null,null,null,null,""]
[4860,null,null,null,null,""]
[4861,null,null,null,null,""]
[4862,null,null,null,null,""]
[4863,null,null,null,null,""]
[4864,null,null,null,null,""]
[4865,null,null,null,null,""]
[4866,null,null,null,null,{"$f":"IF(E4871=\"\",\"\",IF(OR(E4871=\"weiß 9016\",E4871=\"zinkgelb 1018\",E4871=\"narzissengelb 1007\",E4871=\"orange 2010\",E4871=\"tomatenrot 3013\",E4871=\"gold 1036\",E4871=\"silber 9006\"),\"schwarz\",\"weiß\"))","v":""}]
[4867,null,null,null,null,""]
[4868,null,null,null,null,""]
[4869,null,null,null,null,""]
[4870,null,null,null,null,""]
[4871,null,null,null,null,""]
[4872,null,null,null,null,""]
[4873,null,null,null,null,""]
[4874,null,null,null,null,""]
[4875,null,null,null,null,""]
[4876,null,null,null,null,""]
[4877,null,null,null,null,""]
[4878,null,null,null,null,""]
[4879,null,null,null,null,""]
[4880,null,null,null,null,""]
[4881,null,null,null,null,""]
[4882,null,null,null,null,""]
[4883,null,null,null,null,""]
[4884,null,null,null,null,""]
[4885,null,null,null,null,""]
[4886,null,null,null,null,""]
[4887,null,null,null,null,""]
[4888,null,null,null,null,""]
[4889,null,null,null,null,""]
[4890,null,null,null,null,""]
[4891,null,null,null,null,""]
[4892,null,null,null,null,""]
[4893,null,null,null,null,""]
[4894,null,null,null,null,""]
[4895,null,null,null,null,""]
[4896,null,null,null,null,""]
[4897,null,null,null,null,""]
[4898,null,null,null,null,""]
[4899,null,null,null,null,""]
[4900,null,null,null,null,""]
[4901,null,null,null,null,""]
[4902,null,null,null,null,""]
[4903,null,null,null,null,""]
[4904,null,null,null,null,""]
[4905,null,null,null,null,""]
[4906,null,null,null,null,""]
[4907,null,null,null,null,""]
[4908,null,null,null,null,""]
[4909,null,null,null,null,""]
[4910,null,null,null,null,""]
[4911,null,null,null,null,""]
[4912,null,null,null,null,""]
[4913,null,null,null,null,""]
[4914,null,null,null,null,""]
[4915,null,null,null,null,""]
[4916,null,null,null,null,""]
[4917,null,null,null,null,""]
[4918,null,null,null,null,""]
[4919,null,null,null,null,""]
[4920,null,null,null,null,""]
[4921,null,null,null,null,""]
[4922,null,null,null,null,""]
[4923,null,null,null,null,""]
[4924,null,null,null,null,""]
[4925,null,null,null,null,""]
[4926,null,null,null,null,""]
[4927,null,null,null,null,""]
[4928,null,null,null,null,""]
[4929,null,null,null,null,""]
[4930,null,null,null,null,{"$f":"IF(E4935=\"\",\"\",IF(OR(E4935=\"weiß 9016\",E4935=\"zinkgelb 1018\",E4935=\"narzissengelb 1007\",E4935=\"orange 2010\",E4935=\"tomatenrot 3013\",E4935=\"gold 1036\",E4935=\"silber 9006\"),\"schwarz\",\"weiß\"))","v":""}]
[4931,null,null,null,null,""]
[4932,null,null,null,null,""]
[4933,null,null,null,null,""]
[4934,null,null,null,null,""]
[4935,null,null,null,null,""]
[4936,null,null,null,null,""]
[4937,null,null,null,null,""]
[4938,null,null,null,null,""]
[4939,null,null,null,null,""]
[4940,null,null,null,null,""]
[4941,null,null,null,null,""]
[4942,null,null,null,null,""]
[4943,null,null,null,null,""]
[4944,null,null,null,null,""]
[4945,null,null,null,null,""]
[4946,null,null,null,null,""]
[4947,null,null,null,null,""]
[4948,null,null,null,null,""]
[4949,null,null,null,null,""]
[4950,null,null,null,null,""]
[4951,null,null,null,null,""]
[4952,null,null,null,null,""]
[4953,null,null,null,null,""]
[4954,null,null,null,null,""]
[4955,null,null,null,null,""]
[4956,null,null,null,null,""]
[4957,null,null,null,null,""]
[4958,null,null,null,null,""]
[4959,null,null,null,null,""]
[4960,null,null,null,null,""]
[4961,null,null,null,null,""]
[4962,null,null,null,null,""]
[4963,null,null,null,null,""]
[4964,null,null,null,null,""]
[4965,null,null,null,null,""]
[4966,null,null,null,null,""]
[4967,null,null,null,null,""]
[4968,null,null,null,null,""]
[4969,null,null,null,null,""]
[4970,null,null,null,null,""]
[4971,null,null,null,null,""]
[4972,null,null,null,null,""]
[4973,null,null,null,null,""]
[4974,null,null,null,null,""]
[4975,null,null,null,null,""]
[4976,null,null,null,null,""]
[4977,null,null,null,null,""]
[4978,null,null,null,null,""]
[4979,null,null,null,null,""]
[4980,null,null,null,null,""]
[4981,null,null,null,null,""]
[4982,null,null,null,null,""]
[4983,null,null,null,null,""]
[4984,null,null,null,null,""]
[4985,null,null,null,null,""]
[4986,null,null,null,null,""]
[4987,null,null,null,null,""]
[4988,null,null,null,null,""]
[4989,null,null,null,null,""]
[4990,null,null,null,null,""]
[4991,null,null,null,null,""]
[4992,null,null,null,null,""]
[4993,null,null,null,null,""]
[4994,null,null,null,null,{"$f":"IF(E4999=\"\",\"\",IF(OR(E4999=\"weiß 9016\",E4999=\"zinkgelb 1018\",E4999=\"narzissengelb 1007\",E4999=\"orange 2010\",E4999=\"tomatenrot 3013\",E4999=\"gold 1036\",E4999=\"silber 9006\"),\"schwarz\",\"weiß\"))","v":""}]
[4995,null,null,null,null,""]
[4996,null,null,null,null,{"$f":"IF(E5001=\"\",\"\",IF(OR(E5001=\"Signalorange RAL 2010\",E5001=\"Signalgelb RAL 1003\",E5001=\"Signalgrau RAL 7004\"),\"schwarz\",\"weiß\"))","v":""}]
[4997,null,null,null,null,""]
[4998,null,null,null,null,""]
[4999,null,null,null,null,""]
[5000,null,null,null,null,""]